Workbook

Sheet INDEX
B2: The Scottish Health Survey (SHeS)
B3: Local Authority1 results 2014-2017
B5: Summary by NHS Local Authority
B6: Self-assessed general health | I6: CHART
B7: WEMWBS mean scores | I7: CHART
B8: General Health Questionnaire (GHQ-12) scores | I8: CHART
B9: Long-term illness | I9: CHART
B10: Alcohol consumption- weekly drinking guidelines | I10: CHART
B11: Alcohol consumption- mean weekly units | I11: CHART
B12: Smoking behaviour | I12: CHART
B13: Overweight | I13: CHART
B14: Obesity | I14: CHART
B15: Fruit and vegetable consumption- by category | I15: CHART
B16: Fruit and vegetable consumption- mean daily portions | I16: CHART
B17: Physical activity | I17: CHART
B18: Cardiovascular (CVD) conditions | I18: CHART
B20: More information about these topics can be found in the latest Scottish Health Survey report:
B21: http://www.gov.scot/Topics/Statistics/Browse/Health/scottish-health-survey
B23: Notes
B24: 1. Where the sample size for a Local Authority (which does not correspond fully to an NHS board) was below 500, the result has been suppressed.

Sheet Summary By Local Authority
B2: Choose a Local Authority to update charts and compare against overall Scotland figures
F3: PLEASE NOTE: Where the sample size for a Local Authority (which does not correspond fully to an NHS board) was below 500, the result has been suppressed. This is shown here by #N/A.
I7: Self-assessed general health | X7: WEMWBS mean scores
I8: All adults, 2014-2017 combined | X8: All adults, 2014-2017 combined
K9: Scotland | M9: =$A$128 -> Aberdeen City | Z9: Scotland | AB9: =$A$128 -> Aberdeen City
I10: ='SAH chart'!B36 -> Very good/good | K10: ='SAH chart'!S36 -> 73.51 | M10: =D130 -> 78.481 | X10: =F130 -> Mean | Z10: =G130 -> 49.9 | AB10: =H130 -> 50.696
I11: ='SAH chart'!B37 -> Lower CI | K11: ='SAH chart'!S37 -> 72.64 | M11: =D131 -> 74.705 | X11: =F131 -> Lower CI | Z11: =G131 -> 49.71 | AB11: =H131 -> 50.05
I12: ='SAH chart'!B38 -> Upper CI | K12: ='SAH chart'!S38 -> 74.38 | M12: =D132 -> 82.257 | X12: =F132 -> Upper CI | Z12: =G132 -> 50.08 | AB12: =H132 -> 51.342
I13: ='SAH chart'!B39 -> Fair | K13: ='SAH chart'!S39 -> 18.2 | M13: 15.688
I14: ='SAH chart'!B40 -> Lower CI | K14: ='SAH chart'!S40 -> 17.49 | M14: 12.487
I15: ='SAH chart'!B41 -> Upper CI | K15: ='SAH chart'!S41 -> 18.91 | M15: 18.89
I16: ='SAH chart'!B42 -> Bad/very bad | K16: ='SAH chart'!S42 -> 8.3 | M16: 5.83
I17: ='SAH chart'!B43 -> Lower CI | K17: ='SAH chart'!S43 -> 7.79 | M17: 4.331
I18: ='SAH chart'!B44 -> Upper CI | K18: ='SAH chart'!S44 -> 8.81 | M18: 7.33
I22: GHQ-12 scores | X22: Long-term illness
I23: All adults, 2014-2017 combined | X23: All adults, 2014-2017 combined
K24: Scotland | M24: =$A$128 -> Aberdeen City | AA24: Scotland | AC24: =$A$128 -> Aberdeen City
I25: =J130 -> Score 0 | K25: =K130 -> 60.6 | M25: =L130 -> 57.833 | X25: =B147 -> Limiting long-term illness | AA25: =C147 -> 33.052 | AC25: =D147 -> 26.256
I26: =J131 -> Lower CI | K26: =K131 -> 59.6 | M26: =L131 -> 54.035 | X26: Lower CI | AA26: =C148 -> 28.193 | AC26: =D148 -> 22.543
I27: Upper CI | K27: =K132 -> 61.61 | M27: =L132 -> 61.63 | X27: Upper CI | AA27: =C149 -> 37.911 | AC27: =D149 -> 29.97
I28: Score 1-3 | K28: =K133 -> 23.65 | M28: =L133 -> 27.63 | X28: Non-limiting long-term illness | AA28: 16.361 | AC28: 13.179
I29: Lower CI | K29: 22.81 | M29: 24.364 | X29: Lower CI | AA29: 13.34 | AC29: 10.519
I30: Upper CI | K30: 24.5 | M30: 30.896 | X30: Upper CI | AA30: 19.382 | AC30: 15.839
I31: Score 4+ | K31: 15.74 | M31: 14.537 | X31: No long-term illness | AA31: 50.587 | AC31: 60.565
I32: Lower CI | K32: 15.02 | M32: 12.283 | X32: Lower CI | AA32: 44.66 | AC32: 56.088
I33: Upper CI | K33: 16.47 | M33: 16.792 | X33: Upper CI | AA33: 56.514 | AC33: 65.041
I38: Adherence to weekly drinking advice | X38: Weekly mean alcohol units
I39: All adults, 2014-2017 combined | X39: All adults, 2014-2017 combined
K40: Scotland | M40: =$A$128 -> Aberdeen City | Z40: Scotland | AB40: =$A$128 -> Aberdeen City
I41: =F147 -> Non drinker | K41: =G147 -> 16.18 | M41: =H147 -> 19.75 | X41: =J147 -> Weekly mean units | Z41: =K147 -> 12.65 | AB41: =L147 -> 15.091
I42: =F148 -> Lower CI | K42: =G148 -> 15.42 | M42: =H148 -> 16.499 | X42: =J148 -> Lower CI | Z42: =K148 -> 12.24 | AB42: =L148 -> 12.934
I43: =F149 -> Upper CI | K43: =G149 -> 16.94 | M43: =H149 -> 23.001 | X43: Upper CI | Z43: 13.05 | AB43: 17.248
I44: Moderate | K44: 58.55 | M44: 51.678
I45: Lower CI | K45: 57.57 | M45: 47.201
I46: Upper CI | K46: 59.54 | M46: 56.156
I47: Hazardous/harmful | K47: 25.26 | M47: 28.572
I48: Lower CI | K48: 24.37 | M48: 24.84
I49: Upper CI | K49: 26.16 | M49: 32.303
I55: Smoking behaviour | X55: Prevalence of overweight (including obesity)
I56: All adults, 2014-2017 combined | X56: All adults, 2014-2017 combined
L57: Scotland | N57: =$A$128 -> Aberdeen City | Z57: Scotland | AB57: =$A$128 -> Aberdeen City
I58: =B163 -> Never smoked, or ex-occasional | L58: =C163 -> 54.88 | N58: =D163 -> 57.224 | X58: =F163 -> Overweight (including obese) | Z58: =G163 -> 64.94 | AB58: =H163 -> 60.577
I59: =B164 -> Lower CI | L59: =C164 -> 53.83 | N59: =D164 -> 52.986 | X59: =F164 -> Lower CI | Z59: =G164 -> 63.84 | AB59: =H164 -> 55.98
I60: Upper CI | L60: =C165 -> 55.92 | N60: =D165 -> 61.463 | X60: Upper CI | Z60: 66.04 | AB60: 65.175
I61: Ex-regular smoker, or occasional | L61: 24.55 | N61: 20.055
I62: Lower CI | L62: 23.75 | N62: 17.429
I63: Upper CI | L63: 25.35 | N63: 22.682
I64: Regular smoker | L64: 20.58 | N64: 22.72
I65: Lower CI | L65: 19.76 | N65: 19.215
I66: Upper CI | L66: 21.39 | N66: 26.226
I71: Prevalence of obesity | X71: Daily fruit and vegetable consumption
I72: All adults, 2014-2017 combined | X72: All adults, 2014-2017 combined
K73: Scotland | M73: =$A$128 -> Aberdeen City | Z73: Scotland | AB73: =$A$128 -> Aberdeen City
I74: =F172 -> Obese | K74: =G172 -> 28.57 | M74: =H172 -> 25.026 | X74: =J163 -> None | Z74: =K163 -> 10.68 | AB74: =L163 -> 8.782
I75: =F173 -> Lower CI | K75: =G173 -> 27.66 | M75: =H173 -> 21.436 | X75: =J164 -> Lower CI | Z75: =K164 -> 10.02 | AB75: =L164 -> 6.616
I76: Upper CI | K76: 29.49 | M76: 28.617 | X76: Upper CI | Z76: =K165 -> 11.34 | AB76: =L165 -> 10.948
X77: Less than 5 portions | Z77: 68.25 | AB77: 69.745
X78: Lower CI | Z78: 67.3 | AB78: 65.968
X79: Upper CI | Z79: 69.21 | AB79: 73.523
X80: 5 portions or more | Z80: 21.07 | AB80: 21.473
X81: Lower CI | Z81: 20.19 | AB81: 18.153
X82: Upper CI | Z82: 21.94 | AB82: 24.793
I87: Mean daily portions of fruit and vegetables | X87: Physical activity
I88: All adults, 2014-2017 combined | X88: All adults, 2014-2017 combined
K89: Scotland | M89: =$A$128 -> Aberdeen City | Z89: Scotland | AB89: =$A$128 -> Aberdeen City
I90: =B180 -> Mean | K90: =C180 -> 3.16 | M90: =D180 -> 3.287 | X90: =F180 -> Meets guidelines | Z90: =G180 -> 63.62 | AB90: =H180 -> 67.113
I91: =B181 -> Lower CI | K91: =C181 -> 3.1 | M91: =D181 -> 3.06 | X91: =F181 -> Lower CI | Z91: =G181 -> 62.62 | AB91: =H181 -> 63.029
I92: =B182 -> Upper CI | K92: =C182 -> 3.22 | M92: =D182 -> 3.514 | X92: Upper CI | Z92: =G182 -> 64.62 | AB92: =H182 -> 71.196
X93: Some activity | Z93: 11.06 | AB93: 9.191
X94: Lower CI | Z94: 10.49 | AB94: 7.282
X95: Upper CI | Z95: 11.63 | AB95: 11.1
X96: Low activity | Z96: 4.41 | AB96: 4.34
X97: Lower CI | Z97: 4.04 | AB97: 3.184
X98: Upper CI | Z98: 4.77 | AB98: 5.495
X99: Very low activity | Z99: 20.92 | AB99: 19.356
X100: Lower CI | Z100: 20.09 | AB100: 16.405
X101: Upper CI | Z101: 21.75 | AB101: 22.308
I104: Prevalence of cardiovascular (CVD) conditions
I105: All adults, 2014-2017 combined
L106: Scotland | N106: =$A$128 -> Aberdeen City
I107: =J180 -> Has a cardiovascular condition | L107: =K180 -> 15.49 | N107: =L180 -> 13.936
I108: =J181 -> Lower CI | L108: =K181 -> 14.85 | N108: =L181 -> 11.279
I109: Upper CI | L109: 16.14 | N109: 16.593
A128: Aberdeen City | C128: Scotland | D128: =A128 -> Aberdeen City | G128: Scotland | H128: =A128 -> Aberdeen City | K128: Scotland | L128: =A128 -> Aberdeen City
A129: Aberdeen City | B129: SAH | F129: WEMWBS | J129: GHQ-12
A130: Aberdeenshire | B130: Very good/good | C130: ='SAH chart'!S36 -> 73.51 | D130: =INDEX('SAH chart'!$C$34:$Q$48, 3, MATCH('Summary By Local Authority'!$A$128,'SAH chart'!$C$34:$Q$34, 0)) -> 78.481 | F130: Mean | G130: ='WEMWBS chart '!R36 -> 49.9 | H130: =INDEX('WEMWBS chart '!$C$34:$R$40, 3, MATCH('Summary By Local Authority'!$H$128, 'WEMWBS chart '!$C$34:$R$34, 0)) -> 50.696 | J130: Score 0 | K130: ='GHQ-12 chart'!R36 -> 60.6 | L130: =INDEX('GHQ-12 chart'!$C$34:$R$48, 3, MATCH('Summary By Local Authority'!$L$128, 'GHQ-12 chart'!$C$34:$R$34, 0)) -> 57.833
A131: Angus | B131: Lower CI | C131: ='SAH chart'!S37 -> 72.64 | D131: =INDEX('SAH chart'!$C$34:$Q$48, 4, MATCH('Summary By Local Authority'!$A$128,'SAH chart'!$C$34:$Q$34, 0)) -> 74.705 | F131: Lower CI | G131: ='WEMWBS chart '!R37 -> 49.71 | H131: =INDEX('WEMWBS chart '!$C$34:$R$40, 4, MATCH('Summary By Local Authority'!$H$128, 'WEMWBS chart '!$C$34:$R$34, 0)) -> 50.05 | J131: Lower CI | K131: ='GHQ-12 chart'!R37 -> 59.6 | L131: =INDEX('GHQ-12 chart'!$C$34:$R$48, 4, MATCH('Summary By Local Authority'!$L$128, 'GHQ-12 chart'!$C$34:$R$34, 0)) -> 54.035
A132: Argyll & Bute | B132: Upper CI | C132: ='SAH chart'!S38 -> 74.38 | D132: =INDEX('SAH chart'!$C$34:$Q$48, 5, MATCH('Summary By Local Authority'!$A$128,'SAH chart'!$C$34:$Q$34, 0)) -> 82.257 | F132: Upper CI | G132: ='WEMWBS chart '!R38 -> 50.08 | H132: =INDEX('WEMWBS chart '!$C$34:$R$40, 5, MATCH('Summary By Local Authority'!$H$128, 'WEMWBS chart '!$C$34:$R$34, 0)) -> 51.342 | J132: Upper CI | K132: ='GHQ-12 chart'!R38 -> 61.61 | L132: =INDEX('GHQ-12 chart'!$C$34:$R$48, 5, MATCH('Summary By Local Authority'!$L$128, 'GHQ-12 chart'!$C$34:$R$34, 0)) -> 61.63
A133: Clackmannanshire | B133: Fair | C133: ='SAH chart'!S39 -> 18.2 | D133: =INDEX('SAH chart'!$C$34:$Q$48, 6, MATCH('Summary By Local Authority'!$A$128,'SAH chart'!$C$34:$Q$34, 0)) -> 15.688 | J133: Score 1-3 | K133: ='GHQ-12 chart'!R39 -> 23.65 | L133: =INDEX('GHQ-12 chart'!$C$34:$R$48, 6, MATCH('Summary By Local Authority'!$L$128, 'GHQ-12 chart'!$C$34:$R$34, 0)) -> 27.63
A134: Dumfries & Galloway | B134: Lower CI | C134: ='SAH chart'!S40 -> 17.49 | D134: =INDEX('SAH chart'!$C$34:$Q$48, 7, MATCH('Summary By Local Authority'!$A$128,'SAH chart'!$C$34:$Q$34, 0)) -> 12.487 | F134: CLS | G134: ='WEMWBS chart '!R40 -> 0.19 | H134: =INDEX('WEMWBS chart '!$C$34:$R$40, 7, MATCH('Summary By Local Authority'!$H$128, 'WEMWBS chart '!$C$34:$R$34, 0)) -> 0.646 | J134: Lower CI | K134: ='GHQ-12 chart'!R40 -> 22.81 | L134: =INDEX('GHQ-12 chart'!$C$34:$R$48, 7, MATCH('Summary By Local Authority'!$L$128, 'GHQ-12 chart'!$C$34:$R$34, 0)) -> 24.364
A135: Dundee City | B135: Upper CI | C135: ='SAH chart'!S41 -> 18.91 | D135: =INDEX('SAH chart'!$C$34:$Q$48, 8, MATCH('Summary By Local Authority'!$A$128,'SAH chart'!$C$34:$Q$34, 0)) -> 18.89 | J135: Upper CI | K135: ='GHQ-12 chart'!R41 -> 24.5 | L135: =INDEX('GHQ-12 chart'!$C$34:$R$48, 8, MATCH('Summary By Local Authority'!$L$128, 'GHQ-12 chart'!$C$34:$R$34, 0)) -> 30.896
A136: East Ayrshire | B136: Bad/very bad | C136: ='SAH chart'!S42 -> 8.3 | D136: =INDEX('SAH chart'!$C$34:$Q$48, 9, MATCH('Summary By Local Authority'!$A$128,'SAH chart'!$C$34:$Q$34, 0)) -> 5.83 | J136: Score 4+ | K136: ='GHQ-12 chart'!R42 -> 15.74 | L136: =INDEX('GHQ-12 chart'!$C$34:$R$48, 9, MATCH('Summary By Local Authority'!$L$128, 'GHQ-12 chart'!$C$34:$R$34, 0)) -> 14.537
A137: East Dunbartonshire | B137: Lower CI | C137: ='SAH chart'!S43 -> 7.79 | D137: =INDEX('SAH chart'!$C$34:$Q$48, 10, MATCH('Summary By Local Authority'!$A$128,'SAH chart'!$C$34:$Q$34, 0)) -> 4.331 | J137: Lower CI | K137: ='GHQ-12 chart'!R43 -> 15.02 | L137: =INDEX('GHQ-12 chart'!$C$34:$R$48, 10, MATCH('Summary By Local Authority'!$L$128, 'GHQ-12 chart'!$C$34:$R$34, 0)) -> 12.283
A138: East Lothian | B138: Upper CI | C138: ='SAH chart'!S44 -> 8.81 | D138: =INDEX('SAH chart'!$C$34:$Q$48, 11, MATCH('Summary By Local Authority'!$A$128,'SAH chart'!$C$34:$Q$34, 0)) -> 7.33 | J138: Upper CI | K138: ='GHQ-12 chart'!R44 -> 16.47 | L138: =INDEX('GHQ-12 chart'!$C$34:$R$48, 11, MATCH('Summary By Local Authority'!$L$128, 'GHQ-12 chart'!$C$34:$R$34, 0)) -> 16.792
A139: East Renfrewshire | D139: =INDEX('SAH chart'!$C$34:$Q$48, 12, MATCH('Summary By Local Authority'!$A$128,'SAH chart'!$C$34:$Q$34, 0)) -> 0
A140: Edinburgh, City of | B140: Very good | C140: ='SAH chart'!S46 -> 0.87 | D140: =INDEX('SAH chart'!$C$34:$Q$48, 13, MATCH('Summary By Local Authority'!$A$128,'SAH chart'!$C$34:$Q$34, 0)) -> 3.776 | J140: Score 0 | K140: ='GHQ-12 chart'!R46 -> 1 | L140: =INDEX('GHQ-12 chart'!$C$34:$R$48, 13, MATCH('Summary By Local Authority'!$L$128, 'GHQ-12 chart'!$C$34:$R$34, 0)) -> 3.798
A141: Falkirk | B141: Fair | C141: ='SAH chart'!S47 -> 0.71 | D141: =INDEX('SAH chart'!$C$34:$Q$48, 14, MATCH('Summary By Local Authority'!$A$128,'SAH chart'!$C$34:$Q$34, 0)) -> 3.201 | J141: Score 1-3 | K141: ='GHQ-12 chart'!R47 -> 0.84 | L141: =INDEX('GHQ-12 chart'!$C$34:$R$48, 14, MATCH('Summary By Local Authority'!$L$128, 'GHQ-12 chart'!$C$34:$R$34, 0)) -> 3.266
A142: Fife | B142: Bad/ very bad | C142: ='SAH chart'!S48 -> 0.51 | D142: =INDEX('SAH chart'!$C$34:$Q$48, 15, MATCH('Summary By Local Authority'!$A$128,'SAH chart'!$C$34:$Q$34, 0)) -> 1.499 | J142: Score 4+ | K142: ='GHQ-12 chart'!R48 -> 0.72 | L142: =INDEX('GHQ-12 chart'!$C$34:$R$48, 15, MATCH('Summary By Local Authority'!$L$128, 'GHQ-12 chart'!$C$34:$R$34, 0)) -> 2.254
A143: Glasgow City
A144: Highland | C144: Scotland | D144: =A128 -> Aberdeen City | G144: Scotland | H144: =A128 -> Aberdeen City | K144: Scotland | L144: =A128 -> Aberdeen City
A145: Inverclyde | B145: Longterm illness | F145: Alcohol guidelines | J145: Mean units
A146: Midlothian | B146: All Adults
A147: Moray | B147: Limiting long-term illness | C147: ='Long-term illness chart'!I36 -> 33.052 | D147: =INDEX( 'Long-term illness chart'!$C$34:$S$48, 3, MATCH('Summary By Local Authority'!$D$144, 'Long-term illness chart'!$C$34:$S$34, 0 )) -> 26.256 | F147: Non drinker | G147: ='Alcohol guidelines chart'!S34 -> 16.18 | H147: =INDEX('Alcohol guidelines chart'!$C$32:$S$46, 3, MATCH('Summary By Local Authority'!$H$144, 'Alcohol guidelines chart'!$C$32:$S$32, 0)) -> 19.75 | J147: Weekly mean units | K147: ='Mean units chart'!R36 -> 12.65 | L147: =INDEX('Mean units chart'!$C$34:$R$40,3,MATCH('Summary By Local Authority'!$L$144,'Mean units chart'!$C$34:$R$34,0)) -> 15.091
A148: Na h-Eileanan Siar | B148: Lower CI | C148: ='Long-term illness chart'!I37 -> 28.193 | D148: =INDEX( 'Long-term illness chart'!$C$34:$S$48, 4, MATCH('Summary By Local Authority'!$D$144, 'Long-term illness chart'!$C$34:$S$34, 0 )) -> 22.543 | F148: Lower CI | G148: ='Alcohol guidelines chart'!S35 -> 15.42 | H148: =INDEX('Alcohol guidelines chart'!$C$32:$S$46, 4, MATCH('Summary By Local Authority'!$H$144, 'Alcohol guidelines chart'!$C$32:$S$32, 0)) -> 16.499 | J148: Lower CI | K148: ='Mean units chart'!R37 -> 12.24 | L148: =INDEX('Mean units chart'!$C$34:$R$40,4,MATCH('Summary By Local Authority'!$L$144,'Mean units chart'!$C$34:$R$34,0)) -> 12.934
A149: North Ayrshire | B149: Upper CI | C149: ='Long-term illness chart'!I38 -> 37.911 | D149: =INDEX( 'Long-term illness chart'!$C$34:$S$48, 5, MATCH('Summary By Local Authority'!$D$144, 'Long-term illness chart'!$C$34:$S$34, 0 )) -> 29.97 | F149: Upper CI | G149: ='Alcohol guidelines chart'!S36 -> 16.94 | H149: =INDEX('Alcohol guidelines chart'!$C$32:$S$46, 5, MATCH('Summary By Local Authority'!$H$144, 'Alcohol guidelines chart'!$C$32:$S$32, 0)) -> 23.001 | J149: Upper CI | K149: ='Mean units chart'!R38 -> 13.05 | L149: =INDEX('Mean units chart'!$C$34:$R$40,5,MATCH('Summary By Local Authority'!$L$144,'Mean units chart'!$C$34:$R$34,0)) -> 17.248
A150: North Lanarkshire | B150: Non-limiting long-term illness | C150: ='Long-term illness chart'!I39 -> 16.361 | D150: =INDEX( 'Long-term illness chart'!$C$34:$S$48, 6, MATCH('Summary By Local Authority'!$D$144, 'Long-term illness chart'!$C$34:$S$34, 0 )) -> 13.179 | F150: Moderate | G150: ='Alcohol guidelines chart'!S37 -> 58.55 | H150: =INDEX('Alcohol guidelines chart'!$C$32:$S$46, 6, MATCH('Summary By Local Authority'!$H$144, 'Alcohol guidelines chart'!$C$32:$S$32, 0)) -> 51.678
A151: Orkney Islands | B151: Lower CI | C151: ='Long-term illness chart'!I40 -> 13.34 | D151: =INDEX( 'Long-term illness chart'!$C$34:$S$48, 7, MATCH('Summary By Local Authority'!$D$144, 'Long-term illness chart'!$C$34:$S$34, 0 )) -> 10.519 | F151: Lower CI | G151: ='Alcohol guidelines chart'!S38 -> 57.57 | H151: =INDEX('Alcohol guidelines chart'!$C$32:$S$46, 7, MATCH('Summary By Local Authority'!$H$144, 'Alcohol guidelines chart'!$C$32:$S$32, 0)) -> 47.201 | J151: CLs | K151: ='Mean units chart'!R40 -> 0.41 | L151: =INDEX('Mean units chart'!$C$34:$R$40,7,MATCH('Summary By Local Authority'!$L$144,'Mean units chart'!$C$34:$R$34,0)) -> 2.157
A152: Perth & Kinross | B152: Upper CI | C152: ='Long-term illness chart'!I41 -> 19.382 | D152: =INDEX( 'Long-term illness chart'!$C$34:$S$48, 8, MATCH('Summary By Local Authority'!$D$144, 'Long-term illness chart'!$C$34:$S$34, 0 )) -> 15.839 | F152: Upper CI | G152: ='Alcohol guidelines chart'!S39 -> 59.54 | H152: =INDEX('Alcohol guidelines chart'!$C$32:$S$46, 8, MATCH('Summary By Local Authority'!$H$144, 'Alcohol guidelines chart'!$C$32:$S$32, 0)) -> 56.156
A153: Renfrewshire | B153: No long-term illness | C153: ='Long-term illness chart'!I42 -> 50.587 | D153: =INDEX( 'Long-term illness chart'!$C$34:$S$48, 9, MATCH('Summary By Local Authority'!$D$144, 'Long-term illness chart'!$C$34:$S$34, 0 )) -> 60.565 | F153: Hazardous/harmful | G153: ='Alcohol guidelines chart'!S40 -> 25.26 | H153: =INDEX('Alcohol guidelines chart'!$C$32:$S$46, 9, MATCH('Summary By Local Authority'!$H$144, 'Alcohol guidelines chart'!$C$32:$S$32, 0)) -> 28.572
A154: Scottish Borders | B154: Lower CI | C154: ='Long-term illness chart'!I43 -> 44.66 | D154: =INDEX( 'Long-term illness chart'!$C$34:$S$48, 10, MATCH('Summary By Local Authority'!$D$144, 'Long-term illness chart'!$C$34:$S$34, 0 )) -> 56.088 | F154: Lower CI | G154: ='Alcohol guidelines chart'!S41 -> 24.37 | H154: =INDEX('Alcohol guidelines chart'!$C$32:$S$46, 10, MATCH('Summary By Local Authority'!$H$144, 'Alcohol guidelines chart'!$C$32:$S$32, 0)) -> 24.84
A155: Shetland Islands | B155: Upper CI | C155: ='Long-term illness chart'!I44 -> 56.514 | D155: =INDEX( 'Long-term illness chart'!$C$34:$S$48, 11, MATCH('Summary By Local Authority'!$D$144, 'Long-term illness chart'!$C$34:$S$34, 0 )) -> 65.041 | F155: Upper CI | G155: ='Alcohol guidelines chart'!S42 -> 26.16 | H155: =INDEX('Alcohol guidelines chart'!$C$32:$S$46, 11, MATCH('Summary By Local Authority'!$H$144, 'Alcohol guidelines chart'!$C$32:$S$32, 0)) -> 32.303
A156: South Ayrshire
A157: South Lanarkshire | B157: Limiting long-term illness | C157: =C147-C148 -> 4.859 | D157: =INDEX( 'Long-term illness chart'!$C$34:$S$48, 13, MATCH('Summary By Local Authority'!$D$144, 'Long-term illness chart'!$C$34:$S$34, 0 )) -> 3.713 | F157: Non drinker | G157: ='Alcohol guidelines chart'!S44 -> 0.76 | H157: =INDEX('Alcohol guidelines chart'!$C$32:$S$46, 13, MATCH('Summary By Local Authority'!$H$144, 'Alcohol guidelines chart'!$C$32:$S$32, 0)) -> 3.251
A158: Stirling | B158: Non-limiting long-term illness | C158: =C150-C151 -> 3.021 | D158: =INDEX( 'Long-term illness chart'!$C$34:$S$48, 14, MATCH('Summary By Local Authority'!$D$144, 'Long-term illness chart'!$C$34:$S$34, 0 )) -> 2.66 | F158: Moderate | G158: ='Alcohol guidelines chart'!S45 -> 0.98 | H158: =INDEX('Alcohol guidelines chart'!$C$32:$S$46, 14, MATCH('Summary By Local Authority'!$H$144, 'Alcohol guidelines chart'!$C$32:$S$32, 0)) -> 4.477
A159: West Dunbartonshire | B159: No long-term illness | C159: =C153-C154 -> 5.927 | D159: =INDEX( 'Long-term illness chart'!$C$34:$S$48, 15, MATCH('Summary By Local Authority'!$D$144, 'Long-term illness chart'!$C$34:$S$34, 0 )) -> 4.477 | F159: Hazardous/harmful | G159: ='Alcohol guidelines chart'!S46 -> 0.89 | H159: =INDEX('Alcohol guidelines chart'!$C$32:$S$46, 15, MATCH('Summary By Local Authority'!$H$144, 'Alcohol guidelines chart'!$C$32:$S$32, 0)) -> 3.732
A160: West Lothian
C161: Scotland | D161: =A128 -> Aberdeen City | G161: Scotland | H161: =A128 -> Aberdeen City | K161: Scotland | L161: =A128 -> Aberdeen City
B162: Smoking | F162: Overweight | J162: Fruit & Veg
B163: Never smoked, or ex-occasional | C163: ='Smoking chart'!S36 -> 54.88 | D163: =INDEX( 'Smoking chart'!$C$34:$S$48, 3, MATCH('Summary By Local Authority'!$D$161, 'Smoking chart'!$C$34:$S$34, 0)) -> 57.224 | F163: Overweight (including obese) | G163: ='Overweight chart'!Q36 -> 64.94 | H163: =INDEX('Overweight chart'!$C$34:$Q$40, 3, MATCH('Summary By Local Authority'!$H$161, 'Overweight chart'!$C$34:$Q$34, 0)) -> 60.577 | J163: None | K163: ='Fruit and veg chart'!S36 -> 10.68 | L163: =INDEX('Fruit and veg chart'!$C$34:$S$48, 3, MATCH('Summary By Local Authority'!$L$161, 'Fruit and veg chart'!$C$34:$S$34, 0)) -> 8.782
B164: Lower CI | C164: ='Smoking chart'!S37 -> 53.83 | D164: =INDEX( 'Smoking chart'!$C$34:$S$48, 4, MATCH('Summary By Local Authority'!$D$161, 'Smoking chart'!$C$34:$S$34, 0)) -> 52.986 | F164: Lower CI | G164: ='Overweight chart'!Q37 -> 63.84 | H164: =INDEX('Overweight chart'!$C$34:$Q$40, 4, MATCH('Summary By Local Authority'!$H$161, 'Overweight chart'!$C$34:$Q$34, 0)) -> 55.98 | J164: Lower CI | K164: ='Fruit and veg chart'!S37 -> 10.02 | L164: =INDEX('Fruit and veg chart'!$C$34:$S$48, 4, MATCH('Summary By Local Authority'!$L$161, 'Fruit and veg chart'!$C$34:$S$34, 0)) -> 6.616
B165: Upper CI | C165: ='Smoking chart'!S38 -> 55.92 | D165: =INDEX( 'Smoking chart'!$C$34:$S$48, 5, MATCH('Summary By Local Authority'!$D$161, 'Smoking chart'!$C$34:$S$34, 0)) -> 61.463 | F165: Upper CI | G165: ='Overweight chart'!Q38 -> 66.04 | H165: =INDEX('Overweight chart'!$C$34:$Q$40, 5, MATCH('Summary By Local Authority'!$H$161, 'Overweight chart'!$C$34:$Q$34, 0)) -> 65.175 | J165: Upper CI | K165: ='Fruit and veg chart'!S38 -> 11.34 | L165: =INDEX('Fruit and veg chart'!$C$34:$S$48, 5, MATCH('Summary By Local Authority'!$L$161, 'Fruit and veg chart'!$C$34:$S$34, 0)) -> 10.948
B166: Ex-regular smoker, or occasional | C166: ='Smoking chart'!S39 -> 24.55 | D166: =INDEX( 'Smoking chart'!$C$34:$S$48, 6, MATCH('Summary By Local Authority'!$D$161, 'Smoking chart'!$C$34:$S$34, 0)) -> 20.055 | J166: Less than 5 portions | K166: ='Fruit and veg chart'!S39 -> 68.25 | L166: =INDEX('Fruit and veg chart'!$C$34:$S$48, 6, MATCH('Summary By Local Authority'!$L$161, 'Fruit and veg chart'!$C$34:$S$34, 0)) -> 69.745
B167: Lower CI | C167: ='Smoking chart'!S40 -> 23.75 | D167: =INDEX( 'Smoking chart'!$C$34:$S$48, 7, MATCH('Summary By Local Authority'!$D$161, 'Smoking chart'!$C$34:$S$34, 0)) -> 17.429 | F167: CLs | G167: ='Overweight chart'!Q40 -> 1.1 | H167: =INDEX('Overweight chart'!$C$34:$Q$40, 7, MATCH('Summary By Local Authority'!$H$161, 'Overweight chart'!$C$34:$Q$34, 0)) -> 4.597 | J167: Lower CI | K167: ='Fruit and veg chart'!S40 -> 67.3 | L167: =INDEX('Fruit and veg chart'!$C$34:$S$48, 7, MATCH('Summary By Local Authority'!$L$161, 'Fruit and veg chart'!$C$34:$S$34, 0)) -> 65.968
B168: Upper CI | C168: ='Smoking chart'!S41 -> 25.35 | D168: =INDEX( 'Smoking chart'!$C$34:$S$48, 8, MATCH('Summary By Local Authority'!$D$161, 'Smoking chart'!$C$34:$S$34, 0)) -> 22.682 | J168: Upper CI | K168: ='Fruit and veg chart'!S41 -> 69.21 | L168: =INDEX('Fruit and veg chart'!$C$34:$S$48, 8, MATCH('Summary By Local Authority'!$L$161, 'Fruit and veg chart'!$C$34:$S$34, 0)) -> 73.523
B169: Regular smoker | C169: ='Smoking chart'!S42 -> 20.58 | D169: =INDEX( 'Smoking chart'!$C$34:$S$48, 9, MATCH('Summary By Local Authority'!$D$161, 'Smoking chart'!$C$34:$S$34, 0)) -> 22.72 | J169: 5 portions or more | K169: ='Fruit and veg chart'!S42 -> 21.07 | L169: =INDEX('Fruit and veg chart'!$C$34:$S$48, 9, MATCH('Summary By Local Authority'!$L$161, 'Fruit and veg chart'!$C$34:$S$34, 0)) -> 21.473
B170: Lower CI | C170: ='Smoking chart'!S43 -> 19.76 | D170: =INDEX( 'Smoking chart'!$C$34:$S$48, 10, MATCH('Summary By Local Authority'!$D$161, 'Smoking chart'!$C$34:$S$34, 0)) -> 19.215 | G170: Scotland | H170: =A128 -> Aberdeen City | J170: Lower CI | K170: ='Fruit and veg chart'!S43 -> 20.19 | L170: =INDEX('Fruit and veg chart'!$C$34:$S$48, 10, MATCH('Summary By Local Authority'!$L$161, 'Fruit and veg chart'!$C$34:$S$34, 0)) -> 18.153
B171: Upper CI | C171: ='Smoking chart'!S44 -> 21.39 | D171: =INDEX( 'Smoking chart'!$C$34:$S$48, 11, MATCH('Summary By Local Authority'!$D$161, 'Smoking chart'!$C$34:$S$34, 0)) -> 26.226 | F171: Obesity | J171: Upper CI | K171: ='Fruit and veg chart'!S44 -> 21.94 | L171: =INDEX('Fruit and veg chart'!$C$34:$S$48, 11, MATCH('Summary By Local Authority'!$L$161, 'Fruit and veg chart'!$C$34:$S$34, 0)) -> 24.793
F172: Obese | G172: ='Obesity chart'!Q36 -> 28.57 | H172: =INDEX('Obesity chart'!$C$34:$Q$40, 3, MATCH('Summary By Local Authority'!$H$170, 'Obesity chart'!$C$34:$Q$34, 0)) -> 25.026
B173: Never smoked, or ex-occasional | C173: ='Smoking chart'!S46 -> 1.05 | D173: =INDEX( 'Smoking chart'!$C$34:$S$48, 13, MATCH('Summary By Local Authority'!$D$161, 'Smoking chart'!$C$34:$S$34, 0)) -> 4.238 | F173: Lower CI | G173: ='Obesity chart'!Q37 -> 27.66 | H173: =INDEX('Obesity chart'!$C$34:$Q$40, 4, MATCH('Summary By Local Authority'!$H$170, 'Obesity chart'!$C$34:$Q$34, 0)) -> 21.436 | J173: None | K173: ='Fruit and veg chart'!S46 -> 0.66 | L173: =INDEX('Fruit and veg chart'!$C$34:$S$48, 13, MATCH('Summary By Local Authority'!$L$161, 'Fruit and veg chart'!$C$34:$S$34, 0)) -> 2.166
B174: Ex-regular smoker, or occasional | C174: ='Smoking chart'!S47 -> 0.8 | D174: =INDEX( 'Smoking chart'!$C$34:$S$48, 14, MATCH('Summary By Local Authority'!$D$161, 'Smoking chart'!$C$34:$S$34, 0)) -> 2.626 | F174: Upper CI | G174: ='Obesity chart'!Q38 -> 29.49 | H174: =INDEX('Obesity chart'!$C$34:$Q$40, 5, MATCH('Summary By Local Authority'!$H$170, 'Obesity chart'!$C$34:$Q$34, 0)) -> 28.617 | J174: Less than 5 portions | K174: ='Fruit and veg chart'!S47 -> 0.95 | L174: =INDEX('Fruit and veg chart'!$C$34:$S$48, 14, MATCH('Summary By Local Authority'!$L$161, 'Fruit and veg chart'!$C$34:$S$34, 0)) -> 3.777
B175: Regular smoker | C175: ='Smoking chart'!S48 -> 0.82 | D175: =INDEX( 'Smoking chart'!$C$34:$S$48, 15, MATCH('Summary By Local Authority'!$D$161, 'Smoking chart'!$C$34:$S$34, 0)) -> 3.505 | J175: 5 portions or more | K175: ='Fruit and veg chart'!S48 -> 0.88 | L175: =INDEX('Fruit and veg chart'!$C$34:$S$48, 15, MATCH('Summary By Local Authority'!$L$161, 'Fruit and veg chart'!$C$34:$S$34, 0)) -> 3.32
F176: CLs | G176: ='Obesity chart'!Q40 -> 0.91 | H176: =INDEX('Obesity chart'!$C$34:$Q$40, 7, MATCH('Summary By Local Authority'!$H$170, 'Obesity chart'!$C$34:$Q$34, 0)) -> 3.59
C178: Scotland | D178: =A128 -> Aberdeen City | G178: Scotland | H178: =A128 -> Aberdeen City | K178: Scotland | L178: =A128 -> Aberdeen City
B179: Mean Fruit & Veg | F179: Phys Act | J179: CVD
B180: Mean | C180: ='Mean fruit and veg chart'!S36 -> 3.16 | D180: =INDEX( 'Mean fruit and veg chart'!$C$34:$S$40, 3, MATCH('Summary By Local Authority'!$D$178, 'Mean fruit and veg chart'!$C$34:$S$34, 0 )) -> 3.287 | F180: Meets guidelines | G180: ='Physical activity chart'!S36 -> 63.62 | H180: =INDEX('Physical activity chart'!$C$34:$S$52, 3, MATCH('Summary By Local Authority'!$H$178, 'Physical activity chart'!$C$34:$S$34, 0)) -> 67.113 | J180: Has a cardiovascular condition | K180: ='CVD chart'!S36 -> 15.49 | L180: =INDEX('CVD chart'!$C$34:$S$40, 3, MATCH('Summary By Local Authority'!$L$178, 'CVD chart'!$C$34:$S$34, 0)) -> 13.936
B181: Lower CI | C181: ='Mean fruit and veg chart'!S37 -> 3.1 | D181: =INDEX( 'Mean fruit and veg chart'!$C$34:$S$40, 4, MATCH('Summary By Local Authority'!$D$178, 'Mean fruit and veg chart'!$C$34:$S$34, 0 )) -> 3.06 | F181: Lower CI | G181: ='Physical activity chart'!S37 -> 62.62 | H181: =INDEX('Physical activity chart'!$C$34:$S$52, 4, MATCH('Summary By Local Authority'!$H$178, 'Physical activity chart'!$C$34:$S$34, 0)) -> 63.029 | J181: Lower CI | K181: ='CVD chart'!S37 -> 14.85 | L181: =INDEX('CVD chart'!$C$34:$S$40, 4, MATCH('Summary By Local Authority'!$L$178, 'CVD chart'!$C$34:$S$34, 0)) -> 11.279
B182: Upper CI | C182: ='Mean fruit and veg chart'!S38 -> 3.22 | D182: =INDEX( 'Mean fruit and veg chart'!$C$34:$S$40, 5, MATCH('Summary By Local Authority'!$D$178, 'Mean fruit and veg chart'!$C$34:$S$34, 0 )) -> 3.514 | F182: Upper CI | G182: ='Physical activity chart'!S38 -> 64.62 | H182: =INDEX('Physical activity chart'!$C$34:$S$52, 5, MATCH('Summary By Local Authority'!$H$178, 'Physical activity chart'!$C$34:$S$34, 0)) -> 71.196 | J182: Upper CI | K182: ='CVD chart'!S38 -> 16.14 | L182: =INDEX('CVD chart'!$C$34:$S$40, 5, MATCH('Summary By Local Authority'!$L$178, 'CVD chart'!$C$34:$S$34, 0)) -> 16.593
F183: Some activity | G183: ='Physical activity chart'!S39 -> 11.06 | H183: =INDEX('Physical activity chart'!$C$34:$S$52, 6, MATCH('Summary By Local Authority'!$H$178, 'Physical activity chart'!$C$34:$S$34, 0)) -> 9.191
B184: CLs | C184: ='Mean fruit and veg chart'!S40 -> 0.06 | D184: =INDEX( 'Mean fruit and veg chart'!$C$34:$S$40, 7, MATCH('Summary By Local Authority'!$D$178, 'Mean fruit and veg chart'!$C$34:$S$34, 0 )) -> 0.227 | F184: Lower CI | G184: ='Physical activity chart'!S40 -> 10.49 | H184: =INDEX('Physical activity chart'!$C$34:$S$52, 7, MATCH('Summary By Local Authority'!$H$178, 'Physical activity chart'!$C$34:$S$34, 0)) -> 7.282 | J184: CLs | K184: ='CVD chart'!S40 -> 0.64 | L184: =INDEX('CVD chart'!$C$34:$S$40, 7, MATCH('Summary By Local Authority'!$L$178, 'CVD chart'!$C$34:$S$34, 0)) -> 2.657
F185: Upper CI | G185: ='Physical activity chart'!S41 -> 11.63 | H185: =INDEX('Physical activity chart'!$C$34:$S$52, 8, MATCH('Summary By Local Authority'!$H$178, 'Physical activity chart'!$C$34:$S$34, 0)) -> 11.1
F186: Low activity | G186: ='Physical activity chart'!S42 -> 4.41 | H186: =INDEX('Physical activity chart'!$C$34:$S$52, 9, MATCH('Summary By Local Authority'!$H$178, 'Physical activity chart'!$C$34:$S$34, 0)) -> 4.34
F187: Lower CI | G187: ='Physical activity chart'!S43 -> 4.04 | H187: =INDEX('Physical activity chart'!$C$34:$S$52, 10, MATCH('Summary By Local Authority'!$H$178, 'Physical activity chart'!$C$34:$S$34, 0)) -> 3.184
F188: Upper CI | G188: ='Physical activity chart'!S44 -> 4.77 | H188: =INDEX('Physical activity chart'!$C$34:$S$52, 11, MATCH('Summary By Local Authority'!$H$178, 'Physical activity chart'!$C$34:$S$34, 0)) -> 5.495
F189: Very low activity | G189: ='Physical activity chart'!S45 -> 20.92 | H189: =INDEX('Physical activity chart'!$C$34:$S$52, 12, MATCH('Summary By Local Authority'!$H$178, 'Physical activity chart'!$C$34:$S$34, 0)) -> 19.356
F190: Lower CI | G190: ='Physical activity chart'!S46 -> 20.09 | H190: =INDEX('Physical activity chart'!$C$34:$S$52, 13, MATCH('Summary By Local Authority'!$H$178, 'Physical activity chart'!$C$34:$S$34, 0)) -> 16.405
F191: Upper CI | G191: ='Physical activity chart'!S47 -> 21.75 | H191: =INDEX('Physical activity chart'!$C$34:$S$52, 14, MATCH('Summary By Local Authority'!$H$178, 'Physical activity chart'!$C$34:$S$34, 0)) -> 22.308
G192: ='Physical activity chart'!S48 -> 0
F193: Meets guidelines | G193: ='Physical activity chart'!S49 -> 1 | H193: =INDEX('Physical activity chart'!$C$34:$S$52, 16, MATCH('Summary By Local Authority'!$H$178, 'Physical activity chart'!$C$34:$S$34, 0)) -> 4.084
F194: Some activity | G194: ='Physical activity chart'!S50 -> 0.57 | H194: =INDEX('Physical activity chart'!$C$34:$S$52, 17, MATCH('Summary By Local Authority'!$H$178, 'Physical activity chart'!$C$34:$S$34, 0)) -> 1.909
F195: Low activity | G195: ='Physical activity chart'!S51 -> 0.37 | H195: =INDEX('Physical activity chart'!$C$34:$S$52, 18, MATCH('Summary By Local Authority'!$H$178, 'Physical activity chart'!$C$34:$S$34, 0)) -> 1.156
F196: Very low activity | G196: ='Physical activity chart'!S52 -> 0.83 | H196: =INDEX('Physical activity chart'!$C$34:$S$52, 19, MATCH('Summary By Local Authority'!$H$178, 'Physical activity chart'!$C$34:$S$34, 0)) -> 2.951

Sheet Self-assessed general health
A1: Self-assessed general health, by Local Authority and sex | N1: INDEX
A4: Aged 16 and over | B4: PLEASE NOTE: Where the sample size for a Local Authority (which does not correspond fully to an NHS board) was below 500, the result has been suppressed. This is shown here by *. | P4: 2014/2015/2016/2017 combined
A5: Self-assessed general health | B5: Local Authority
B6: Aberdeen City | C6: Aberdeenshire | D6: Angus | E6: Argyll & Bute | F6: Clackmannanshire | G6: Dumfries & Galloway | H6: Dundee City | I6: East Ayrshire | J6: East Dunbartonshire | K6: East Lothian | L6: East Renfrewshire | M6: Edinburgh, City of | N6: Falkirk | O6: Fife | P6: Glasgow City | Q6: Highland | R6: Inverclyde | S6: Midlothian | T6: Moray | U6: Na h-Eileanan Siar | V6: North Ayrshire | W6: North Lanarkshire | X6: Orkney Islands | Y6: Perth & Kinross | Z6: Renfrewshire | AA6: Scottish Borders | AB6: Shetland Islands | AC6: South Ayrshire | AD6: South Lanarkshire | AE6: Stirling | AF6: West Dunbartonshire | AG6: West Lothian | AH6: Scotland
B7: % | C7: % | D7: % | E7: % | F7: % | G7: % | H7: % | I7: % | J7: % | K7: % | L7: % | M7: % | N7: % | O7: % | P7: % | Q7: % | R7: % | S7: % | T7: % | U7: % | V7: % | W7: % | X7: % | Y7: % | Z7: % | AA7: % | AB7: % | AC7: % | AD7: % | AE7: % | AF7: % | AG7: % | AH7: %
A8: Men
A9: Very good/good | B9: 80.761 | C9: 77.05 | D9: * | E9: * | F9: * | G9: * | H9: * | I9: 69.769 | J9: * | K9: * | L9: * | M9: 80.61 | N9: * | O9: 72.28 | P9: 69.88 | Q9: 77.207 | R9: * | S9: * | T9: * | U9: 69.421 | V9: 68.396 | W9: 69.33 | X9: 82.012 | Y9: * | Z9: * | AA9: 77.258 | AB9: 75.198 | AC9: 72.683 | AD9: 74.08 | AE9: * | AF9: * | AG9: * | AH9: 73.9
A10: Lower CI | B10: 76.18 | C10: 72.75 | D10: * | E10: * | F10: * | G10: * | H10: * | I10: 64.166 | J10: * | K10: * | L10: * | M10: 77 | N10: * | O10: 69.01 | P10: 65.4 | Q10: 71.648 | R10: * | S10: * | T10: * | U10: 62.71 | V10: 63.131 | W10: 64.59 | X10: 77.819 | Y10: * | Z10: * | AA10: 71.026 | AB10: 70.038 | AC10: 64.534 | AD10: 69.63 | AE10: * | AF10: * | AG10: * | AH10: 72.67
A11: Upper CI | B11: 85.342 | C11: 81.35 | D11: * | E11: * | F11: * | G11: * | H11: * | I11: 75.373 | J11: * | K11: * | L11: * | M11: 84.23 | N11: * | O11: 75.54 | P11: 74.36 | Q11: 82.767 | R11: * | S11: * | T11: * | U11: 76.133 | V11: 73.662 | W11: 74.07 | X11: 86.204 | Y11: * | Z11: * | AA11: 83.489 | AB11: 80.358 | AC11: 80.832 | AD11: 78.53 | AE11: * | AF11: * | AG11: * | AH11: 75.13
A12: Fair | B12: 13.315 | C12: 17.18 | D12: * | E12: * | F12: * | G12: * | H12: * | I12: 19.992 | J12: * | K12: * | L12: * | M12: 14.33 | N12: * | O12: 19.52 | P12: 19.03 | Q12: 16.601 | R12: * | S12: * | T12: * | U12: 25.967 | V12: 21.542 | W12: 20.16 | X12: 14.843 | Y12: * | Z12: * | AA12: 15.424 | AB12: 18.354 | AC12: 17.406 | AD12: 16.38 | AE12: * | AF12: * | AG12: * | AH12: 18.1
A13: Lower CI | B13: 9.839 | C13: 13.58 | D13: * | E13: * | F13: * | G13: * | H13: * | I13: 15.066 | J13: * | K13: * | L13: * | M13: 11.18 | N13: * | O13: 16.88 | P13: 15.51 | Q13: 11.875 | R13: * | S13: * | T13: * | U13: 19.237 | V13: 16.734 | W13: 15.91 | X13: 10.556 | Y13: * | Z13: * | AA13: 10.864 | AB13: 14.202 | AC13: 11.377 | AD13: 12.91 | AE13: * | AF13: * | AG13: * | AH13: 17.05
A14: Upper CI | B14: 16.791 | C14: 20.78 | D14: * | E14: * | F14: * | G14: * | H14: * | I14: 24.918 | J14: * | K14: * | L14: * | M14: 17.49 | N14: * | O14: 22.17 | P14: 22.55 | Q14: 21.327 | R14: * | S14: * | T14: * | U14: 32.696 | V14: 26.351 | W14: 24.42 | X14: 19.129 | Y14: * | Z14: * | AA14: 19.985 | AB14: 22.506 | AC14: 23.434 | AD14: 19.85 | AE14: * | AF14: * | AG14: * | AH14: 19.16
A15: Bad/very bad | B15: 5.924 | C15: 5.77 | D15: * | E15: * | F15: * | G15: * | H15: * | I15: 10.238 | J15: * | K15: * | L15: * | M15: 5.05 | N15: * | O15: 8.2 | P15: 11.09 | Q15: 6.191 | R15: * | S15: * | T15: * | U15: 4.612 | V15: 10.061 | W15: 10.51 | X15: 3.146 | Y15: * | Z15: * | AA15: 7.318 | AB15: 6.448 | AC15: 9.911 | AD15: 9.54 | AE15: * | AF15: * | AG15: * | AH15: 8
A16: Lower CI | B16: 3.518 | C16: 3.35 | D16: * | E16: * | F16: * | G16: * | H16: * | I16: 5.893 | J16: * | K16: * | L16: * | M16: 3.21 | N16: * | O16: 6.27 | P16: 8.37 | Q16: 3.329 | R16: * | S16: * | T16: * | U16: 2.111 | V16: 6.373 | W16: 7.13 | X16: 1.121 | Y16: * | Z16: * | AA16: 3.162 | AB16: 3.531 | AC16: 4.869 | AD16: 5.99 | AE16: * | AF16: * | AG16: * | AH16: 7.28
A17: Upper CI | B17: 8.331 | C17: 8.18 | D17: * | E17: * | F17: * | G17: * | H17: * | I17: 14.584 | J17: * | K17: * | L17: * | M17: 6.89 | N17: * | O17: 10.13 | P17: 13.81 | Q17: 9.054 | R17: * | S17: * | T17: * | U17: 7.112 | V17: 13.749 | W17: 13.89 | X17: 5.171 | Y17: * | Z17: * | AA17: 11.473 | AB17: 9.366 | AC17: 14.954 | AD17: 13.1 | AE17: * | AF17: * | AG17: * | AH17: 8.71
A19: Women
A20: Very good/good | B20: 76.282 | C20: 79.57 | D20: * | E20: * | F20: * | G20: * | H20: * | I20: 66.887 | J20: * | K20: * | L20: * | M20: 82.43 | N20: * | O20: 71.86 | P20: 66.41 | Q20: 73.793 | R20: * | S20: * | T20: * | U20: 71.387 | V20: 66.488 | W20: 70.81 | X20: 82.8 | Y20: * | Z20: * | AA20: 76.242 | AB20: 76.335 | AC20: 74.441 | AD20: 72.78 | AE20: * | AF20: * | AG20: * | AH20: 73.15
A21: Lower CI | B21: 71.906 | C21: 76.13 | D21: * | E21: * | F21: * | G21: * | H21: * | I21: 61.202 | J21: * | K21: * | L21: * | M21: 79.46 | N21: * | O21: 68.92 | P21: 62.57 | Q21: 68.394 | R21: * | S21: * | T21: * | U21: 66.522 | V21: 60.214 | W21: 66.34 | X21: 77.822 | Y21: * | Z21: * | AA21: 71.079 | AB21: 71.071 | AC21: 69.742 | AD21: 67.95 | AE21: * | AF21: * | AG21: * | AH21: 72.1
A22: Upper CI | B22: 80.658 | C22: 83.02 | D22: * | E22: * | F22: * | G22: * | H22: * | I22: 72.572 | J22: * | K22: * | L22: * | M22: 85.39 | N22: * | O22: 74.8 | P22: 70.25 | Q22: 79.192 | R22: * | S22: * | T22: * | U22: 76.251 | V22: 72.762 | W22: 75.28 | X22: 87.778 | Y22: * | Z22: * | AA22: 81.404 | AB22: 81.599 | AC22: 79.14 | AD22: 77.6 | AE22: * | AF22: * | AG22: * | AH22: 74.19
A23: Fair | B23: 17.978 | C23: 15.96 | D23: * | E23: * | F23: * | G23: * | H23: * | I23: 20.149 | J23: * | K23: * | L23: * | M23: 13.31 | N23: * | O23: 19.84 | P23: 21.37 | Q23: 18.557 | R23: * | S23: * | T23: * | U23: 22.553 | V23: 20.956 | W23: 17.46 | X23: 12.964 | Y23: * | Z23: * | AA23: 18.346 | AB23: 16.966 | AC23: 16.777 | AD23: 19.21 | AE23: * | AF23: * | AG23: * | AH23: 18.28
A24: Lower CI | B24: 13.634 | C24: 12.73 | D24: * | E24: * | F24: * | G24: * | H24: * | I24: 15.593 | J24: * | K24: * | L24: * | M24: 10.53 | N24: * | O24: 17.29 | P24: 18.46 | Q24: 13.452 | R24: * | S24: * | T24: * | U24: 17.309 | V24: 16.339 | W24: 14.38 | X24: 9.025 | Y24: * | Z24: * | AA24: 13.078 | AB24: 12.388 | AC24: 12.275 | AD24: 15.4 | AE24: * | AF24: * | AG24: * | AH24: 17.39
A25: Upper CI | B25: 22.322 | C25: 19.18 | D25: * | E25: * | F25: * | G25: * | H25: * | I25: 24.704 | J25: * | K25: * | L25: * | M25: 16.08 | N25: * | O25: 22.39 | P25: 24.27 | Q25: 23.662 | R25: * | S25: * | T25: * | U25: 27.797 | V25: 25.573 | W25: 20.55 | X25: 16.903 | Y25: * | Z25: * | AA25: 23.614 | AB25: 21.543 | AC25: 21.28 | AD25: 23.03 | AE25: * | AF25: * | AG25: * | AH25: 19.17
A26: Bad/very bad | B26: 5.74 | C26: 4.47 | D26: * | E26: * | F26: * | G26: * | H26: * | I26: 12.964 | J26: * | K26: * | L26: * | M26: 4.27 | N26: * | O26: 8.3 | P26: 12.22 | Q26: 7.65 | R26: * | S26: * | T26: * | U26: 6.06 | V26: 12.556 | W26: 11.72 | X26: 4.236 | Y26: * | Z26: * | AA26: 5.412 | AB26: 6.699 | AC26: 8.781 | AD26: 8.01 | AE26: * | AF26: * | AG26: * | AH26: 8.57
A27: Lower CI | B27: 3.622 | C27: 2.89 | D27: * | E27: * | F27: * | G27: * | H27: * | I27: 9.755 | J27: * | K27: * | L27: * | M27: 2.88 | N27: * | O27: 6.75 | P27: 9.72 | Q27: 4.315 | R27: * | S27: * | T27: * | U27: 3.654 | V27: 9.579 | W27: 8.74 | X27: 1.592 | Y27: * | Z27: * | AA27: 2.112 | AB27: 3.504 | AC27: 6.234 | AD27: 5.33 | AE27: * | AF27: * | AG27: * | AH27: 7.95
A28: Upper CI | B28: 7.857 | C28: 6.05 | D28: * | E28: * | F28: * | G28: * | H28: * | I28: 16.173 | J28: * | K28: * | L28: * | M28: 5.66 | N28: * | O28: 9.85 | P28: 14.73 | Q28: 10.984 | R28: * | S28: * | T28: * | U28: 8.466 | V28: 15.532 | W28: 14.7 | X28: 6.881 | Y28: * | Z28: * | AA28: 8.712 | AB28: 9.894 | AC28: 11.328 | AD28: 10.69 | AE28: * | AF28: * | AG28: * | AH28: 9.19
A30: All Adults
A31: Very good/good | B31: 78.481 | C31: 78.36 | D31: * | E31: * | F31: * | G31: * | H31: * | I31: 68.154 | J31: * | K31: * | L31: * | M31: 81.51 | N31: * | O31: 72.06 | P31: 68.06 | Q31: 75.426 | R31: * | S31: * | T31: * | U31: 70.394 | V31: 67.38 | W31: 70.12 | X31: 82.397 | Y31: * | Z31: * | AA31: 76.703 | AB31: 75.746 | AC31: 73.613 | AD31: 73.41 | AE31: * | AF31: * | AG31: * | AH31: 73.51
A32: Lower CI | B32: 74.705 | C32: 75.27 | D32: * | E32: * | F32: * | G32: * | H32: * | I32: 63.39 | J32: * | K32: * | L32: * | M32: 79.09 | N32: * | O32: 69.68 | P32: 64.77 | Q32: 71.086 | R32: * | S32: * | T32: * | U32: 65.664 | V32: 62.646 | W32: 66.73 | X32: 78.788 | Y32: * | Z32: * | AA32: 72.512 | AB32: 72.029 | AC32: 68.268 | AD32: 69.97 | AE32: * | AF32: * | AG32: * | AH32: 72.64
A33: Upper CI | B33: 82.257 | C33: 81.44 | D33: * | E33: * | F33: * | G33: * | H33: * | I33: 72.918 | J33: * | K33: * | L33: * | M33: 83.94 | N33: * | O33: 74.45 | P33: 71.35 | Q33: 79.767 | R33: * | S33: * | T33: * | U33: 75.124 | V33: 72.115 | W33: 73.51 | X33: 86.006 | Y33: * | Z33: * | AA33: 80.894 | AB33: 79.462 | AC33: 78.959 | AD33: 76.85 | AE33: * | AF33: * | AG33: * | AH33: 74.38
A34: Fair | B34: 15.688 | C34: 16.55 | D34: * | E34: * | F34: * | G34: * | H34: * | I34: 20.08 | J34: * | K34: * | L34: * | M34: 13.82 | N34: * | O34: 19.68 | P34: 20.26 | Q34: 17.622 | R34: * | S34: * | T34: * | U34: 24.278 | V34: 21.23 | W34: 18.72 | X34: 13.924 | Y34: * | Z34: * | AA34: 17.019 | AB34: 17.685 | AC34: 17.073 | AD34: 17.83 | AE34: * | AF34: * | AG34: * | AH34: 18.2
A35: Lower CI | B35: 12.487 | C35: 14.03 | D35: * | E35: * | F35: * | G35: * | H35: * | I35: 16.315 | J35: * | K35: * | L35: * | M35: 11.8 | N35: * | O35: 17.79 | P35: 17.88 | Q35: 13.898 | R35: * | S35: * | T35: * | U35: 19.386 | V35: 17.473 | W35: 16.16 | X35: 10.808 | Y35: * | Z35: * | AA35: 13.308 | AB35: 14.843 | AC35: 12.961 | AD35: 15.1 | AE35: * | AF35: * | AG35: * | AH35: 17.49
A36: Upper CI | B36: 18.89 | C36: 19.06 | D36: * | E36: * | F36: * | G36: * | H36: * | I36: 23.845 | J36: * | K36: * | L36: * | M36: 15.85 | N36: * | O36: 21.58 | P36: 22.63 | Q36: 21.345 | R36: * | S36: * | T36: * | U36: 29.17 | V36: 24.987 | W36: 21.28 | X36: 17.04 | Y36: * | Z36: * | AA36: 20.73 | AB36: 20.527 | AC36: 21.186 | AD36: 20.57 | AE36: * | AF36: * | AG36: * | AH36: 18.91
A37: Bad/very bad | B37: 5.83 | C37: 5.1 | D37: * | E37: * | F37: * | G37: * | H37: * | I37: 11.766 | J37: * | K37: * | L37: * | M37: 4.66 | N37: * | O37: 8.25 | P37: 11.68 | Q37: 6.952 | R37: * | S37: * | T37: * | U37: 5.328 | V37: 11.39 | W37: 11.16 | X37: 3.679 | Y37: * | Z37: * | AA37: 6.278 | AB37: 6.569 | AC37: 9.313 | AD37: 8.76 | AE37: * | AF37: * | AG37: * | AH37: 8.3
A38: Lower CI | B38: 4.331 | C38: 3.45 | D38: * | E38: * | F38: * | G38: * | H38: * | I38: 9.041 | J38: * | K38: * | L38: * | M38: 3.47 | N38: * | O38: 6.89 | P38: 9.7 | Q38: 4.552 | R38: * | S38: * | T38: * | U38: 3.553 | V38: 8.819 | W38: 8.68 | X38: 1.932 | Y38: * | Z38: * | AA38: 3.221 | AB38: 4.184 | AC38: 6.598 | AD38: 6.52 | AE38: * | AF38: * | AG38: * | AH38: 7.79
A39: Upper CI | B39: 7.33 | C39: 6.74 | D39: * | E39: * | F39: * | G39: * | H39: * | I39: 14.492 | J39: * | K39: * | L39: * | M39: 5.86 | N39: * | O39: 9.62 | P39: 13.67 | Q39: 9.352 | R39: * | S39: * | T39: * | U39: 7.104 | V39: 13.96 | W39: 13.63 | X39: 5.426 | Y39: * | Z39: * | AA39: 9.335 | AB39: 8.954 | AC39: 12.029 | AD39: 10.99 | AE39: * | AF39: * | AG39: * | AH39: 8.81
A42: Bases (weighted):
A43: Men | B43: 361.119 | C43: 404.94 | D43: 170.13 | E43: 147.951 | F43: 71.728 | G43: 238.321 | H43: 241.857 | I43: 175.553 | J43: 189.682 | K43: 160.383 | L43: 135.307 | M43: 834.15 | N43: 267.424 | O43: 588.94 | P43: 934.5 | Q43: 362.144 | R43: 103.303 | S43: 123.743 | T43: 151.74 | U43: 45.339 | V43: 216.421 | W43: 567.26 | X43: 37.337 | Y43: 222.884 | Z43: 243.813 | AA43: 172.523 | AB43: 39.284 | AC43: 170.831 | AD43: 550.8 | AE43: 135.05 | AF43: 113.716 | AG43: 314.788 | AH43: 8492.95
A44: Women | B44: 374.389 | C44: 436.01 | D44: 198.7 | E44: 148.815 | F44: 86.173 | G44: 261.559 | H44: 271.726 | I44: 223.875 | J44: 180.321 | K44: 182.716 | L44: 142.356 | M44: 817.43 | N44: 256.879 | O44: 613.42 | P44: 1034.56 | Q44: 394.91 | R44: 146.48 | S44: 135.534 | T44: 187.219 | U44: 44.388 | V44: 246.538 | W44: 652.59 | X44: 35.742 | Y44: 250.133 | Z44: 248.838 | AA44: 207.301 | AB44: 36.496 | AC44: 191.912 | AD44: 580.86 | AE44: 167.888 | AF44: 127.016 | AG44: 292.096 | AH44: 9174.89
A45: All Adults | B45: 735.508 | C45: 840.95 | D45: 368.831 | E45: 296.766 | F45: 157.901 | G45: 499.879 | H45: 513.583 | I45: 399.427 | J45: 370.003 | K45: 343.099 | L45: 277.663 | M45: 1651.58 | N45: 524.303 | O45: 1202.36 | P45: 1969.06 | Q45: 757.054 | R45: 249.784 | S45: 259.277 | T45: 338.959 | U45: 89.726 | V45: 462.959 | W45: 1219.85 | X45: 73.079 | Y45: 473.017 | Z45: 492.652 | AA45: 379.825 | AB45: 75.78 | AC45: 362.743 | AD45: 1131.66 | AE45: 302.938 | AF45: 240.732 | AG45: 606.884 | AH45: 17667.84
A46: Bases (unweighted)
A47: Men | B47: 407 | C47: 484 | D47: 114 | E47: 110 | F47: 46 | G47: 205 | H47: 144 | I47: 275 | J47: 144 | K47: 96 | L47: 109 | M47: 536 | N47: 161 | O47: 859 | P47: 629 | Q47: 235 | R47: 81 | S47: 81 | T47: 178 | U47: 280 | V47: 314 | W47: 340 | X47: 241 | Y47: 171 | Z47: 168 | AA47: 191 | AB47: 243 | AC47: 260 | AD47: 356 | AE47: 92 | AF47: 82 | AG47: 171 | AH47: 7803
A48: Women | B48: 503 | C48: 586 | D48: 146 | E48: 133 | F48: 66 | G48: 244 | H48: 180 | I48: 373 | J48: 175 | K48: 119 | L48: 139 | M48: 639 | N48: 189 | O48: 1058 | P48: 886 | Q48: 313 | R48: 123 | S48: 106 | T48: 245 | U48: 318 | V48: 389 | W48: 488 | X48: 264 | Y48: 207 | Z48: 208 | AA48: 259 | AB48: 265 | AC48: 330 | AD48: 463 | AE48: 134 | AF48: 112 | AG48: 206 | AH48: 9866
A49: All Adults | B49: 910 | C49: 1070 | D49: 260 | E49: 243 | F49: 112 | G49: 449 | H49: 324 | I49: 648 | J49: 319 | K49: 215 | L49: 248 | M49: 1175 | N49: 350 | O49: 1917 | P49: 1515 | Q49: 548 | R49: 204 | S49: 187 | T49: 423 | U49: 598 | V49: 703 | W49: 828 | X49: 505 | Y49: 378 | Z49: 376 | AA49: 450 | AB49: 508 | AC49: 590 | AD49: 819 | AE49: 226 | AF49: 194 | AG49: 377 | AH49: 17669

Sheet SAH chart
R1: INDEX
C31: Source: Scottish Health Survey
C34: Aberdeen City | D34: Aberdeenshire | E34: East Ayrshire | F34: Edinburgh, City of | G34: Fife | H34: Glasgow City | I34: Highland | J34: Na h-Eileanan Siar | K34: North Ayrshire | L34: North Lanarkshire | M34: Orkney Islands | N34: Scottish Borders | O34: Shetland Islands | P34: South Ayrshire | Q34: South Lanarkshire | S34: Scotland
B35: All Adults
B36: Very good/good | C36: ='Self-assessed general health'!B31 -> 78.481 | D36: ='Self-assessed general health'!C31 -> 78.36 | E36: ='Self-assessed general health'!I31 -> 68.154 | F36: ='Self-assessed general health'!M31 -> 81.51 | G36: ='Self-assessed general health'!O31 -> 72.06 | H36: ='Self-assessed general health'!P31 -> 68.06 | I36: ='Self-assessed general health'!Q31 -> 75.426 | J36: ='Self-assessed general health'!U31 -> 70.394 | K36: ='Self-assessed general health'!V31 -> 67.38 | L36: ='Self-assessed general health'!W31 -> 70.12 | M36: ='Self-assessed general health'!X31 -> 82.397 | N36: ='Self-assessed general health'!AA31 -> 76.703 | O36: ='Self-assessed general health'!AB31 -> 75.746 | P36: ='Self-assessed general health'!AC31 -> 73.613 | Q36: ='Self-assessed general health'!AD31 -> 73.41 | S36: ='Self-assessed general health'!AH31 -> 73.51
B37: Lower CI | C37: ='Self-assessed general health'!B32 -> 74.705 | D37: ='Self-assessed general health'!C32 -> 75.27 | E37: ='Self-assessed general health'!I32 -> 63.39 | F37: ='Self-assessed general health'!M32 -> 79.09 | G37: ='Self-assessed general health'!O32 -> 69.68 | H37: ='Self-assessed general health'!P32 -> 64.77 | I37: ='Self-assessed general health'!Q32 -> 71.086 | J37: ='Self-assessed general health'!U32 -> 65.664 | K37: ='Self-assessed general health'!V32 -> 62.646 | L37: ='Self-assessed general health'!W32 -> 66.73 | M37: ='Self-assessed general health'!X32 -> 78.788 | N37: ='Self-assessed general health'!AA32 -> 72.512 | O37: ='Self-assessed general health'!AB32 -> 72.029 | P37: ='Self-assessed general health'!AC32 -> 68.268 | Q37: ='Self-assessed general health'!AD32 -> 69.97 | S37: ='Self-assessed general health'!AH32 -> 72.64
B38: Upper CI | C38: ='Self-assessed general health'!B33 -> 82.257 | D38: ='Self-assessed general health'!C33 -> 81.44 | E38: ='Self-assessed general health'!I33 -> 72.918 | F38: ='Self-assessed general health'!M33 -> 83.94 | G38: ='Self-assessed general health'!O33 -> 74.45 | H38: ='Self-assessed general health'!P33 -> 71.35 | I38: ='Self-assessed general health'!Q33 -> 79.767 | J38: ='Self-assessed general health'!U33 -> 75.124 | K38: ='Self-assessed general health'!V33 -> 72.115 | L38: ='Self-assessed general health'!W33 -> 73.51 | M38: ='Self-assessed general health'!X33 -> 86.006 | N38: ='Self-assessed general health'!AA33 -> 80.894 | O38: ='Self-assessed general health'!AB33 -> 79.462 | P38: ='Self-assessed general health'!AC33 -> 78.959 | Q38: ='Self-assessed general health'!AD33 -> 76.85 | S38: ='Self-assessed general health'!AH33 -> 74.38
B39: Fair | C39: ='Self-assessed general health'!B34 -> 15.688 | D39: ='Self-assessed general health'!C34 -> 16.55 | E39: ='Self-assessed general health'!I34 -> 20.08 | F39: ='Self-assessed general health'!M34 -> 13.82 | G39: ='Self-assessed general health'!O34 -> 19.68 | H39: ='Self-assessed general health'!P34 -> 20.26 | I39: ='Self-assessed general health'!Q34 -> 17.622 | J39: ='Self-assessed general health'!U34 -> 24.278 | K39: ='Self-assessed general health'!V34 -> 21.23 | L39: ='Self-assessed general health'!W34 -> 18.72 | M39: ='Self-assessed general health'!X34 -> 13.924 | N39: ='Self-assessed general health'!AA34 -> 17.019 | O39: ='Self-assessed general health'!AB34 -> 17.685 | P39: ='Self-assessed general health'!AC34 -> 17.073 | Q39: ='Self-assessed general health'!AD34 -> 17.83 | S39: ='Self-assessed general health'!AH34 -> 18.2
B40: Lower CI | C40: ='Self-assessed general health'!B35 -> 12.487 | D40: ='Self-assessed general health'!C35 -> 14.03 | E40: ='Self-assessed general health'!I35 -> 16.315 | F40: ='Self-assessed general health'!M35 -> 11.8 | G40: ='Self-assessed general health'!O35 -> 17.79 | H40: ='Self-assessed general health'!P35 -> 17.88 | I40: ='Self-assessed general health'!Q35 -> 13.898 | J40: ='Self-assessed general health'!U35 -> 19.386 | K40: ='Self-assessed general health'!V35 -> 17.473 | L40: ='Self-assessed general health'!W35 -> 16.16 | M40: ='Self-assessed general health'!X35 -> 10.808 | N40: ='Self-assessed general health'!AA35 -> 13.308 | O40: ='Self-assessed general health'!AB35 -> 14.843 | P40: ='Self-assessed general health'!AC35 -> 12.961 | Q40: ='Self-assessed general health'!AD35 -> 15.1 | S40: ='Self-assessed general health'!AH35 -> 17.49
B41: Upper CI | C41: ='Self-assessed general health'!B36 -> 18.89 | D41: ='Self-assessed general health'!C36 -> 19.06 | E41: ='Self-assessed general health'!I36 -> 23.845 | F41: ='Self-assessed general health'!M36 -> 15.85 | G41: ='Self-assessed general health'!O36 -> 21.58 | H41: ='Self-assessed general health'!P36 -> 22.63 | I41: ='Self-assessed general health'!Q36 -> 21.345 | J41: ='Self-assessed general health'!U36 -> 29.17 | K41: ='Self-assessed general health'!V36 -> 24.987 | L41: ='Self-assessed general health'!W36 -> 21.28 | M41: ='Self-assessed general health'!X36 -> 17.04 | N41: ='Self-assessed general health'!AA36 -> 20.73 | O41: ='Self-assessed general health'!AB36 -> 20.527 | P41: ='Self-assessed general health'!AC36 -> 21.186 | Q41: ='Self-assessed general health'!AD36 -> 20.57 | S41: ='Self-assessed general health'!AH36 -> 18.91
B42: Bad/very bad | C42: ='Self-assessed general health'!B37 -> 5.83 | D42: ='Self-assessed general health'!C37 -> 5.1 | E42: ='Self-assessed general health'!I37 -> 11.766 | F42: ='Self-assessed general health'!M37 -> 4.66 | G42: ='Self-assessed general health'!O37 -> 8.25 | H42: ='Self-assessed general health'!P37 -> 11.68 | I42: ='Self-assessed general health'!Q37 -> 6.952 | J42: ='Self-assessed general health'!U37 -> 5.328 | K42: ='Self-assessed general health'!V37 -> 11.39 | L42: ='Self-assessed general health'!W37 -> 11.16 | M42: ='Self-assessed general health'!X37 -> 3.679 | N42: ='Self-assessed general health'!AA37 -> 6.278 | O42: ='Self-assessed general health'!AB37 -> 6.569 | P42: ='Self-assessed general health'!AC37 -> 9.313 | Q42: ='Self-assessed general health'!AD37 -> 8.76 | S42: ='Self-assessed general health'!AH37 -> 8.3
B43: Lower CI | C43: ='Self-assessed general health'!B38 -> 4.331 | D43: ='Self-assessed general health'!C38 -> 3.45 | E43: ='Self-assessed general health'!I38 -> 9.041 | F43: ='Self-assessed general health'!M38 -> 3.47 | G43: ='Self-assessed general health'!O38 -> 6.89 | H43: ='Self-assessed general health'!P38 -> 9.7 | I43: ='Self-assessed general health'!Q38 -> 4.552 | J43: ='Self-assessed general health'!U38 -> 3.553 | K43: ='Self-assessed general health'!V38 -> 8.819 | L43: ='Self-assessed general health'!W38 -> 8.68 | M43: ='Self-assessed general health'!X38 -> 1.932 | N43: ='Self-assessed general health'!AA38 -> 3.221 | O43: ='Self-assessed general health'!AB38 -> 4.184 | P43: ='Self-assessed general health'!AC38 -> 6.598 | Q43: ='Self-assessed general health'!AD38 -> 6.52 | S43: ='Self-assessed general health'!AH38 -> 7.79
B44: Upper CI | C44: ='Self-assessed general health'!B39 -> 7.33 | D44: ='Self-assessed general health'!C39 -> 6.74 | E44: ='Self-assessed general health'!I39 -> 14.492 | F44: ='Self-assessed general health'!M39 -> 5.86 | G44: ='Self-assessed general health'!O39 -> 9.62 | H44: ='Self-assessed general health'!P39 -> 13.67 | I44: ='Self-assessed general health'!Q39 -> 9.352 | J44: ='Self-assessed general health'!U39 -> 7.104 | K44: ='Self-assessed general health'!V39 -> 13.96 | L44: ='Self-assessed general health'!W39 -> 13.63 | M44: ='Self-assessed general health'!X39 -> 5.426 | N44: ='Self-assessed general health'!AA39 -> 9.335 | O44: ='Self-assessed general health'!AB39 -> 8.954 | P44: ='Self-assessed general health'!AC39 -> 12.029 | Q44: ='Self-assessed general health'!AD39 -> 10.99 | S44: ='Self-assessed general health'!AH39 -> 8.81
A46: CLs | B46: Very good | C46: =C36-C37 -> 3.776 | D46: 3.09 | E46: =E36-E37 -> 4.764 | F46: =F36-F37 -> 2.42 | G46: =G36-G37 -> 2.38 | H46: =H36-H37 -> 3.29 | I46: 4.34 | J46: 4.73 | K46: 4.734 | L46: 3.39 | M46: 3.609 | N46: =N36-N37 -> 4.191 | O46: =O36-O37 -> 3.717 | P46: =P36-P37 -> 5.345 | Q46: =Q36-Q37 -> 3.44 | S46: =S36-S37 -> 0.87
B47: Fair | C47: =C39-C40 -> 3.201 | D47: 2.52 | E47: =E39-E40 -> 3.765 | F47: =F39-F40 -> 2.02 | G47: =G39-G40 -> 1.89 | H47: =H39-H40 -> 2.38 | I47: 3.724 | J47: 4.892 | K47: 3.757 | L47: 2.56 | M47: 3.116 | N47: =N39-N40 -> 3.711 | O47: =O39-O40 -> 2.842 | P47: =P39-P40 -> 4.112 | Q47: =Q39-Q40 -> 2.73 | S47: =S39-S40 -> 0.71
B48: Bad/ very bad | C48: =C42-C43 -> 1.499 | D48: 1.65 | E48: =E42-E43 -> 2.725 | F48: =F42-F43 -> 1.19 | G48: =G42-G43 -> 1.36 | H48: =H42-H43 -> 1.98 | I48: 2.4 | J48: 1.775 | K48: 2.571 | L48: 2.48 | M48: 1.747 | N48: =N42-N43 -> 3.057 | O48: =O42-O43 -> 2.385 | P48: =P42-P43 -> 2.715 | Q48: =Q42-Q43 -> 2.24 | S48: =S42-S43 -> 0.51

Sheet WEMWBS
A1: WEMWBS mean scores, by Local Authority and sex | N1: INDEX
A4: Aged 16 and over | B4: PLEASE NOTE: Where the sample size for a Local Authority (which does not correspond fully to an NHS board) was below 500, the result has been suppressed. This is shown here by *. | P4: 2014/2015/2016/2017 combined
A5: WEMWBS score | B5: Local Authority
B6: Aberdeen City | C6: Aberdeenshire | D6: Angus | E6: Argyll & Bute | F6: Clackmannanshire | G6: Dumfries & Galloway | H6: Dundee City | I6: East Ayrshire | J6: East Dunbartonshire | K6: East Lothian | L6: East Renfrewshire | M6: Edinburgh, City of | N6: Falkirk | O6: Fife | P6: Glasgow City | Q6: Highland | R6: Inverclyde | S6: Midlothian | T6: Moray | U6: Na h-Eileanan Siar | V6: North Ayrshire | W6: North Lanarkshire | X6: Orkney Islands | Y6: Perth & Kinross | Z6: Renfrewshire | AA6: Scottish Borders | AB6: Shetland Islands | AC6: South Ayrshire | AD6: South Lanarkshire | AE6: Stirling | AF6: West Dunbartonshire | AG6: West Lothian | AH6: Scotland
A7: Men
A8: Mean | B8: 50.937 | C8: 51.387 | D8: * | E8: * | F8: * | G8: * | H8: * | I8: 49.69 | J8: * | K8: * | L8: * | M8: 49.53 | N8: * | O8: 50.23 | P8: 48.74 | Q8: * | R8: * | S8: * | T8: * | U8: 51.057 | V8: 48.806 | W8: 49.86 | X8: 50.075 | Y8: * | Z8: * | AA8: 49.548 | AB8: 50.552 | AC8: 50.075 | AD8: 49.499 | AE8: * | AF8: * | AG8: * | AH8: 49.94
A9: Lower CI | B9: 50.072 | C9: 50.447 | D9: * | E9: * | F9: * | G9: * | H9: * | I9: 48.575 | J9: * | K9: * | L9: * | M9: 48.4 | N9: * | O9: 49.54 | P9: 47.93 | Q9: * | R9: * | S9: * | T9: * | U9: 49.962 | V9: 47.6 | W9: 48.77 | X9: 48.927 | Y9: * | Z9: * | AA9: 48.157 | AB9: 49.477 | AC9: 48.585 | AD9: 48.585 | AE9: * | AF9: * | AG9: * | AH9: 49.7
A10: Upper CI | B10: 51.801 | C10: 52.326 | D10: * | E10: * | F10: * | G10: * | H10: * | I10: 50.805 | J10: * | K10: * | L10: * | M10: 50.67 | N10: * | O10: 50.92 | P10: 49.55 | Q10: * | R10: * | S10: * | T10: * | U10: 52.153 | V10: 50.011 | W10: 50.96 | X10: 51.223 | Y10: * | Z10: * | AA10: 50.938 | AB10: 51.626 | AC10: 51.565 | AD10: 50.413 | AE10: * | AF10: * | AG10: * | AH10: 50.18
A12: Women
A13: Mean | B13: 50.459 | C13: 51.252 | D13: * | E13: * | F13: * | G13: * | H13: * | I13: 48.621 | J13: * | K13: * | L13: * | M13: 51.01 | N13: * | O13: 49.75 | P13: 48.3 | Q13: * | R13: * | S13: * | T13: * | U13: 51.02 | V13: 47.722 | W13: 49.8 | X13: 50.635 | Y13: * | Z13: * | AA13: 50.772 | AB13: 51.058 | AC13: 50.151 | AD13: 49.789 | AE13: * | AF13: * | AG13: * | AH13: 49.86
A14: Lower CI | B14: 49.637 | C14: 50.291 | D14: * | E14: * | F14: * | G14: * | H14: * | I14: 47.72 | J14: * | K14: * | L14: * | M14: 50.27 | N14: * | O14: 49.2 | P14: 47.55 | Q14: * | R14: * | S14: * | T14: * | U14: 49.922 | V14: 46.574 | W14: 48.88 | X14: 49.404 | Y14: * | Z14: * | AA14: 49.602 | AB14: 49.907 | AC14: 49.137 | AD14: 48.707 | AE14: * | AF14: * | AG14: * | AH14: 49.62
A15: Upper CI | B15: 51.28 | C15: 52.214 | D15: * | E15: * | F15: * | G15: * | H15: * | I15: 49.522 | J15: * | K15: * | L15: * | M15: 51.76 | N15: * | O15: 50.3 | P15: 49.06 | Q15: * | R15: * | S15: * | T15: * | U15: 52.119 | V15: 48.871 | W15: 50.72 | X15: 51.867 | Y15: * | Z15: * | AA15: 51.942 | AB15: 52.21 | AC15: 51.165 | AD15: 50.872 | AE15: * | AF15: * | AG15: * | AH15: 50.09
A17: All adults
A18: Mean | B18: 50.696 | C18: 51.317 | D18: * | E18: * | F18: * | G18: * | H18: * | I18: 49.087 | J18: * | K18: * | L18: * | M18: 50.26 | N18: * | O18: 49.98 | P18: 48.51 | Q18: * | R18: * | S18: * | T18: * | U18: 51.039 | V18: 48.225 | W18: 49.83 | X18: 50.35 | Y18: * | Z18: * | AA18: 50.211 | AB18: 50.803 | AC18: 50.116 | AD18: 49.648 | AE18: * | AF18: * | AG18: * | AH18: 49.9
A19: Lower CI | B19: 50.05 | C19: 50.491 | D19: * | E19: * | F19: * | G19: * | H19: * | I19: 48.281 | J19: * | K19: * | L19: * | M19: 49.54 | N19: * | O19: 49.51 | P19: 47.91 | Q19: * | R19: * | S19: * | T19: * | U19: 50.148 | V19: 47.349 | W19: 49.06 | X19: 49.427 | Y19: * | Z19: * | AA19: 49.272 | AB19: 49.876 | AC19: 49.036 | AD19: 48.859 | AE19: * | AF19: * | AG19: * | AH19: 49.71
A20: Upper CI | B20: 51.342 | C20: 52.142 | D20: * | E20: * | F20: * | G20: * | H20: * | I20: 49.892 | J20: * | K20: * | L20: * | M20: 50.98 | N20: * | O20: 50.45 | P20: 49.11 | Q20: * | R20: * | S20: * | T20: * | U20: 51.93 | V20: 49.1 | W20: 50.59 | X20: 51.273 | Y20: * | Z20: * | AA20: 51.15 | AB20: 51.731 | AC20: 51.196 | AD20: 50.437 | AE20: * | AF20: * | AG20: * | AH20: 50.08
A22: Bases (weighted):
A23: Men | B23: 330.665 | C23: 367.905 | D23: 164.77 | E23: 135.032 | F23: 67.113 | G23: 196.985 | H23: 225.804 | I23: 166.652 | J23: 171.286 | K23: 149.398 | L23: 119.599 | M23: 742.9 | N23: 220.273 | O23: 515.97 | P23: 801.37 | Q23: 326.612 | R23: 84.808 | S23: 109.497 | T23: 131.587 | U23: 36.325 | V23: 197.025 | W23: 489.08 | X23: 34.913 | Y23: 206.125 | Z23: 220.442 | AA23: 154.835 | AB23: 33.231 | AC23: 158.97 | AD23: 481.846 | AE23: 124.374 | AF23: 103.848 | AG23: 259.32 | AH23: 7528.56
A24: Women | B24: 336.208 | C24: 402.764 | D24: 187.087 | E24: 136.781 | F24: 75.712 | G24: 226.63 | H24: 254.207 | I24: 215.997 | J24: 165.663 | K24: 161.152 | L24: 130.486 | M24: 716.07 | N24: 229.549 | O24: 552.22 | P24: 882.7 | Q24: 350.549 | R24: 125.816 | S24: 123.832 | T24: 171.007 | U24: 36.541 | V24: 228.03 | W24: 556.68 | X24: 33.71 | Y24: 235.379 | Z24: 218.317 | AA24: 183.286 | AB24: 32.745 | AC24: 183.939 | AD24: 508.141 | AE24: 150.754 | AF24: 115.872 | AG24: 258.625 | AH24: 8186.46
A25: All Adults | B25: 666.872 | C25: 770.669 | D25: 351.857 | E25: 271.812 | F25: 142.825 | G25: 423.615 | H25: 480.011 | I25: 382.649 | J25: 336.949 | K25: 310.55 | L25: 250.085 | M25: 1458.97 | N25: 449.823 | O25: 1068.19 | P25: 1684.08 | Q25: 677.162 | R25: 210.624 | S25: 233.329 | T25: 302.593 | U25: 72.866 | V25: 425.055 | W25: 1045.76 | X25: 68.623 | Y25: 441.503 | Z25: 438.759 | AA25: 338.121 | AB25: 65.976 | AC25: 342.909 | AD25: 989.987 | AE25: 275.128 | AF25: 219.72 | AG25: 517.945 | AH25: 15715.01
A26: Bases (unweighted)
A27: Men | B27: 366 | C27: 440 | D27: 110 | E27: 100 | F27: 43 | G27: 169 | H27: 137 | I27: 262 | J27: 131 | K27: 87 | L27: 94 | M27: 479 | N27: 135 | O27: 752 | P27: 537 | Q27: 208 | R27: 67 | S27: 72 | T27: 154 | U27: 225 | V27: 284 | W27: 294 | X27: 225 | Y27: 158 | Z27: 147 | AA27: 171 | AB27: 205 | AC27: 242 | AD27: 308 | AE27: 83 | AF27: 74 | AG27: 141 | AH27: 6900
A28: Women | B28: 448 | C28: 540 | D28: 137 | E28: 122 | F28: 59 | G28: 210 | H28: 170 | I28: 359 | J28: 160 | K28: 106 | L28: 126 | M28: 563 | N28: 170 | O28: 952 | P28: 748 | Q28: 275 | R28: 107 | S28: 97 | T28: 223 | U28: 268 | V28: 358 | W28: 416 | X28: 248 | Y28: 195 | Z28: 181 | AA28: 229 | AB28: 235 | AC28: 317 | AD28: 403 | AE28: 121 | AF28: 102 | AG28: 182 | AH28: 8827
A29: All Adults | B29: 814 | C29: 980 | D29: 247 | E29: 222 | F29: 102 | G29: 379 | H29: 307 | I29: 621 | J29: 291 | K29: 193 | L29: 220 | M29: 1042 | N29: 305 | O29: 1704 | P29: 1285 | Q29: 483 | R29: 174 | S29: 169 | T29: 377 | U29: 493 | V29: 642 | W29: 710 | X29: 473 | Y29: 353 | Z29: 328 | AA29: 400 | AB29: 440 | AC29: 559 | AD29: 711 | AE29: 204 | AF29: 176 | AG29: 323 | AH29: 15727

Sheet WEMWBS chart
R1: INDEX
C31: Source: Scottish Health Survey
C34: Aberdeen City | D34: Aberdeenshire | E34: East Ayrshire | F34: Edinburgh, City of | G34: Fife | H34: Glasgow City | I34: Na h-Eileanan Siar | J34: North Ayrshire | K34: North Lanarkshire | L34: Orkney Islands | M34: Scottish Borders | N34: Shetland Islands | O34: South Ayrshire | P34: South Lanarkshire | R34: Scotland
B35: All Adults
B36: Mean | C36: =WEMWBS!B18 -> 50.696 | D36: =WEMWBS!C18 -> 51.317 | E36: =WEMWBS!I18 -> 49.087 | F36: =WEMWBS!M18 -> 50.26 | G36: =WEMWBS!O18 -> 49.98 | H36: =WEMWBS!P18 -> 48.51 | I36: =WEMWBS!U18 -> 51.039 | J36: =WEMWBS!V18 -> 48.225 | K36: =WEMWBS!W18 -> 49.83 | L36: =WEMWBS!X18 -> 50.35 | M36: =WEMWBS!AA18 -> 50.211 | N36: =WEMWBS!AB18 -> 50.803 | O36: =WEMWBS!AC18 -> 50.116 | P36: =WEMWBS!AD18 -> 49.648 | R36: =WEMWBS!AH18 -> 49.9
B37: Lower CI | C37: =WEMWBS!B19 -> 50.05 | D37: =WEMWBS!C19 -> 50.491 | E37: =WEMWBS!I19 -> 48.281 | F37: =WEMWBS!M19 -> 49.54 | G37: =WEMWBS!O19 -> 49.51 | H37: =WEMWBS!P19 -> 47.91 | I37: =WEMWBS!U19 -> 50.148 | J37: =WEMWBS!V19 -> 47.349 | K37: =WEMWBS!W19 -> 49.06 | L37: =WEMWBS!X19 -> 49.427 | M37: =WEMWBS!AA19 -> 49.272 | N37: =WEMWBS!AB19 -> 49.876 | O37: =WEMWBS!AC19 -> 49.036 | P37: =WEMWBS!AD19 -> 48.859 | R37: =WEMWBS!AH19 -> 49.71
B38: Upper CI | C38: =WEMWBS!B20 -> 51.342 | D38: =WEMWBS!C20 -> 52.142 | E38: =WEMWBS!I20 -> 49.892 | F38: =WEMWBS!M20 -> 50.98 | G38: =WEMWBS!O20 -> 50.45 | H38: =WEMWBS!P20 -> 49.11 | I38: =WEMWBS!U20 -> 51.93 | J38: =WEMWBS!V20 -> 49.1 | K38: =WEMWBS!W20 -> 50.59 | L38: =WEMWBS!X20 -> 51.273 | M38: =WEMWBS!AA20 -> 51.15 | N38: =WEMWBS!AB20 -> 51.731 | O38: =WEMWBS!AC20 -> 51.196 | P38: =WEMWBS!AD20 -> 50.437 | R38: =WEMWBS!AH20 -> 50.08
A40: CLs | C40: =C36-C37 -> 0.646 | D40: 0.826 | E40: =E36-E37 -> 0.806 | F40: =F36-F37 -> 0.72 | G40: 0.47 | H40: 0.6 | I40: 0.891 | J40: 0.876 | K40: 0.77 | L40: =L36-L37 -> 0.923 | M40: =M36-M37 -> 0.939 | N40: 0.927 | O40: =O36-O37 -> 1.08 | P40: =P36-P37 -> 0.789 | R40: =R36-R37 -> 0.19

Sheet GHQ-12 scores
A1: General Health Questionnaire (GHQ-12) scores, by Local Authority and sex | M1: INDEX
A4: Aged 16 and over | B4: PLEASE NOTE: Where the sample size for a Local Authority (which does not correspond fully to an NHS board) was below 500, the result has been suppressed. This is shown here by *. | P4: 2014/2015/2016/2017 combined
A5: GHQ-12 scores | B5: Local Authority
B6: Aberdeen City | C6: Aberdeenshire | D6: Angus | E6: Argyll & Bute | F6: Clackmannanshire | G6: Dumfries & Galloway | H6: Dundee City | I6: East Ayrshire | J6: East Dunbartonshire | K6: East Lothian | L6: East Renfrewshire | M6: Edinburgh, City of | N6: Falkirk | O6: Fife | P6: Glasgow City | Q6: Highland | R6: Inverclyde | S6: Midlothian | T6: Moray | U6: Na h-Eileanan Siar | V6: North Ayrshire | W6: North Lanarkshire | X6: Orkney Islands | Y6: Perth & Kinross | Z6: Renfrewshire | AA6: Scottish Borders | AB6: Shetland Islands | AC6: South Ayrshire | AD6: South Lanarkshire | AE6: Stirling | AF6: West Dunbartonshire | AG6: West Lothian | AH6: Scotland
B7: % | C7: % | D7: % | E7: % | F7: % | G7: % | H7: % | I7: % | J7: % | K7: % | L7: % | M7: % | N7: % | O7: % | P7: % | Q7: % | R7: % | S7: % | T7: % | U7: % | V7: % | W7: % | X7: % | Y7: % | Z7: % | AA7: % | AB7: % | AC7: % | AD7: % | AE7: % | AF7: % | AG7: % | AH7: %
A8: Men
A9: Score 0 | B9: 61.791 | C9: 72.91 | D9: * | E9: * | F9: * | G9: * | H9: * | I9: 61.552 | J9: * | K9: * | L9: * | M9: 56.93 | N9: * | O9: 67.69 | P9: 55.05 | Q9: * | R9: * | S9: * | T9: * | U9: 67.584 | V9: 65.818 | W9: 63.17 | X9: 62.289 | Y9: * | Z9: * | AA9: 62.45 | AB9: 71.753 | AC9: 66.628 | AD9: 63.14 | AE9: * | AF9: * | AG9: * | AH9: 63.98
A10: Lower CI | B10: 57.151 | C10: 68.481 | D10: * | E10: * | F10: * | G10: * | H10: * | I10: 55.508 | J10: * | K10: * | L10: * | M10: 51.82 | N10: * | O10: 63.9 | P10: 50.18 | Q10: * | R10: * | S10: * | T10: * | U10: 60.545 | V10: 60.888 | W10: 56.63 | X10: 56.839 | Y10: * | Z10: * | AA10: 54.901 | AB10: 65.82 | AC10: 59.072 | AD10: 57.92 | AE10: * | AF10: * | AG10: * | AH10: 62.61
A11: Upper CI | B11: 66.43 | C11: 77.34 | D11: * | E11: * | F11: * | G11: * | H11: * | I11: 67.596 | J11: * | K11: * | L11: * | M11: 62.05 | N11: * | O11: 71.49 | P11: 59.92 | Q11: * | R11: * | S11: * | T11: * | U11: 74.623 | V11: 70.747 | W11: 69.71 | X11: 67.74 | Y11: * | Z11: * | AA11: 69.998 | AB11: 77.685 | AC11: 74.184 | AD11: 68.36 | AE11: * | AF11: * | AG11: * | AH11: 65.35
A12: Score 1-3 | B12: 25.716 | C12: 18.666 | D12: * | E12: * | F12: * | G12: * | H12: * | I12: 19.868 | J12: * | K12: * | L12: * | M12: 23.97 | N12: * | O12: 19.98 | P12: 27.21 | Q12: * | R12: * | S12: * | T12: * | U12: 20.565 | V12: 17.909 | W12: 20.7 | X12: 25.79 | Y12: * | Z12: * | AA12: 17.826 | AB12: 20.508 | AC12: 18.391 | AD12: 20.38 | AE12: * | AF12: * | AG12: * | AH12: 21.87
A13: Lower CI | B13: 21.669 | C13: 14.884 | D13: * | E13: * | F13: * | G13: * | H13: * | I13: 14.346 | J13: * | K13: * | L13: * | M13: 18.98 | N13: * | O13: 16.93 | P13: 22.64 | Q13: * | R13: * | S13: * | T13: * | U13: 14.183 | V13: 13.371 | W13: 15.89 | X13: 20.057 | Y13: * | Z13: * | AA13: 11.841 | AB13: 15.218 | AC13: 13.09 | AD13: 15 | AE13: * | AF13: * | AG13: * | AH13: 20.67
A14: Upper CI | B14: 29.762 | C14: 22.448 | D14: * | E14: * | F14: * | G14: * | H14: * | I14: 25.389 | J14: * | K14: * | L14: * | M14: 28.97 | N14: * | O14: 23.03 | P14: 31.78 | Q14: * | R14: * | S14: * | T14: * | U14: 26.946 | V14: 22.447 | W14: 25.51 | X14: 31.522 | Y14: * | Z14: * | AA14: 23.81 | AB14: 25.798 | AC14: 23.693 | AD14: 25.76 | AE14: * | AF14: * | AG14: * | AH14: 23.06
A15: Score 4+ | B15: 12.494 | C15: 8.424 | D15: * | E15: * | F15: * | G15: * | H15: * | I15: 18.58 | J15: * | K15: * | L15: * | M15: 19.09 | N15: * | O15: 12.33 | P15: 17.74 | Q15: * | R15: * | S15: * | T15: * | U15: 11.851 | V15: 16.274 | W15: 16.13 | X15: 11.921 | Y15: * | Z15: * | AA15: 19.725 | AB15: 7.74 | AC15: 14.981 | AD15: 16.49 | AE15: * | AF15: * | AG15: * | AH15: 14.16
A16: Lower CI | B16: 9.295 | C16: 5.508 | D16: * | E16: * | F16: * | G16: * | H16: * | I16: 12.584 | J16: * | K16: * | L16: * | M16: 15.26 | N16: * | O16: 9.67 | P16: 14.02 | Q16: * | R16: * | S16: * | T16: * | U16: 6.348 | V16: 11.929 | W16: 11.24 | X16: 8.215 | Y16: * | Z16: * | AA16: 11.731 | AB16: 5.029 | AC16: 8.461 | AD16: 12.51 | AE16: * | AF16: * | AG16: * | AH16: 13.16
A17: Upper CI | B17: 15.692 | C17: 11.339 | D17: * | E17: * | F17: * | G17: * | H17: * | I17: 24.577 | J17: * | K17: * | L17: * | M17: 22.92 | N17: * | O17: 15 | P17: 21.46 | Q17: * | R17: * | S17: * | T17: * | U17: 17.354 | V17: 20.618 | W17: 21.02 | X17: 15.627 | Y17: * | Z17: * | AA17: 27.719 | AB17: 10.451 | AC17: 21.5 | AD17: 20.46 | AE17: * | AF17: * | AG17: * | AH17: 15.15
A19: Women
A20: Score 0 | B20: 53.94 | C20: 64.529 | D20: * | E20: * | F20: * | G20: * | H20: * | I20: 60.05 | J20: * | K20: * | L20: * | M20: 57.62 | N20: * | O20: 59.05 | P20: 45.75 | Q20: * | R20: * | S20: * | T20: * | U20: 66.65 | V20: 51.65 | W20: 58.42 | X20: 64.838 | Y20: * | Z20: * | AA20: 60.807 | AB20: 58.174 | AC20: 56.947 | AD20: 57.33 | AE20: * | AF20: * | AG20: * | AH20: 57.5
A21: Lower CI | B21: 48.938 | C21: 60.037 | D21: * | E21: * | F21: * | G21: * | H21: * | I21: 55.038 | J21: * | K21: * | L21: * | M21: 53.53 | N21: * | O21: 55.71 | P21: 41.9 | Q21: * | R21: * | S21: * | T21: * | U21: 61 | V21: 46.463 | W21: 53.75 | X21: 57.344 | Y21: * | Z21: * | AA21: 53.863 | AB21: 51.506 | AC21: 51.537 | AD21: 52.36 | AE21: * | AF21: * | AG21: * | AH21: 56.33
A22: Upper CI | B22: 58.941 | C22: 69.022 | D22: * | E22: * | F22: * | G22: * | H22: * | I22: 65.063 | J22: * | K22: * | L22: * | M22: 61.72 | N22: * | O22: 62.4 | P22: 49.6 | Q22: * | R22: * | S22: * | T22: * | U22: 72.3 | V22: 56.837 | W22: 63.1 | X22: 72.332 | Y22: * | Z22: * | AA22: 67.752 | AB22: 64.843 | AC22: 62.357 | AD22: 62.3 | AE22: * | AF22: * | AG22: * | AH22: 58.67
A23: Score 1-3 | B23: 29.513 | C23: 23.731 | D23: * | E23: * | F23: * | G23: * | H23: * | I23: 21.564 | J23: * | K23: * | L23: * | M23: 27.97 | N23: * | O23: 25.07 | P23: 30.63 | Q23: * | R23: * | S23: * | T23: * | U23: 17.721 | V23: 27.71 | W23: 23.18 | X23: 22.095 | Y23: * | Z23: * | AA23: 22.196 | AB23: 24.864 | AC23: 28.395 | AD23: 24.13 | AE23: * | AF23: * | AG23: * | AH23: 25.3
A24: Lower CI | B24: 25.028 | C24: 19.88 | D24: * | E24: * | F24: * | G24: * | H24: * | I24: 16.92 | J24: * | K24: * | L24: * | M24: 24.51 | N24: * | O24: 22.23 | P24: 27.38 | Q24: * | R24: * | S24: * | T24: * | U24: 13.169 | V24: 23.301 | W24: 18.2 | X24: 16.574 | Y24: * | Z24: * | AA24: 16.19 | AB24: 19.81 | AC24: 23.062 | AD24: 19.66 | AE24: * | AF24: * | AG24: * | AH24: 24.26
A25: Upper CI | B25: 33.997 | C25: 27.582 | D25: * | E25: * | F25: * | G25: * | H25: * | I25: 26.209 | J25: * | K25: * | L25: * | M25: 31.42 | N25: * | O25: 27.91 | P25: 33.88 | Q25: * | R25: * | S25: * | T25: * | U25: 22.274 | V25: 32.118 | W25: 28.16 | X25: 27.615 | Y25: * | Z25: * | AA25: 28.203 | AB25: 29.917 | AC25: 33.727 | AD25: 28.6 | AE25: * | AF25: * | AG25: * | AH25: 26.34
A26: Score 4+ | B26: 16.548 | C26: 11.74 | D26: * | E26: * | F26: * | G26: * | H26: * | I26: 18.386 | J26: * | K26: * | L26: * | M26: 14.41 | N26: * | O26: 15.87 | P26: 23.62 | Q26: * | R26: * | S26: * | T26: * | U26: 15.629 | V26: 20.64 | W26: 18.4 | X26: 13.067 | Y26: * | Z26: * | AA26: 16.996 | AB26: 16.962 | AC26: 14.658 | AD26: 18.54 | AE26: * | AF26: * | AG26: * | AH26: 17.2
A27: Lower CI | B27: 13.148 | C27: 8.125 | D27: * | E27: * | F27: * | G27: * | H27: * | I27: 14.89 | J27: * | K27: * | L27: * | M27: 11.29 | N27: * | O27: 13.49 | P27: 20.32 | Q27: * | R27: * | S27: * | T27: * | U27: 11.428 | V27: 16.494 | W27: 14.45 | X27: 7.796 | Y27: * | Z27: * | AA27: 12.77 | AB27: 12.192 | AC27: 11.226 | AD27: 13.87 | AE27: * | AF27: * | AG27: * | AH27: 16.28
A28: Upper CI | B28: 19.947 | C28: 15.354 | D28: * | E28: * | F28: * | G28: * | H28: * | I28: 21.881 | J28: * | K28: * | L28: * | M28: 17.52 | N28: * | O28: 18.26 | P28: 26.92 | Q28: * | R28: * | S28: * | T28: * | U28: 19.829 | V28: 24.786 | W28: 22.35 | X28: 18.339 | Y28: * | Z28: * | AA28: 21.222 | AB28: 21.732 | AC28: 18.09 | AD28: 23.22 | AE28: * | AF28: * | AG28: * | AH28: 18.12
A30: All Adults
A31: Score 0 | B31: 57.833 | C31: 68.527 | D31: * | E31: * | F31: * | G31: * | H31: * | I31: 60.707 | J31: * | K31: * | L31: * | M31: 57.27 | N31: * | O31: 63.23 | P31: 50.16 | Q31: * | R31: * | S31: * | T31: * | U31: 67.114 | V31: 58.274 | W31: 60.63 | X31: 63.534 | Y31: * | Z31: * | AA31: 61.548 | AB31: 64.982 | AC31: 61.432 | AD31: 60.14 | AE31: * | AF31: * | AG31: * | AH31: 60.6
A32: Lower CI | B32: 54.035 | C32: 64.959 | D32: * | E32: * | F32: * | G32: * | H32: * | I32: 57.076 | J32: * | K32: * | L32: * | M32: 53.38 | N32: * | O32: 60.4 | P32: 46.66 | Q32: * | R32: * | S32: * | T32: * | U32: 62.471 | V32: 54.342 | W32: 56.09 | X32: 59.154 | Y32: * | Z32: * | AA32: 56.583 | AB32: 59.852 | AC32: 56.509 | AD32: 56.18 | AE32: * | AF32: * | AG32: * | AH32: 59.6
A33: Upper CI | B33: 61.63 | C33: 72.095 | D33: * | E33: * | F33: * | G33: * | H33: * | I33: 64.338 | J33: * | K33: * | L33: * | M33: 61.16 | N33: * | O33: 66.05 | P33: 53.65 | Q33: * | R33: * | S33: * | T33: * | U33: 71.756 | V33: 62.206 | W33: 65.17 | X33: 67.913 | Y33: * | Z33: * | AA33: 66.513 | AB33: 70.112 | AC33: 66.354 | AD33: 64.1 | AE33: * | AF33: * | AG33: * | AH33: 61.61
A34: Score 1-3 | B34: 27.63 | C34: 21.315 | D34: * | E34: * | F34: * | G34: * | H34: * | I34: 20.822 | J34: * | K34: * | L34: * | M34: 25.94 | N34: * | O34: 22.61 | P34: 29.01 | Q34: * | R34: * | S34: * | T34: * | U34: 19.133 | V34: 23.127 | W34: 22.03 | X34: 23.985 | Y34: * | Z34: * | AA34: 20.225 | AB34: 22.68 | AC34: 23.761 | AD34: 22.31 | AE34: * | AF34: * | AG34: * | AH34: 23.65
A35: Lower CI | B35: 24.364 | C35: 18.645 | D35: * | E35: * | F35: * | G35: * | H35: * | I35: 17.363 | J35: * | K35: * | L35: * | M35: 22.53 | N35: * | O35: 20.4 | P35: 26.01 | Q35: * | R35: * | S35: * | T35: * | U35: 15.149 | V35: 19.971 | W35: 18.02 | X35: 19.681 | Y35: * | Z35: * | AA35: 15.586 | AB35: 18.722 | AC35: 19.247 | AD35: 18.38 | AE35: * | AF35: * | AG35: * | AH35: 22.81
A36: Upper CI | B36: 30.896 | C36: 23.985 | D36: * | E36: * | F36: * | G36: * | H36: * | I36: 24.282 | J36: * | K36: * | L36: * | M36: 29.35 | N36: * | O36: 24.82 | P36: 32.01 | Q36: * | R36: * | S36: * | T36: * | U36: 23.117 | V36: 26.284 | W36: 26.03 | X36: 28.289 | Y36: * | Z36: * | AA36: 24.863 | AB36: 26.638 | AC36: 28.275 | AD36: 26.25 | AE36: * | AF36: * | AG36: * | AH36: 24.5
A37: Score 4+ | B37: 14.537 | C37: 10.158 | D37: * | E37: * | F37: * | G37: * | H37: * | I37: 18.471 | J37: * | K37: * | L37: * | M37: 16.79 | N37: * | O37: 14.16 | P37: 20.84 | Q37: * | R37: * | S37: * | T37: * | U37: 13.753 | V37: 18.599 | W37: 17.34 | X37: 12.481 | Y37: * | Z37: * | AA37: 18.227 | AB37: 12.338 | AC37: 14.807 | AD37: 17.55 | AE37: * | AF37: * | AG37: * | AH37: 15.74
A38: Lower CI | B38: 12.283 | C38: 7.442 | D38: * | E38: * | F38: * | G38: * | H38: * | I38: 15.093 | J38: * | K38: * | L38: * | M38: 13.88 | N38: * | O38: 12.31 | P38: 18.36 | Q38: * | R38: * | S38: * | T38: * | U38: 10.455 | V38: 14.952 | W38: 14.1 | X38: 8.925 | Y38: * | Z38: * | AA38: 13.677 | AB38: 9.142 | AC38: 10.867 | AD38: 14.19 | AE38: * | AF38: * | AG38: * | AH38: 15.02
A39: Upper CI | B39: 16.792 | C39: 12.874 | D39: * | E39: * | F39: * | G39: * | H39: * | I39: 21.848 | J39: * | K39: * | L39: * | M39: 19.69 | N39: * | O39: 16.01 | P39: 23.31 | Q39: * | R39: * | S39: * | T39: * | U39: 17.051 | V39: 22.245 | W39: 20.59 | X39: 16.037 | Y39: * | Z39: * | AA39: 22.777 | AB39: 15.535 | AC39: 18.748 | AD39: 20.91 | AE39: * | AF39: * | AG39: * | AH39: 16.47
A42: Bases (weighted):
A43: Men | B43: 332.141 | C43: 368.568 | D43: 164.77 | E43: 134.208 | F43: 65.937 | G43: 200.686 | H43: 229.343 | I43: 168.519 | J43: 180.218 | K43: 150.176 | L43: 119.098 | M43: 749.66 | N43: 224.464 | O43: 520.03 | P43: 804.34 | Q43: 328.108 | R43: 84.762 | S43: 111.811 | T43: 133.298 | U43: 36.781 | V43: 200.782 | W43: 493.39 | X43: 34.913 | Y43: 206.146 | Z43: 222.594 | AA43: 152.118 | AB43: 33.493 | AC43: 158.704 | AD43: 483.59 | AE43: 125.509 | AF43: 107.255 | AG43: 272.694 | AH43: 7598.11
A44: Women | B44: 337.713 | C44: 404.155 | D44: 190.169 | E44: 138.885 | F44: 79.492 | G44: 232.418 | H44: 254.584 | I44: 216.811 | J44: 170.553 | K44: 160.577 | L44: 131.424 | M44: 726.69 | N44: 233.809 | O44: 556.6 | P44: 892.83 | Q44: 355.552 | R44: 125.816 | S44: 125.691 | T44: 170.328 | U44: 37.308 | V44: 228.664 | W44: 566.77 | X44: 33.324 | Y44: 232.956 | Z44: 218.317 | AA44: 185.099 | AB44: 33.31 | AC44: 183.901 | AD44: 516.63 | AE44: 156.534 | AF44: 115.807 | AG44: 253.632 | AH44: 8266.35
A45: All Adults | B45: 669.854 | C45: 772.723 | D45: 354.939 | E45: 273.094 | F45: 145.43 | G45: 433.103 | H45: 483.927 | I45: 385.33 | J45: 350.771 | K45: 310.752 | L45: 250.522 | M45: 1476.35 | N45: 458.273 | O45: 1076.63 | P45: 1697.18 | Q45: 683.66 | R45: 210.578 | S45: 237.503 | T45: 303.626 | U45: 74.089 | V45: 429.446 | W45: 1060.16 | X45: 68.237 | Y45: 439.102 | Z45: 440.911 | AA45: 337.217 | AB45: 66.803 | AC45: 342.605 | AD45: 1000.21 | AE45: 282.044 | AF45: 223.062 | AG45: 526.326 | AH45: 15864.46
A46: Bases (unweighted)
A47: Men | B47: 367 | C47: 440 | D47: 110 | E47: 99 | F47: 42 | G47: 172 | H47: 139 | I47: 265 | J47: 136 | K47: 88 | L47: 94 | M47: 485 | N47: 138 | O47: 756 | P47: 539 | Q47: 209 | R47: 68 | S47: 73 | T47: 158 | U47: 229 | V47: 290 | W47: 298 | X47: 225 | Y47: 158 | Z47: 149 | AA47: 170 | AB47: 207 | AC47: 241 | AD47: 310 | AE47: 84 | AF47: 76 | AG47: 149 | AH47: 6964
A48: Women | B48: 451 | C48: 543 | D48: 139 | E48: 124 | F48: 61 | G48: 216 | H48: 170 | I48: 361 | J48: 166 | K48: 105 | L48: 127 | M48: 571 | N48: 173 | O48: 960 | P48: 758 | Q48: 280 | R48: 107 | S48: 98 | T48: 223 | U48: 273 | V48: 359 | W48: 425 | X48: 246 | Y48: 194 | Z48: 180 | AA48: 230 | AB48: 238 | AC48: 317 | AD48: 411 | AE48: 125 | AF48: 102 | AG48: 178 | AH48: 8911
A49: All Adults | B49: 818 | C49: 983 | D49: 249 | E49: 223 | F49: 103 | G49: 388 | H49: 309 | I49: 626 | J49: 302 | K49: 193 | L49: 221 | M49: 1056 | N49: 311 | O49: 1716 | P49: 1297 | Q49: 489 | R49: 175 | S49: 171 | T49: 381 | U49: 502 | V49: 649 | W49: 723 | X49: 471 | Y49: 352 | Z49: 329 | AA49: 400 | AB49: 445 | AC49: 558 | AD49: 721 | AE49: 209 | AF49: 178 | AG49: 327 | AH49: 15875

Sheet GHQ-12 chart
R1: INDEX
C31: Source: Scottish Health Survey
C34: Aberdeen City | D34: Aberdeenshire | E34: East Ayrshire | F34: Edinburgh, City of | G34: Fife | H34: Glasgow City | I34: Na h-Eileanan Siar | J34: North Ayrshire | K34: North Lanarkshire | L34: Orkney Islands | M34: Scottish Borders | N34: Shetland Islands | O34: South Ayrshire | P34: South Lanarkshire | R34: Scotland
B35: All Adults
B36: Score 0 | C36: ='GHQ-12 scores'!B31 -> 57.833 | D36: ='GHQ-12 scores'!C31 -> 68.527 | E36: ='GHQ-12 scores'!I31 -> 60.707 | F36: ='GHQ-12 scores'!M31 -> 57.27 | G36: ='GHQ-12 scores'!O31 -> 63.23 | H36: ='GHQ-12 scores'!P31 -> 50.16 | I36: ='GHQ-12 scores'!U31 -> 67.114 | J36: ='GHQ-12 scores'!V31 -> 58.274 | K36: ='GHQ-12 scores'!W31 -> 60.63 | L36: ='GHQ-12 scores'!X31 -> 63.534 | M36: ='GHQ-12 scores'!AA31 -> 61.548 | N36: ='GHQ-12 scores'!AB31 -> 64.982 | O36: ='GHQ-12 scores'!AC31 -> 61.432 | P36: ='GHQ-12 scores'!AD31 -> 60.14 | R36: ='GHQ-12 scores'!AH31 -> 60.6
B37: Lower CI | C37: ='GHQ-12 scores'!B32 -> 54.035 | D37: ='GHQ-12 scores'!C32 -> 64.959 | E37: ='GHQ-12 scores'!I32 -> 57.076 | F37: ='GHQ-12 scores'!M32 -> 53.38 | G37: ='GHQ-12 scores'!O32 -> 60.4 | H37: ='GHQ-12 scores'!P32 -> 46.66 | I37: ='GHQ-12 scores'!U32 -> 62.471 | J37: ='GHQ-12 scores'!V32 -> 54.342 | K37: ='GHQ-12 scores'!W32 -> 56.09 | L37: ='GHQ-12 scores'!X32 -> 59.154 | M37: ='GHQ-12 scores'!AA32 -> 56.583 | N37: ='GHQ-12 scores'!AB32 -> 59.852 | O37: ='GHQ-12 scores'!AC32 -> 56.509 | P37: ='GHQ-12 scores'!AD32 -> 56.18 | R37: ='GHQ-12 scores'!AH32 -> 59.6
B38: Upper CI | C38: ='GHQ-12 scores'!B33 -> 61.63 | D38: ='GHQ-12 scores'!C33 -> 72.095 | E38: ='GHQ-12 scores'!I33 -> 64.338 | F38: ='GHQ-12 scores'!M33 -> 61.16 | G38: ='GHQ-12 scores'!O33 -> 66.05 | H38: ='GHQ-12 scores'!P33 -> 53.65 | I38: ='GHQ-12 scores'!U33 -> 71.756 | J38: ='GHQ-12 scores'!V33 -> 62.206 | K38: ='GHQ-12 scores'!W33 -> 65.17 | L38: ='GHQ-12 scores'!X33 -> 67.913 | M38: ='GHQ-12 scores'!AA33 -> 66.513 | N38: ='GHQ-12 scores'!AB33 -> 70.112 | O38: ='GHQ-12 scores'!AC33 -> 66.354 | P38: ='GHQ-12 scores'!AD33 -> 64.1 | R38: ='GHQ-12 scores'!AH33 -> 61.61
B39: Score 1-3 | C39: ='GHQ-12 scores'!B34 -> 27.63 | D39: ='GHQ-12 scores'!C34 -> 21.315 | E39: ='GHQ-12 scores'!I34 -> 20.822 | F39: ='GHQ-12 scores'!M34 -> 25.94 | G39: ='GHQ-12 scores'!O34 -> 22.61 | H39: ='GHQ-12 scores'!P34 -> 29.01 | I39: ='GHQ-12 scores'!U34 -> 19.133 | J39: ='GHQ-12 scores'!V34 -> 23.127 | K39: ='GHQ-12 scores'!W34 -> 22.03 | L39: ='GHQ-12 scores'!X34 -> 23.985 | M39: ='GHQ-12 scores'!AA34 -> 20.225 | N39: ='GHQ-12 scores'!AB34 -> 22.68 | O39: ='GHQ-12 scores'!AC34 -> 23.761 | P39: ='GHQ-12 scores'!AD34 -> 22.31 | R39: ='GHQ-12 scores'!AH34 -> 23.65
B40: Lower CI | C40: ='GHQ-12 scores'!B35 -> 24.364 | D40: ='GHQ-12 scores'!C35 -> 18.645 | E40: ='GHQ-12 scores'!I35 -> 17.363 | F40: ='GHQ-12 scores'!M35 -> 22.53 | G40: ='GHQ-12 scores'!O35 -> 20.4 | H40: ='GHQ-12 scores'!P35 -> 26.01 | I40: ='GHQ-12 scores'!U35 -> 15.149 | J40: ='GHQ-12 scores'!V35 -> 19.971 | K40: ='GHQ-12 scores'!W35 -> 18.02 | L40: ='GHQ-12 scores'!X35 -> 19.681 | M40: ='GHQ-12 scores'!AA35 -> 15.586 | N40: ='GHQ-12 scores'!AB35 -> 18.722 | O40: ='GHQ-12 scores'!AC35 -> 19.247 | P40: ='GHQ-12 scores'!AD35 -> 18.38 | R40: ='GHQ-12 scores'!AH35 -> 22.81
B41: Upper CI | C41: ='GHQ-12 scores'!B36 -> 30.896 | D41: ='GHQ-12 scores'!C36 -> 23.985 | E41: ='GHQ-12 scores'!I36 -> 24.282 | F41: ='GHQ-12 scores'!M36 -> 29.35 | G41: ='GHQ-12 scores'!O36 -> 24.82 | H41: ='GHQ-12 scores'!P36 -> 32.01 | I41: ='GHQ-12 scores'!U36 -> 23.117 | J41: ='GHQ-12 scores'!V36 -> 26.284 | K41: ='GHQ-12 scores'!W36 -> 26.03 | L41: ='GHQ-12 scores'!X36 -> 28.289 | M41: ='GHQ-12 scores'!AA36 -> 24.863 | N41: ='GHQ-12 scores'!AB36 -> 26.638 | O41: ='GHQ-12 scores'!AC36 -> 28.275 | P41: ='GHQ-12 scores'!AD36 -> 26.25 | R41: ='GHQ-12 scores'!AH36 -> 24.5
B42: Score 4+ | C42: ='GHQ-12 scores'!B37 -> 14.537 | D42: ='GHQ-12 scores'!C37 -> 10.158 | E42: ='GHQ-12 scores'!I37 -> 18.471 | F42: ='GHQ-12 scores'!M37 -> 16.79 | G42: ='GHQ-12 scores'!O37 -> 14.16 | H42: ='GHQ-12 scores'!P37 -> 20.84 | I42: ='GHQ-12 scores'!U37 -> 13.753 | J42: ='GHQ-12 scores'!V37 -> 18.599 | K42: ='GHQ-12 scores'!W37 -> 17.34 | L42: ='GHQ-12 scores'!X37 -> 12.481 | M42: ='GHQ-12 scores'!AA37 -> 18.227 | N42: ='GHQ-12 scores'!AB37 -> 12.338 | O42: ='GHQ-12 scores'!AC37 -> 14.807 | P42: ='GHQ-12 scores'!AD37 -> 17.55 | R42: ='GHQ-12 scores'!AH37 -> 15.74
B43: Lower CI | C43: ='GHQ-12 scores'!B38 -> 12.283 | D43: ='GHQ-12 scores'!C38 -> 7.442 | E43: ='GHQ-12 scores'!I38 -> 15.093 | F43: ='GHQ-12 scores'!M38 -> 13.88 | G43: ='GHQ-12 scores'!O38 -> 12.31 | H43: ='GHQ-12 scores'!P38 -> 18.36 | I43: ='GHQ-12 scores'!U38 -> 10.455 | J43: ='GHQ-12 scores'!V38 -> 14.952 | K43: ='GHQ-12 scores'!W38 -> 14.1 | L43: ='GHQ-12 scores'!X38 -> 8.925 | M43: ='GHQ-12 scores'!AA38 -> 13.677 | N43: ='GHQ-12 scores'!AB38 -> 9.142 | O43: ='GHQ-12 scores'!AC38 -> 10.867 | P43: ='GHQ-12 scores'!AD38 -> 14.19 | R43: ='GHQ-12 scores'!AH38 -> 15.02
B44: Upper CI | C44: ='GHQ-12 scores'!B39 -> 16.792 | D44: ='GHQ-12 scores'!C39 -> 12.874 | E44: ='GHQ-12 scores'!I39 -> 21.848 | F44: ='GHQ-12 scores'!M39 -> 19.69 | G44: ='GHQ-12 scores'!O39 -> 16.01 | H44: ='GHQ-12 scores'!P39 -> 23.31 | I44: ='GHQ-12 scores'!U39 -> 17.051 | J44: ='GHQ-12 scores'!V39 -> 22.245 | K44: ='GHQ-12 scores'!W39 -> 20.59 | L44: ='GHQ-12 scores'!X39 -> 16.037 | M44: ='GHQ-12 scores'!AA39 -> 22.777 | N44: ='GHQ-12 scores'!AB39 -> 15.535 | O44: ='GHQ-12 scores'!AC39 -> 18.748 | P44: ='GHQ-12 scores'!AD39 -> 20.91 | R44: ='GHQ-12 scores'!AH39 -> 16.47
A46: CLs | B46: Score 0 | C46: =C36-C37 -> 3.798 | D46: =D36-D37 -> 3.568 | E46: =E36-E37 -> 3.631 | F46: =F36-F37 -> 3.89 | G46: 2.83 | H46: 3.5 | I46: 4.643 | J46: 3.932 | K46: 4.54 | L46: =L36-L37 -> 4.38 | M46: =M36-M37 -> 4.965 | N46: 5.13 | O46: =O36-O37 -> 4.923 | P46: =P36-P37 -> 3.96 | R46: =R36-R37 -> 1
B47: Score 1-3 | C47: =C39-C40 -> 3.266 | D47: =D39-D40 -> 2.67 | E47: =E39-E40 -> 3.459 | F47: =F39-F40 -> 3.41 | G47: 2.21 | H47: 3 | I47: 3.984 | J47: 3.156 | K47: 4.01 | L47: =L39-L40 -> 4.304 | M47: =M39-M40 -> 4.639 | N47: 3.958 | O47: =O39-O40 -> 4.514 | P47: =P39-P40 -> 3.93 | R47: =R39-R40 -> 0.84
B48: Score 4+ | C48: =C42-C43 -> 2.254 | D48: =D42-D43 -> 2.716 | E48: =E42-E43 -> 3.378 | F48: =F42-F43 -> 2.91 | G48: 1.85 | H48: 2.48 | I48: 3.298 | J48: 3.647 | K48: 3.24 | L48: =L42-L43 -> 3.556 | M48: =M42-M43 -> 4.55 | N48: 3.196 | O48: =O42-O43 -> 3.94 | P48: =P42-P43 -> 3.36 | R48: =R42-R43 -> 0.72

Sheet Long-term illness
A1: Prevalence of long-term illness, by Local Authority and sex | N1: INDEX
A4: Aged 16 and over | B4: PLEASE NOTE: Where the sample size for a Local Authority (which does not correspond fully to an NHS board) was below 500, the result has been suppressed. This is shown here by *. | P4: 2014/2015/2016/2017 combined
A5: Prevalence of limiting long-term conditions | B5: Local Authority
B6: Aberdeen City | C6: Aberdeenshire | D6: Angus | E6: Argyll & Bute | F6: Clackmannanshire | G6: Dumfries & Galloway | H6: Dundee City | I6: East Ayrshire | J6: East Dunbartonshire | K6: East Lothian | L6: East Renfrewshire | M6: Edinburgh, City of | N6: Falkirk | O6: Fife | P6: Glasgow City | Q6: Highland | R6: Inverclyde | S6: Midlothian | T6: Moray | U6: Na h-Eileanan Siar | V6: North Ayrshire | W6: North Lanarkshire | X6: Orkney Islands | Y6: Perth & Kinross | Z6: Renfrewshire | AA6: Scottish Borders | AB6: Shetland Islands | AC6: South Ayrshire | AD6: South Lanarkshire | AE6: Stirling | AF6: West Dunbartonshire | AG6: West Lothian | AH6: Scotland
B7: % | C7: % | D7: % | E7: % | F7: % | G7: % | H7: % | I7: % | J7: % | K7: % | L7: % | M7: % | N7: % | O7: % | P7: % | Q7: % | R7: % | S7: % | T7: % | U7: % | V7: % | W7: % | X7: % | Y7: % | Z7: % | AA7: % | AB7: % | AC7: % | AD7: % | AE7: % | AF7: % | AG7: % | AH7: %
A8: Men
A9: Limiting long-term illness | B9: 22.935 | C9: 25.67 | D9: * | E9: * | F9: * | G9: * | H9: * | I9: 45.868 | J9: * | K9: * | L9: * | M9: 21.16 | N9: * | O9: 28.71 | P9: 31.16 | Q9: 30.258 | R9: * | S9: * | T9: * | U9: 33.946 | V9: 40.401 | W9: 31.96 | X9: 32.247 | Y9: * | Z9: * | AA9: 30.28 | AB9: 26.924 | AC9: 52.137 | AD9: 30.6 | AE9: * | AF9: * | AG9: * | AH9: 29.99
A10: Lower CI | B10: 18.368 | C10: 22.22 | D10: * | E10: * | F10: * | G10: * | H10: * | I10: 39.914 | J10: * | K10: * | L10: * | M10: 17.77 | N10: * | O10: 25.28 | P10: 26.54 | Q10: 24.058 | R10: * | S10: * | T10: * | U10: 27.266 | V10: 32.938 | W10: 26.5 | X10: 27.562 | Y10: * | Z10: * | AA10: 22.204 | AB10: 21.444 | AC10: 40.51 | AD10: 25.53 | AE10: * | AF10: * | AG10: * | AH10: 28.66
A11: Upper CI | B11: 27.502 | C11: 29.13 | D11: * | E11: * | F11: * | G11: * | H11: * | I11: 51.821 | J11: * | K11: * | L11: * | M11: 24.55 | N11: * | O11: 32.14 | P11: 35.78 | Q11: 36.457 | R11: * | S11: * | T11: * | U11: 40.627 | V11: 47.865 | W11: 37.43 | X11: 36.931 | Y11: * | Z11: * | AA11: 38.356 | AB11: 32.403 | AC11: 63.763 | AD11: 35.68 | AE11: * | AF11: * | AG11: * | AH11: 31.31
A12: Non-limiting long-term illness | B12: 10.805 | C12: 15 | D12: * | E12: * | F12: * | G12: * | H12: * | I12: 9.86 | J12: * | K12: * | L12: * | M12: 17.42 | N12: * | O12: 16.22 | P12: 12.29 | Q12: 15.985 | R12: * | S12: * | T12: * | U12: 15.081 | V12: 11.043 | W12: 14.57 | X12: 20.796 | Y12: * | Z12: * | AA12: 13.954 | AB12: 17.181 | AC12: 8.827 | AD12: 15.67 | AE12: * | AF12: * | AG12: * | AH12: 14.33
A13: Lower CI | B13: 7.373 | C13: 11.01 | D13: * | E13: * | F13: * | G13: * | H13: * | I13: 5.981 | J13: * | K13: * | L13: * | M13: 13.56 | N13: * | O13: 13.19 | P13: 9.62 | Q13: 12.117 | R13: * | S13: * | T13: * | U13: 9.981 | V13: 7.54 | W13: 9.06 | X13: 16.012 | Y13: * | Z13: * | AA13: 9.487 | AB13: 11.398 | AC13: 4.062 | AD13: 10.97 | AE13: * | AF13: * | AG13: * | AH13: 13.29
A14: Upper CI | B14: 14.237 | C14: 18.99 | D14: * | E14: * | F14: * | G14: * | H14: * | I14: 13.738 | J14: * | K14: * | L14: * | M14: 21.29 | N14: * | O14: 19.25 | P14: 14.96 | Q14: 19.852 | R14: * | S14: * | T14: * | U14: 20.18 | V14: 14.545 | W14: 20.09 | X14: 25.581 | Y14: * | Z14: * | AA14: 18.42 | AB14: 22.964 | AC14: 13.592 | AD14: 20.38 | AE14: * | AF14: * | AG14: * | AH14: 15.37
A15: No long-term illness | B15: 66.26 | C15: 59.33 | D15: * | E15: * | F15: * | G15: * | H15: * | I15: 44.273 | J15: * | K15: * | L15: * | M15: 61.41 | N15: * | O15: 55.07 | P15: 56.55 | Q15: 53.758 | R15: * | S15: * | T15: * | U15: 50.973 | V15: 48.556 | W15: 53.47 | X15: 46.957 | Y15: * | Z15: * | AA15: 55.766 | AB15: 55.895 | AC15: 39.036 | AD15: 53.72 | AE15: * | AF15: * | AG15: * | AH15: 55.69
A16: Lower CI | B16: 60.195 | C16: 54.85 | D16: * | E16: * | F16: * | G16: * | H16: * | I16: 38.932 | J16: * | K16: * | L16: * | M16: 55.99 | N16: * | O16: 51.18 | P16: 51.84 | Q16: 46.818 | R16: * | S16: * | T16: * | U16: 43.57 | V16: 40.684 | W16: 47.29 | X16: 41.872 | Y16: * | Z16: * | AA16: 47.735 | AB16: 48.345 | AC16: 28.812 | AD16: 47.65 | AE16: * | AF16: * | AG16: * | AH16: 54.17
A17: Upper CI | B17: 72.325 | C17: 63.81 | D17: * | E17: * | F17: * | G17: * | H17: * | I17: 49.613 | J17: * | K17: * | L17: * | M17: 66.84 | N17: * | O17: 58.96 | P17: 61.26 | Q17: 60.698 | R17: * | S17: * | T17: * | U17: 58.376 | V17: 56.429 | W17: 59.65 | X17: 52.041 | Y17: * | Z17: * | AA17: 63.798 | AB17: 63.445 | AC17: 49.26 | AD17: 59.8 | AE17: * | AF17: * | AG17: * | AH17: 57.2
A19: Women
A20: Limiting long-term illness | B20: 29.46 | C20: 27.99 | D20: * | E20: * | F20: * | G20: * | H20: * | I20: 45.724 | J20: * | K20: * | L20: * | M20: 25.22 | N20: * | O20: 34.33 | P20: 37.44 | Q20: 35.614 | R20: * | S20: * | T20: * | U20: 35.573 | V20: 47.127 | W20: 35.08 | X20: 38.425 | Y20: * | Z20: * | AA20: 25.984 | AB20: 32.188 | AC20: 50.124 | AD20: 33.68 | AE20: * | AF20: * | AG20: * | AH20: 33.7
A21: Lower CI | B21: 24.702 | C21: 24.37 | D21: * | E21: * | F21: * | G21: * | H21: * | I21: 38.851 | J21: * | K21: * | L21: * | M21: 21.61 | N21: * | O21: 31.28 | P21: 33.82 | Q21: 29.562 | R21: * | S21: * | T21: * | U21: 29.891 | V21: 41.834 | W21: 30.29 | X21: 33.188 | Y21: * | Z21: * | AA21: 19.967 | AB21: 25.534 | AC21: 42.641 | AD21: 28.84 | AE21: * | AF21: * | AG21: * | AH21: 32.57
A22: Upper CI | B22: 34.218 | C22: 31.6 | D22: * | E22: * | F22: * | G22: * | H22: * | I22: 52.597 | J22: * | K22: * | L22: * | M22: 28.83 | N22: * | O22: 37.39 | P22: 41.07 | Q22: 41.666 | R22: * | S22: * | T22: * | U22: 41.255 | V22: 52.421 | W22: 39.87 | X22: 43.662 | Y22: * | Z22: * | AA22: 32 | AB22: 38.843 | AC22: 57.606 | AD22: 38.52 | AE22: * | AF22: * | AG22: * | AH22: 34.83
A23: Non-limiting long-term illness | B23: 15.469 | C23: 13.92 | D23: * | E23: * | F23: * | G23: * | H23: * | I23: 10.216 | J23: * | K23: * | L23: * | M23: 13.98 | N23: * | O23: 14.39 | P23: 11.16 | Q23: 16.707 | R23: * | S23: * | T23: * | U23: 13.91 | V23: 11.996 | W23: 15.14 | X23: 20.545 | Y23: * | Z23: * | AA23: 24.65 | AB23: 17.005 | AC23: 7.072 | AD23: 12.46 | AE23: * | AF23: * | AG23: * | AH23: 14.1
A24: Lower CI | B24: 11.91 | C24: 11.1 | D24: * | E24: * | F24: * | G24: * | H24: * | I24: 6.993 | J24: * | K24: * | L24: * | M24: 11.19 | N24: * | O24: 12.4 | P24: 9.07 | Q24: 12.786 | R24: * | S24: * | T24: * | U24: 9.058 | V24: 8.739 | W24: 12.08 | X24: 15.155 | Y24: * | Z24: * | AA24: 18.471 | AB24: 11.83 | AC24: 3.514 | AD24: 8.58 | AE24: * | AF24: * | AG24: * | AH24: 13.31
A25: Upper CI | B25: 19.028 | C25: 16.74 | D25: * | E25: * | F25: * | G25: * | H25: * | I25: 13.44 | J25: * | K25: * | L25: * | M25: 16.78 | N25: * | O25: 16.38 | P25: 13.26 | Q25: 20.627 | R25: * | S25: * | T25: * | U25: 18.761 | V25: 15.254 | W25: 18.2 | X25: 25.936 | Y25: * | Z25: * | AA25: 30.829 | AB25: 22.18 | AC25: 10.63 | AD25: 16.34 | AE25: * | AF25: * | AG25: * | AH25: 14.88
A26: No long-term illness | B26: 55.071 | C26: 58.1 | D26: * | E26: * | F26: * | G26: * | H26: * | I26: 44.06 | J26: * | K26: * | L26: * | M26: 60.79 | N26: * | O26: 51.27 | P26: 51.4 | Q26: 47.679 | R26: * | S26: * | T26: * | U26: 50.517 | V26: 40.877 | W26: 49.78 | X26: 41.029 | Y26: * | Z26: * | AA26: 49.366 | AB26: 50.806 | AC26: 42.804 | AD26: 53.86 | AE26: * | AF26: * | AG26: * | AH26: 52.21
A27: Lower CI | B27: 49.654 | C27: 54.01 | D27: * | E27: * | F27: * | G27: * | H27: * | I27: 37.278 | J27: * | K27: * | L27: * | M27: 56.85 | N27: * | O27: 47.79 | P27: 47.94 | Q27: 41.075 | R27: * | S27: * | T27: * | U27: 44.044 | V27: 35.883 | W27: 45.14 | X27: 33.144 | Y27: * | Z27: * | AA27: 42.92 | AB27: 45.205 | AC27: 36.039 | AD27: 48.94 | AE27: * | AF27: * | AG27: * | AH27: 51.03
A28: Upper CI | B28: 60.488 | C28: 62.19 | D28: * | E28: * | F28: * | G28: * | H28: * | I28: 50.841 | J28: * | K28: * | L28: * | M28: 64.74 | N28: * | O28: 54.76 | P28: 54.85 | Q28: 54.284 | R28: * | S28: * | T28: * | U28: 56.991 | V28: 45.87 | W28: 54.42 | X28: 48.915 | Y28: * | Z28: * | AA28: 55.812 | AB28: 56.408 | AC28: 49.57 | AD28: 58.78 | AE28: * | AF28: * | AG28: * | AH28: 53.39
A30: All Adults
A31: Limiting long-term illness | B31: 26.256 | C31: 26.87 | D31: * | E31: * | F31: * | G31: * | H31: * | I31: 45.787 | J31: * | K31: * | L31: * | M31: 23.17 | N31: * | O31: 31.58 | P31: 34.46 | Q31: 33.052 | R31: * | S31: * | T31: * | U31: 34.751 | V31: 43.983 | W31: 33.63 | X31: 35.269 | Y31: * | Z31: * | AA31: 27.939 | AB31: 29.459 | AC31: 51.072 | AD31: 32.18 | AE31: * | AF31: * | AG31: * | AH31: 31.91
A32: Lower CI | B32: 22.543 | C32: 24.24 | D32: * | E32: * | F32: * | G32: * | H32: * | I32: 40.217 | J32: * | K32: * | L32: * | M32: 20.83 | N32: * | O32: 29.07 | P32: 31.08 | Q32: 28.193 | R32: * | S32: * | T32: * | U32: 30.039 | V32: 38.921 | W32: 29.89 | X32: 31.358 | Y32: * | Z32: * | AA32: 22.471 | AB32: 25.196 | AC32: 42.591 | AD32: 28.68 | AE32: * | AF32: * | AG32: * | AH32: 30.95
A33: Upper CI | B33: 29.97 | C33: 29.51 | D33: * | E33: * | F33: * | G33: * | H33: * | I33: 51.357 | J33: * | K33: * | L33: * | M33: 25.51 | N33: * | O33: 34.09 | P33: 37.84 | Q33: 37.911 | R33: * | S33: * | T33: * | U33: 39.462 | V33: 49.045 | W33: 37.37 | X33: 39.179 | Y33: * | Z33: * | AA33: 33.408 | AB33: 33.722 | AC33: 59.553 | AD33: 35.68 | AE33: * | AF33: * | AG33: * | AH33: 32.87
A34: Non-limiting long-term illness | B34: 13.179 | C34: 14.44 | D34: * | E34: * | F34: * | G34: * | H34: * | I34: 10.06 | J34: * | K34: * | L34: * | M34: 15.72 | N34: * | O34: 15.29 | P34: 11.7 | Q34: 16.361 | R34: * | S34: * | T34: * | U34: 14.501 | V34: 11.55 | W34: 14.88 | X34: 20.674 | Y34: * | Z34: * | AA34: 19.782 | AB34: 17.096 | AC34: 7.899 | AD34: 14.03 | AE34: * | AF34: * | AG34: * | AH34: 14.21
A35: Lower CI | B35: 10.519 | C35: 11.96 | D35: * | E35: * | F35: * | G35: * | H35: * | I35: 7.422 | J35: * | K35: * | L35: * | M35: 13.13 | N35: * | O35: 13.32 | P35: 9.84 | Q35: 13.34 | R35: * | S35: * | T35: * | U35: 10.697 | V35: 8.98 | W35: 12.01 | X35: 16.563 | Y35: * | Z35: * | AA35: 15.525 | AB35: 13.268 | AC35: 4.263 | AD35: 10.7 | AE35: * | AF35: * | AG35: * | AH35: 13.52
A36: Upper CI | B36: 15.839 | C36: 16.91 | D36: * | E36: * | F36: * | G36: * | H36: * | I36: 12.698 | J36: * | K36: * | L36: * | M36: 18.31 | N36: * | O36: 17.25 | P36: 13.56 | Q36: 19.382 | R36: * | S36: * | T36: * | U36: 18.306 | V36: 14.121 | W36: 17.74 | X36: 24.785 | Y36: * | Z36: * | AA36: 24.039 | AB36: 20.925 | AC36: 11.534 | AD36: 17.35 | AE36: * | AF36: * | AG36: * | AH36: 14.9
A37: No long-term illness | B37: 60.565 | C37: 58.69 | D37: * | E37: * | F37: * | G37: * | H37: * | I37: 44.153 | J37: * | K37: * | L37: * | M37: 61.11 | N37: * | O37: 53.13 | P37: 53.84 | Q37: 50.587 | R37: * | S37: * | T37: * | U37: 50.748 | V37: 44.467 | W37: 51.5 | X37: 44.058 | Y37: * | Z37: * | AA37: 52.279 | AB37: 53.444 | AC37: 41.029 | AD37: 53.79 | AE37: * | AF37: * | AG37: * | AH37: 53.88
A38: Lower CI | B38: 56.088 | C38: 55.42 | D38: * | E38: * | F38: * | G38: * | H38: * | I38: 39.312 | J38: * | K38: * | L38: * | M38: 57.68 | N38: * | O38: 50.11 | P38: 50.72 | Q38: 44.66 | R38: * | S38: * | T38: * | U38: 45.353 | V38: 39.134 | W38: 47.25 | X38: 38.385 | Y38: * | Z38: * | AA38: 46.741 | AB38: 47.627 | AC38: 33.897 | AD38: 49.67 | AE38: * | AF38: * | AG38: * | AH38: 52.82
A39: Upper CI | B39: 65.041 | C39: 61.96 | D39: * | E39: * | F39: * | G39: * | H39: * | I39: 48.995 | J39: * | K39: * | L39: * | M39: 64.54 | N39: * | O39: 56.16 | P39: 56.96 | Q39: 56.514 | R39: * | S39: * | T39: * | U39: 56.142 | V39: 49.799 | W39: 55.74 | X39: 49.73 | Y39: * | Z39: * | AA39: 57.817 | AB39: 59.262 | AC39: 48.162 | AD39: 57.92 | AE39: * | AF39: * | AG39: * | AH39: 54.94
A42: Bases (weighted):
A43: Men | B43: 361.119 | C43: 404.94 | D43: 170.13 | E43: 147.951 | F43: 71.728 | G43: 238.321 | H43: 240.87 | I43: 175.553 | J43: 189.682 | K43: 160.383 | L43: 135.307 | M43: 835.24 | N43: 267.424 | O43: 588.94 | P43: 934.5 | Q43: 362.144 | R43: 103.303 | S43: 123.743 | T43: 151.74 | U43: 45.339 | V43: 216.421 | W43: 567.26 | X43: 37.337 | Y43: 222.884 | Z43: 243.813 | AA43: 172.523 | AB43: 39.284 | AC43: 170.831 | AD43: 549.69 | AE43: 135.05 | AF43: 113.716 | AG43: 316.179 | AH43: 8493.34
A44: Women | B44: 374.389 | C44: 436.01 | D44: 198.7 | E44: 147.671 | F44: 86.173 | G44: 261.559 | H44: 271.726 | I44: 223.875 | J44: 180.321 | K44: 182.716 | L44: 142.356 | M44: 816.45 | N44: 256.879 | O44: 613.42 | P44: 1034.56 | Q44: 394.91 | R44: 146.48 | S44: 135.534 | T44: 187.219 | U44: 44.388 | V44: 246.538 | W44: 652.59 | X44: 35.742 | Y44: 250.133 | Z44: 248.838 | AA44: 206.516 | AB44: 36.496 | AC44: 191.843 | AD44: 577.23 | AE44: 167.888 | AF44: 127.016 | AG44: 292.096 | AH44: 9168.27
A45: All Adults | B45: 735.508 | C45: 840.95 | D45: 368.831 | E45: 295.622 | F45: 157.901 | G45: 499.879 | H45: 512.595 | I45: 399.427 | J45: 370.003 | K45: 343.099 | L45: 277.663 | M45: 1651.69 | N45: 524.303 | O45: 1202.36 | P45: 1969.06 | Q45: 757.054 | R45: 249.784 | S45: 259.277 | T45: 338.959 | U45: 89.726 | V45: 462.959 | W45: 1219.85 | X45: 73.079 | Y45: 473.017 | Z45: 492.652 | AA45: 379.039 | AB45: 75.78 | AC45: 362.674 | AD45: 1126.92 | AE45: 302.938 | AF45: 240.732 | AG45: 608.275 | AH45: 17661.61
A46: Bases (unweighted)
A47: Men | B47: 407 | C47: 484 | D47: 114 | E47: 110 | F47: 46 | G47: 205 | H47: 143 | I47: 275 | J47: 144 | K47: 96 | L47: 109 | M47: 537 | N47: 161 | O47: 859 | P47: 629 | Q47: 235 | R47: 81 | S47: 81 | T47: 178 | U47: 280 | V47: 314 | W47: 340 | X47: 241 | Y47: 171 | Z47: 168 | AA47: 191 | AB47: 243 | AC47: 260 | AD47: 355 | AE47: 92 | AF47: 82 | AG47: 172 | AH47: 7803
A48: Women | B48: 503 | C48: 586 | D48: 146 | E48: 132 | F48: 66 | G48: 244 | H48: 180 | I48: 373 | J48: 175 | K48: 119 | L48: 139 | M48: 638 | N48: 189 | O48: 1058 | P48: 886 | Q48: 313 | R48: 123 | S48: 106 | T48: 245 | U48: 318 | V48: 389 | W48: 488 | X48: 264 | Y48: 207 | Z48: 208 | AA48: 258 | AB48: 265 | AC48: 330 | AD48: 460 | AE48: 134 | AF48: 112 | AG48: 206 | AH48: 9860
A49: All Adults | B49: 910 | C49: 1070 | D49: 260 | E49: 242 | F49: 112 | G49: 449 | H49: 323 | I49: 648 | J49: 319 | K49: 215 | L49: 248 | M49: 1175 | N49: 350 | O49: 1917 | P49: 1515 | Q49: 548 | R49: 204 | S49: 187 | T49: 423 | U49: 598 | V49: 703 | W49: 828 | X49: 505 | Y49: 378 | Z49: 376 | AA49: 449 | AB49: 508 | AC49: 590 | AD49: 815 | AE49: 226 | AF49: 194 | AG49: 378 | AH49: 17663

Sheet Long-term illness chart
R1: INDEX
C31: Source: Scottish Health Survey
C34: Aberdeen City | D34: Aberdeenshire | E34: East Ayrshire | F34: Edinburgh, City of | G34: Fife | H34: Glasgow City | I34: Highland | J34: Na h-Eileanan Siar | K34: North Ayrshire | L34: North Lanarkshire | M34: Orkney Islands | N34: Scottish Borders | O34: Shetland Islands | P34: South Ayrshire | Q34: South Lanarkshire | S34: Scotland
B35: All Adults
B36: Limiting long-term illness | C36: ='Long-term illness'!B31 -> 26.256 | D36: ='Long-term illness'!C31 -> 26.87 | E36: ='Long-term illness'!I31 -> 45.787 | F36: ='Long-term illness'!M31 -> 23.17 | G36: ='Long-term illness'!O31 -> 31.58 | H36: ='Long-term illness'!P31 -> 34.46 | I36: ='Long-term illness'!Q31 -> 33.052 | J36: ='Long-term illness'!U31 -> 34.751 | K36: ='Long-term illness'!V31 -> 43.983 | L36: ='Long-term illness'!W31 -> 33.63 | M36: ='Long-term illness'!X31 -> 35.269 | N36: ='Long-term illness'!AA31 -> 27.939 | O36: ='Long-term illness'!AB31 -> 29.459 | P36: ='Long-term illness'!AC31 -> 51.072 | Q36: ='Long-term illness'!AD31 -> 32.18 | S36: ='Long-term illness'!AH31 -> 31.91
B37: Lower CI | C37: ='Long-term illness'!B32 -> 22.543 | D37: ='Long-term illness'!C32 -> 24.24 | E37: ='Long-term illness'!I32 -> 40.217 | F37: ='Long-term illness'!M32 -> 20.83 | G37: ='Long-term illness'!O32 -> 29.07 | H37: ='Long-term illness'!P32 -> 31.08 | I37: ='Long-term illness'!Q32 -> 28.193 | J37: ='Long-term illness'!U32 -> 30.039 | K37: ='Long-term illness'!V32 -> 38.921 | L37: ='Long-term illness'!W32 -> 29.89 | M37: ='Long-term illness'!X32 -> 31.358 | N37: ='Long-term illness'!AA32 -> 22.471 | O37: ='Long-term illness'!AB32 -> 25.196 | P37: ='Long-term illness'!AC32 -> 42.591 | Q37: ='Long-term illness'!AD32 -> 28.68 | S37: ='Long-term illness'!AH32 -> 30.95
B38: Upper CI | C38: ='Long-term illness'!B33 -> 29.97 | D38: ='Long-term illness'!C33 -> 29.51 | E38: ='Long-term illness'!I33 -> 51.357 | F38: ='Long-term illness'!M33 -> 25.51 | G38: ='Long-term illness'!O33 -> 34.09 | H38: ='Long-term illness'!P33 -> 37.84 | I38: ='Long-term illness'!Q33 -> 37.911 | J38: ='Long-term illness'!U33 -> 39.462 | K38: ='Long-term illness'!V33 -> 49.045 | L38: ='Long-term illness'!W33 -> 37.37 | M38: ='Long-term illness'!X33 -> 39.179 | N38: ='Long-term illness'!AA33 -> 33.408 | O38: ='Long-term illness'!AB33 -> 33.722 | P38: ='Long-term illness'!AC33 -> 59.553 | Q38: ='Long-term illness'!AD33 -> 35.68 | S38: ='Long-term illness'!AH33 -> 32.87
B39: Non-limiting long-term illness | C39: ='Long-term illness'!B34 -> 13.179 | D39: ='Long-term illness'!C34 -> 14.44 | E39: ='Long-term illness'!I34 -> 10.06 | F39: ='Long-term illness'!M34 -> 15.72 | G39: ='Long-term illness'!O34 -> 15.29 | H39: ='Long-term illness'!P34 -> 11.7 | I39: ='Long-term illness'!Q34 -> 16.361 | J39: ='Long-term illness'!U34 -> 14.501 | K39: ='Long-term illness'!V34 -> 11.55 | L39: ='Long-term illness'!W34 -> 14.88 | M39: ='Long-term illness'!X34 -> 20.674 | N39: ='Long-term illness'!AA34 -> 19.782 | O39: ='Long-term illness'!AB34 -> 17.096 | P39: ='Long-term illness'!AC34 -> 7.899 | Q39: ='Long-term illness'!AD34 -> 14.03 | S39: ='Long-term illness'!AH34 -> 14.21
B40: Lower CI | C40: ='Long-term illness'!B35 -> 10.519 | D40: ='Long-term illness'!C35 -> 11.96 | E40: ='Long-term illness'!I35 -> 7.422 | F40: ='Long-term illness'!M35 -> 13.13 | G40: ='Long-term illness'!O35 -> 13.32 | H40: ='Long-term illness'!P35 -> 9.84 | I40: ='Long-term illness'!Q35 -> 13.34 | J40: ='Long-term illness'!U35 -> 10.697 | K40: ='Long-term illness'!V35 -> 8.98 | L40: ='Long-term illness'!W35 -> 12.01 | M40: ='Long-term illness'!X35 -> 16.563 | N40: ='Long-term illness'!AA35 -> 15.525 | O40: ='Long-term illness'!AB35 -> 13.268 | P40: ='Long-term illness'!AC35 -> 4.263 | Q40: ='Long-term illness'!AD35 -> 10.7 | S40: ='Long-term illness'!AH35 -> 13.52
B41: Upper CI | C41: ='Long-term illness'!B36 -> 15.839 | D41: ='Long-term illness'!C36 -> 16.91 | E41: ='Long-term illness'!I36 -> 12.698 | F41: ='Long-term illness'!M36 -> 18.31 | G41: ='Long-term illness'!O36 -> 17.25 | H41: ='Long-term illness'!P36 -> 13.56 | I41: ='Long-term illness'!Q36 -> 19.382 | J41: ='Long-term illness'!U36 -> 18.306 | K41: ='Long-term illness'!V36 -> 14.121 | L41: ='Long-term illness'!W36 -> 17.74 | M41: ='Long-term illness'!X36 -> 24.785 | N41: ='Long-term illness'!AA36 -> 24.039 | O41: ='Long-term illness'!AB36 -> 20.925 | P41: ='Long-term illness'!AC36 -> 11.534 | Q41: ='Long-term illness'!AD36 -> 17.35 | S41: ='Long-term illness'!AH36 -> 14.9
B42: No long-term illness | C42: ='Long-term illness'!B37 -> 60.565 | D42: ='Long-term illness'!C37 -> 58.69 | E42: ='Long-term illness'!I37 -> 44.153 | F42: ='Long-term illness'!M37 -> 61.11 | G42: ='Long-term illness'!O37 -> 53.13 | H42: ='Long-term illness'!P37 -> 53.84 | I42: ='Long-term illness'!Q37 -> 50.587 | J42: ='Long-term illness'!U37 -> 50.748 | K42: ='Long-term illness'!V37 -> 44.467 | L42: ='Long-term illness'!W37 -> 51.5 | M42: ='Long-term illness'!X37 -> 44.058 | N42: ='Long-term illness'!AA37 -> 52.279 | O42: ='Long-term illness'!AB37 -> 53.444 | P42: ='Long-term illness'!AC37 -> 41.029 | Q42: ='Long-term illness'!AD37 -> 53.79 | S42: ='Long-term illness'!AH37 -> 53.88
B43: Lower CI | C43: ='Long-term illness'!B38 -> 56.088 | D43: ='Long-term illness'!C38 -> 55.42 | E43: ='Long-term illness'!I38 -> 39.312 | F43: ='Long-term illness'!M38 -> 57.68 | G43: ='Long-term illness'!O38 -> 50.11 | H43: ='Long-term illness'!P38 -> 50.72 | I43: ='Long-term illness'!Q38 -> 44.66 | J43: ='Long-term illness'!U38 -> 45.353 | K43: ='Long-term illness'!V38 -> 39.134 | L43: ='Long-term illness'!W38 -> 47.25 | M43: ='Long-term illness'!X38 -> 38.385 | N43: ='Long-term illness'!AA38 -> 46.741 | O43: ='Long-term illness'!AB38 -> 47.627 | P43: ='Long-term illness'!AC38 -> 33.897 | Q43: ='Long-term illness'!AD38 -> 49.67 | S43: ='Long-term illness'!AH38 -> 52.82
B44: Upper CI | C44: ='Long-term illness'!B39 -> 65.041 | D44: ='Long-term illness'!C39 -> 61.96 | E44: ='Long-term illness'!I39 -> 48.995 | F44: ='Long-term illness'!M39 -> 64.54 | G44: ='Long-term illness'!O39 -> 56.16 | H44: ='Long-term illness'!P39 -> 56.96 | I44: ='Long-term illness'!Q39 -> 56.514 | J44: ='Long-term illness'!U39 -> 56.142 | K44: ='Long-term illness'!V39 -> 49.799 | L44: ='Long-term illness'!W39 -> 55.74 | M44: ='Long-term illness'!X39 -> 49.73 | N44: ='Long-term illness'!AA39 -> 57.817 | O44: ='Long-term illness'!AB39 -> 59.262 | P44: ='Long-term illness'!AC39 -> 48.162 | Q44: ='Long-term illness'!AD39 -> 57.92 | S44: ='Long-term illness'!AH39 -> 54.94
A46: CLs | B46: Limiting long-term illness | C46: =C36-C37 -> 3.713 | D46: =D36-D37 -> 2.63 | E46: =E36-E37 -> 5.57 | F46: =F36-F37 -> 2.34 | G46: =G36-G37 -> 2.51 | H46: =H36-H37 -> 3.38 | I46: =I36-I37 -> 4.859 | J46: 4.712 | K46: 5.062 | L46: 3.74 | M46: 3.911 | N46: =N36-N37 -> 5.468 | O46: =O36-O37 -> 4.263 | P46: =P36-P37 -> 8.481 | Q46: =Q36-Q37 -> 3.5 | S46: =S36-S37 -> 0.96
B47: Non-limiting long-term illness | C47: =C39-C40 -> 2.66 | D47: =D39-D40 -> 2.48 | E47: =E39-E40 -> 2.638 | F47: =F39-F40 -> 2.59 | G47: =G39-G40 -> 1.97 | H47: =H39-H40 -> 1.86 | I47: =I39-I40 -> 3.021 | J47: 3.804 | K47: 2.57 | L47: 2.87 | M47: 4.111 | N47: =N39-N40 -> 4.257 | O47: =O39-O40 -> 3.828 | P47: =P39-P40 -> 3.636 | Q47: =Q39-Q40 -> 3.33 | S47: =S39-S40 -> 0.69
B48: No long-term illness | C48: =C42-C43 -> 4.477 | D48: =D42-D43 -> 3.27 | E48: =E42-E43 -> 4.841 | F48: =F42-F43 -> 3.43 | G48: =G42-G43 -> 3.02 | H48: =H42-H43 -> 3.12 | I48: =I42-I43 -> 5.927 | J48: 5.395 | K48: 5.333 | L48: 4.25 | M48: 5.673 | N48: =N42-N43 -> 5.538 | O48: =O42-O43 -> 5.817 | P48: =P42-P43 -> 7.132 | Q48: =Q42-Q43 -> 4.12 | S48: =S42-S43 -> 1.06

Sheet Alcohol guidelines
A1: Adherence to weekly drinking advicea by Local Authority and sex | N1: INDEX
A4: Aged 16 and over | B4: PLEASE NOTE: Where the sample size for a Local Authority (which does not correspond fully to an NHS board) was below 500, the result has been suppressed. This is shown here by *. | P4: 2014/2015/2016/2017 combined
A5: Weekly drinking category | B5: Local Authority
B6: Aberdeen City | C6: Aberdeenshire | D6: Angus | E6: Argyll & Bute | F6: Clackmannanshire | G6: Dumfries & Galloway | H6: Dundee City | I6: East Ayrshire | J6: East Dunbartonshire | K6: East Lothian | L6: East Renfrewshire | M6: Edinburgh, City of | N6: Falkirk | O6: Fife | P6: Glasgow City | Q6: Highland | R6: Inverclyde | S6: Midlothian | T6: Moray | U6: Na h-Eileanan Siar | V6: North Ayrshire | W6: North Lanarkshire | X6: Orkney Islands | Y6: Perth & Kinross | Z6: Renfrewshire | AA6: Scottish Borders | AB6: Shetland Islands | AC6: South Ayrshire | AD6: South Lanarkshire | AE6: Stirling | AF6: West Dunbartonshire | AG6: West Lothian | AH6: Scotland
B7: % | C7: % | D7: % | E7: % | F7: % | G7: % | H7: % | I7: % | J7: % | K7: % | L7: % | M7: % | N7: % | O7: % | P7: % | Q7: % | R7: % | S7: % | T7: % | U7: % | V7: % | W7: % | X7: % | Y7: % | Z7: % | AA7: % | AB7: % | AC7: % | AD7: % | AE7: % | AF7: % | AG7: % | AH7: %
A8: Men
A9: Non drinker | B9: 16.293 | C9: 12.33 | D9: * | E9: * | F9: * | G9: * | H9: * | I9: 11.621 | J9: * | K9: * | L9: * | M9: 11.5 | N9: * | O9: 13.3 | P9: 18.2 | Q9: 13.263 | R9: * | S9: * | T9: * | U9: 19.318 | V9: 13.643 | W9: 14.39 | X9: 9.545 | Y9: * | Z9: * | AA9: 11.413 | AB9: 13.342 | AC9: 9.562 | AD9: 12.69 | AE9: * | AF9: * | AG9: * | AH9: 13.61
A10: Lower CI | B10: 12.101 | C10: 8.37 | D10: * | E10: * | F10: * | G10: * | H10: * | I10: 7.093 | J10: * | K10: * | L10: * | M10: 8.23 | N10: * | O10: 10.91 | P10: 14.96 | Q10: 8.669 | R10: * | S10: * | T10: * | U10: 13.376 | V10: 9.604 | W10: 10.57 | X10: 5.799 | Y10: * | Z10: * | AA10: 5.879 | AB10: 9.197 | AC10: 5.543 | AD10: 7.82 | AE10: * | AF10: * | AG10: * | AH10: 12.66
A11: Upper CI | B11: 20.485 | C11: 16.29 | D11: * | E11: * | F11: * | G11: * | H11: * | I11: 16.15 | J11: * | K11: * | L11: * | M11: 14.77 | N11: * | O11: 15.69 | P11: 21.45 | Q11: 17.857 | R11: * | S11: * | T11: * | U11: 25.259 | V11: 17.682 | W11: 18.21 | X11: 13.291 | Y11: * | Z11: * | AA11: 16.947 | AB11: 17.488 | AC11: 13.581 | AD11: 17.56 | AE11: * | AF11: * | AG11: * | AH11: 14.56
A12: Moderateb | B12: 45.339 | C12: 58.69 | D12: * | E12: * | F12: * | G12: * | H12: * | I12: 52.238 | J12: * | K12: * | L12: * | M12: 46.14 | N12: * | O12: 56.18 | P12: 51.38 | Q12: 53.968 | R12: * | S12: * | T12: * | U12: 48.779 | V12: 42.032 | W12: 46.25 | X12: 53.337 | Y12: * | Z12: * | AA12: 59.805 | AB12: 55.785 | AC12: 54.327 | AD12: 54.63 | AE12: * | AF12: * | AG12: * | AH12: 51.68
A13: Lower CI | B13: 40.071 | C13: 53.03 | D13: * | E13: * | F13: * | G13: * | H13: * | I13: 46.47 | J13: * | K13: * | L13: * | M13: 41.09 | N13: * | O13: 52.31 | P13: 46.84 | Q13: 46.323 | R13: * | S13: * | T13: * | U13: 42.311 | V13: 35.033 | W13: 38.98 | X13: 48.472 | Y13: * | Z13: * | AA13: 53.32 | AB13: 49.163 | AC13: 47.922 | AD13: 48.65 | AE13: * | AF13: * | AG13: * | AH13: 50.29
A14: Upper CI | B14: 50.608 | C14: 64.35 | D14: * | E14: * | F14: * | G14: * | H14: * | I14: 58.006 | J14: * | K14: * | L14: * | M14: 51.19 | N14: * | O14: 60.04 | P14: 55.91 | Q14: 61.613 | R14: * | S14: * | T14: * | U14: 55.247 | V14: 49.032 | W14: 53.53 | X14: 58.203 | Y14: * | Z14: * | AA14: 66.29 | AB14: 62.407 | AC14: 60.732 | AD14: 60.6 | AE14: * | AF14: * | AG14: * | AH14: 53.08
A15: Hazardous/Harmfulc | B15: 38.368 | C15: 28.98 | D15: * | E15: * | F15: * | G15: * | H15: * | I15: 36.141 | J15: * | K15: * | L15: * | M15: 42.36 | N15: * | O15: 30.53 | P15: 30.42 | Q15: 32.769 | R15: * | S15: * | T15: * | U15: 31.903 | V15: 44.325 | W15: 39.36 | X15: 37.118 | Y15: * | Z15: * | AA15: 28.782 | AB15: 30.873 | AC15: 36.111 | AD15: 32.69 | AE15: * | AF15: * | AG15: * | AH15: 34.71
A16: Lower CI | B16: 32.571 | C16: 24.6 | D16: * | E16: * | F16: * | G16: * | H16: * | I16: 29.777 | J16: * | K16: * | L16: * | M16: 36.56 | N16: * | O16: 27.06 | P16: 26.41 | Q16: 26.997 | R16: * | S16: * | T16: * | U16: 26.014 | V16: 37.526 | W16: 32.93 | X16: 31.602 | Y16: * | Z16: * | AA16: 22.516 | AB16: 26.009 | AC16: 30.71 | AD16: 26.64 | AE16: * | AF16: * | AG16: * | AH16: 33.32
A17: Upper CI | B17: 44.164 | C17: 33.37 | D17: * | E17: * | F17: * | G17: * | H17: * | I17: 42.504 | J17: * | K17: * | L17: * | M17: 48.16 | N17: * | O17: 33.99 | P17: 34.43 | Q17: 38.54 | R17: * | S17: * | T17: * | U17: 37.792 | V17: 51.124 | W17: 45.79 | X17: 42.634 | Y17: * | Z17: * | AA17: 35.048 | AB17: 35.737 | AC17: 41.512 | AD17: 38.73 | AE17: * | AF17: * | AG17: * | AH17: 36.1
A19: Women
A20: Non drinker | B20: 23.005 | C20: 16.37 | D20: * | E20: * | F20: * | G20: * | H20: * | I20: 18.339 | J20: * | K20: * | L20: * | M20: 16.1 | N20: * | O20: 19.25 | P20: 22.04 | Q20: 15.596 | R20: * | S20: * | T20: * | U20: 27.299 | V20: 24.41 | W20: 19.38 | X20: 15.072 | Y20: * | Z20: * | AA20: 9.876 | AB20: 18.008 | AC20: 13.434 | AD20: 16.7 | AE20: * | AF20: * | AG20: * | AH20: 18.55
A21: Lower CI | B21: 18.621 | C21: 13.06 | D21: * | E21: * | F21: * | G21: * | H21: * | I21: 12.593 | J21: * | K21: * | L21: * | M21: 12.62 | N21: * | O21: 16.51 | P21: 18.96 | Q21: 10.948 | R21: * | S21: * | T21: * | U21: 21.216 | V21: 19.681 | W21: 14.52 | X21: 10.512 | Y21: * | Z21: * | AA21: 6.38 | AB21: 13.66 | AC21: 9.432 | AD21: 12.88 | AE21: * | AF21: * | AG21: * | AH21: 17.6
A22: Upper CI | B22: 27.39 | C22: 19.68 | D22: * | E22: * | F22: * | G22: * | H22: * | I22: 24.085 | J22: * | K22: * | L22: * | M22: 19.58 | N22: * | O22: 21.98 | P22: 25.11 | Q22: 20.245 | R22: * | S22: * | T22: * | U22: 33.382 | V22: 29.14 | W22: 24.24 | X22: 19.632 | Y22: * | Z22: * | AA22: 13.371 | AB22: 22.355 | AC22: 17.436 | AD22: 20.51 | AE22: * | AF22: * | AG22: * | AH22: 19.51
A23: Moderateb | B23: 57.647 | C23: 70.66 | D23: * | E23: * | F23: * | G23: * | H23: * | I23: 66.929 | J23: * | K23: * | L23: * | M23: 61.82 | N23: * | O23: 64.79 | P23: 62.36 | Q23: 68.893 | R23: * | S23: * | T23: * | U23: 63.956 | V23: 57.416 | W23: 63.07 | X23: 70.455 | Y23: * | Z23: * | AA23: 74.94 | AB23: 64.661 | AC23: 68.706 | AD23: 65.57 | AE23: * | AF23: * | AG23: * | AH23: 64.88
A24: Lower CI | B24: 52.233 | C24: 66.54 | D24: * | E24: * | F24: * | G24: * | H24: * | I24: 60.278 | J24: * | K24: * | L24: * | M24: 58.01 | N24: * | O24: 61.98 | P24: 58.91 | Q24: 63.469 | R24: * | S24: * | T24: * | U24: 57.52 | V24: 52.406 | W24: 57.21 | X24: 65.23 | Y24: * | Z24: * | AA24: 69.192 | AB24: 58.558 | AC24: 63.142 | AD24: 60.9 | AE24: * | AF24: * | AG24: * | AH24: 63.72
A25: Upper CI | B25: 63.061 | C25: 74.79 | D25: * | E25: * | F25: * | G25: * | H25: * | I25: 73.579 | J25: * | K25: * | L25: * | M25: 65.62 | N25: * | O25: 67.59 | P25: 65.82 | Q25: 74.317 | R25: * | S25: * | T25: * | U25: 70.393 | V25: 62.427 | W25: 68.94 | X25: 75.68 | Y25: * | Z25: * | AA25: 80.688 | AB25: 70.764 | AC25: 74.27 | AD25: 70.24 | AE25: * | AF25: * | AG25: * | AH25: 66.03
A26: Hazardous/Harmfulc | B26: 19.347 | C26: 12.97 | D26: * | E26: * | F26: * | G26: * | H26: * | I26: 14.733 | J26: * | K26: * | L26: * | M26: 22.08 | N26: * | O26: 15.97 | P26: 15.6 | Q26: 15.511 | R26: * | S26: * | T26: * | U26: 8.745 | V26: 18.173 | W26: 17.55 | X26: 14.474 | Y26: * | Z26: * | AA26: 15.184 | AB26: 17.331 | AC26: 17.86 | AD26: 17.73 | AE26: * | AF26: * | AG26: * | AH26: 16.57
A27: Lower CI | B27: 14.692 | C27: 9.86 | D27: * | E27: * | F27: * | G27: * | H27: * | I27: 10.669 | J27: * | K27: * | L27: * | M27: 18.72 | N27: * | O27: 13.68 | P27: 12.85 | Q27: 11.99 | R27: * | S27: * | T27: * | U27: 3.653 | V27: 13.679 | W27: 13.11 | X27: 10.662 | Y27: * | Z27: * | AA27: 10.103 | AB27: 11.095 | AC27: 13.753 | AD27: 13.41 | AE27: * | AF27: * | AG27: * | AH27: 15.69
A28: Upper CI | B28: 24.003 | C28: 16.07 | D28: * | E28: * | F28: * | G28: * | H28: * | I28: 18.796 | J28: * | K28: * | L28: * | M28: 25.44 | N28: * | O28: 18.25 | P28: 18.35 | Q28: 19.032 | R28: * | S28: * | T28: * | U28: 13.836 | V28: 22.668 | W28: 21.99 | X28: 18.285 | Y28: * | Z28: * | AA28: 20.265 | AB28: 23.568 | AC28: 21.967 | AD28: 22.06 | AE28: * | AF28: * | AG28: * | AH28: 17.45
A30: All Adults
A31: Non drinker | B31: 19.75 | C31: 14.42 | D31: * | E31: * | F31: * | G31: * | H31: * | I31: 15.403 | J31: * | K31: * | L31: * | M31: 13.78 | N31: * | O31: 16.32 | P31: 20.23 | Q31: 14.497 | R31: * | S31: * | T31: * | U31: 23.254 | V31: 19.371 | W31: 17.11 | X31: 12.241 | Y31: * | Z31: * | AA31: 10.571 | AB31: 15.593 | AC31: 11.631 | AD31: 14.74 | AE31: * | AF31: * | AG31: * | AH31: 16.18
A32: Lower CI | B32: 16.499 | C32: 11.57 | D32: * | E32: * | F32: * | G32: * | H32: * | I32: 10.821 | J32: * | K32: * | L32: * | M32: 10.78 | N32: * | O32: 14.19 | P32: 17.55 | Q32: 10.913 | R32: * | S32: * | T32: * | U32: 18.063 | V32: 15.794 | W32: 13.6 | X32: 9.184 | Y32: * | Z32: * | AA32: 7.521 | AB32: 12.785 | AC32: 8.78 | AD32: 11.69 | AE32: * | AF32: * | AG32: * | AH32: 15.42
A33: Upper CI | B33: 23.001 | C33: 17.26 | D33: * | E33: * | F33: * | G33: * | H33: * | I33: 19.984 | J33: * | K33: * | L33: * | M33: 16.78 | N33: * | O33: 18.44 | P33: 22.91 | Q33: 18.081 | R33: * | S33: * | T33: * | U33: 28.445 | V33: 22.948 | W33: 20.62 | X33: 15.298 | Y33: * | Z33: * | AA33: 13.621 | AB33: 18.402 | AC33: 14.482 | AD33: 17.79 | AE33: * | AF33: * | AG33: * | AH33: 16.94
A34: Moderateb | B34: 51.678 | C34: 64.87 | D34: * | E34: * | F34: * | G34: * | H34: * | I34: 60.508 | J34: * | K34: * | L34: * | M34: 53.91 | N34: * | O34: 60.55 | P34: 57.19 | Q34: 61.861 | R34: * | S34: * | T34: * | U34: 56.264 | V34: 50.216 | W34: 55.42 | X34: 61.689 | Y34: * | Z34: * | AA34: 68.094 | AB34: 60.068 | AC34: 62.011 | AD34: 60.23 | AE34: * | AF34: * | AG34: * | AH34: 58.55
A35: Lower CI | B35: 47.201 | C35: 60.96 | D35: * | E35: * | F35: * | G35: * | H35: * | I35: 55.478 | J35: * | K35: * | L35: * | M35: 50.48 | N35: * | O35: 57.91 | P35: 54.09 | Q35: 56.987 | R35: * | S35: * | T35: * | U35: 50.915 | V35: 45.811 | W35: 50.57 | X35: 57.876 | Y35: * | Z35: * | AA35: 63.151 | AB35: 54.92 | AC35: 57.896 | AD35: 56.06 | AE35: * | AF35: * | AG35: * | AH35: 57.57
A36: Upper CI | B36: 56.156 | C36: 68.79 | D36: * | E36: * | F36: * | G36: * | H36: * | I36: 65.537 | J36: * | K36: * | L36: * | M36: 57.34 | N36: * | O36: 63.19 | P36: 60.29 | Q36: 66.735 | R36: * | S36: * | T36: * | U36: 61.613 | V36: 54.622 | W36: 60.28 | X36: 65.501 | Y36: * | Z36: * | AA36: 73.037 | AB36: 65.215 | AC36: 66.126 | AD36: 64.41 | AE36: * | AF36: * | AG36: * | AH36: 59.54
A37: Hazardous/Harmfulc | B37: 28.572 | C37: 20.71 | D37: * | E37: * | F37: * | G37: * | H37: * | I37: 24.09 | J37: * | K37: * | L37: * | M37: 32.31 | N37: * | O37: 23.13 | P37: 22.58 | Q37: 23.642 | R37: * | S37: * | T37: * | U37: 20.482 | V37: 30.413 | W37: 27.47 | X37: 26.07 | Y37: * | Z37: * | AA37: 21.335 | AB37: 24.339 | AC37: 26.358 | AD37: 25.03 | AE37: * | AF37: * | AG37: * | AH37: 25.26
A38: Lower CI | B38: 24.84 | C38: 17.59 | D38: * | E38: * | F38: * | G38: * | H38: * | I38: 20.049 | J38: * | K38: * | L38: * | M38: 28.58 | N38: * | O38: 20.75 | P38: 19.9 | Q38: 19.82 | R38: * | S38: * | T38: * | U38: 16.26 | V38: 26.132 | W38: 23.25 | X38: 22.515 | Y38: * | Z38: * | AA38: 16.447 | AB38: 19.648 | AC38: 22.741 | AD38: 21.29 | AE38: * | AF38: * | AG38: * | AH38: 24.37
A39: Upper CI | B39: 32.303 | C39: 23.83 | D39: * | E39: * | F39: * | G39: * | H39: * | I39: 28.13 | J39: * | K39: * | L39: * | M39: 36.05 | N39: * | O39: 25.51 | P39: 25.26 | Q39: 27.464 | R39: * | S39: * | T39: * | U39: 24.705 | V39: 34.694 | W39: 31.68 | X39: 29.626 | Y39: * | Z39: * | AA39: 26.223 | AB39: 29.03 | AC39: 29.975 | AD39: 28.77 | AE39: * | AF39: * | AG39: * | AH39: 26.16
A41: Bases (weighted):
A42: Men | B42: 349.717 | C42: 401.68 | D42: 170.13 | E42: 147.951 | F42: 71.728 | G42: 229.785 | H42: 238.571 | I42: 172.816 | J42: 189.682 | K42: 156.592 | L42: 135.307 | M42: 818.91 | N42: 263.511 | O42: 582.63 | P42: 903.05 | Q42: 351.833 | R42: 101.538 | S42: 119.535 | T42: 150.84 | U42: 44.261 | V42: 211.407 | W42: 530.52 | X42: 37.337 | Y42: 221.93 | Z42: 237.275 | AA42: 169.079 | AB42: 38.858 | AC42: 167.084 | AD42: 547.38 | AE42: 135.05 | AF42: 113.716 | AG42: 294.718 | AH42: 8304.42
A43: Women | B43: 371.394 | C43: 428.99 | D43: 195.447 | E43: 141.453 | F43: 86.173 | G43: 248.505 | H43: 266.266 | I43: 222.572 | J43: 178.85 | K43: 177.307 | L43: 140.578 | M43: 804.2 | N43: 254.45 | O43: 601.35 | P43: 1014.51 | Q43: 394.91 | R43: 142.183 | S43: 135.534 | T43: 184.437 | U43: 43.066 | V43: 240.287 | W43: 636.2 | X43: 35.57 | Y43: 246.613 | Z43: 246.084 | AA43: 204.7 | AB43: 36.229 | AC43: 191.75 | AD43: 574.64 | AE43: 164.223 | AF43: 125.237 | AG43: 290.988 | AH43: 9024.7
A44: All Adults | B44: 721.111 | C44: 830.67 | D44: 365.578 | E44: 289.404 | F44: 157.901 | G44: 478.29 | H44: 504.837 | I44: 395.388 | J44: 368.532 | K44: 333.899 | L44: 275.885 | M44: 1623.11 | N44: 517.961 | O44: 1183.99 | P44: 1917.56 | Q44: 746.743 | R44: 243.721 | S44: 255.069 | T44: 335.277 | U44: 87.327 | V44: 451.694 | W44: 1166.72 | X44: 72.907 | Y44: 468.543 | Z44: 483.359 | AA44: 373.779 | AB44: 75.086 | AC44: 358.835 | AD44: 1122.03 | AE44: 299.272 | AF44: 238.952 | AG44: 585.706 | AH44: 17329.13
A45: Bases (unweighted)
A46: Men | B46: 397 | C46: 480 | D46: 114 | E46: 110 | F46: 46 | G46: 198 | H46: 143 | I46: 271 | J46: 144 | K46: 94 | L46: 109 | M46: 529 | N46: 159 | O46: 851 | P46: 616 | Q46: 230 | R46: 80 | S46: 79 | T46: 177 | U46: 276 | V46: 307 | W46: 326 | X46: 241 | Y46: 170 | Z46: 164 | AA46: 187 | AB46: 240 | AC46: 254 | AD46: 354 | AE46: 92 | AF46: 82 | AG46: 165 | AH46: 7685
A47: Women | B47: 500 | C47: 580 | D47: 144 | E47: 130 | F47: 66 | G47: 233 | H47: 178 | I47: 371 | J47: 174 | K47: 116 | L47: 138 | M47: 632 | N47: 187 | O47: 1042 | P47: 871 | Q47: 313 | R47: 120 | S47: 106 | T47: 242 | U47: 312 | V47: 383 | W47: 480 | X47: 263 | Y47: 205 | Z47: 206 | AA47: 255 | AB47: 263 | AC47: 330 | AD47: 460 | AE47: 132 | AF47: 111 | AG47: 205 | AH47: 9748
A48: All Adults | B48: 897 | C48: 1060 | D48: 258 | E48: 240 | F48: 112 | G48: 431 | H48: 321 | I48: 642 | J48: 318 | K48: 210 | L48: 247 | M48: 1161 | N48: 346 | O48: 1893 | P48: 1487 | Q48: 543 | R48: 200 | S48: 185 | T48: 419 | U48: 588 | V48: 690 | W48: 806 | X48: 504 | Y48: 375 | Z48: 370 | AA48: 442 | AB48: 503 | AC48: 584 | AD48: 814 | AE48: 224 | AF48: 193 | AG48: 370 | AH48: 17433
A50: a 2016 CMO recommendations: https://www.gov.uk/government/uploads/system/uploads/attachment_data/file/545937/UK_CMOs__report.pdf
A51: b Up to and including 14 units per week
A52: c Over 14 units per week

Sheet Alcohol guidelines chart
R1: INDEX
C31: Source: Scottish Health Survey
C32: Aberdeen City | D32: Aberdeenshire | E32: East Ayrshire | F32: Edinburgh, City of | G32: Fife | H32: Glasgow City | I32: Highland | J32: Na h-Eileanan Siar | K32: North Ayrshire | L32: North Lanarkshire | M32: Orkney Islands | N32: Scottish Borders | O32: Shetland Islands | P32: South Ayrshire | Q32: South Lanarkshire | S32: Scotland
B33: All Adults
B34: Non drinker | C34: ='Alcohol guidelines'!B31 -> 19.75 | D34: ='Alcohol guidelines'!C31 -> 14.42 | E34: ='Alcohol guidelines'!I31 -> 15.403 | F34: ='Alcohol guidelines'!M31 -> 13.78 | G34: ='Alcohol guidelines'!O31 -> 16.32 | H34: ='Alcohol guidelines'!P31 -> 20.23 | I34: ='Alcohol guidelines'!Q31 -> 14.497 | J34: ='Alcohol guidelines'!U31 -> 23.254 | K34: ='Alcohol guidelines'!V31 -> 19.371 | L34: ='Alcohol guidelines'!W31 -> 17.11 | M34: ='Alcohol guidelines'!X31 -> 12.241 | N34: ='Alcohol guidelines'!AA31 -> 10.571 | O34: ='Alcohol guidelines'!AB31 -> 15.593 | P34: ='Alcohol guidelines'!AC31 -> 11.631 | Q34: ='Alcohol guidelines'!AD31 -> 14.74 | S34: ='Alcohol guidelines'!AH31 -> 16.18
B35: Lower CI | C35: ='Alcohol guidelines'!B32 -> 16.499 | D35: ='Alcohol guidelines'!C32 -> 11.57 | E35: ='Alcohol guidelines'!I32 -> 10.821 | F35: ='Alcohol guidelines'!M32 -> 10.78 | G35: ='Alcohol guidelines'!O32 -> 14.19 | H35: ='Alcohol guidelines'!P32 -> 17.55 | I35: ='Alcohol guidelines'!Q32 -> 10.913 | J35: ='Alcohol guidelines'!U32 -> 18.063 | K35: ='Alcohol guidelines'!V32 -> 15.794 | L35: ='Alcohol guidelines'!W32 -> 13.6 | M35: ='Alcohol guidelines'!X32 -> 9.184 | N35: ='Alcohol guidelines'!AA32 -> 7.521 | O35: ='Alcohol guidelines'!AB32 -> 12.785 | P35: ='Alcohol guidelines'!AC32 -> 8.78 | Q35: ='Alcohol guidelines'!AD32 -> 11.69 | S35: ='Alcohol guidelines'!AH32 -> 15.42
B36: Upper CI | C36: ='Alcohol guidelines'!B33 -> 23.001 | D36: ='Alcohol guidelines'!C33 -> 17.26 | E36: ='Alcohol guidelines'!I33 -> 19.984 | F36: ='Alcohol guidelines'!M33 -> 16.78 | G36: ='Alcohol guidelines'!O33 -> 18.44 | H36: ='Alcohol guidelines'!P33 -> 22.91 | I36: ='Alcohol guidelines'!Q33 -> 18.081 | J36: ='Alcohol guidelines'!U33 -> 28.445 | K36: ='Alcohol guidelines'!V33 -> 22.948 | L36: ='Alcohol guidelines'!W33 -> 20.62 | M36: ='Alcohol guidelines'!X33 -> 15.298 | N36: ='Alcohol guidelines'!AA33 -> 13.621 | O36: ='Alcohol guidelines'!AB33 -> 18.402 | P36: ='Alcohol guidelines'!AC33 -> 14.482 | Q36: ='Alcohol guidelines'!AD33 -> 17.79 | S36: ='Alcohol guidelines'!AH33 -> 16.94
B37: Moderate | C37: ='Alcohol guidelines'!B34 -> 51.678 | D37: ='Alcohol guidelines'!C34 -> 64.87 | E37: ='Alcohol guidelines'!I34 -> 60.508 | F37: ='Alcohol guidelines'!M34 -> 53.91 | G37: ='Alcohol guidelines'!O34 -> 60.55 | H37: ='Alcohol guidelines'!P34 -> 57.19 | I37: ='Alcohol guidelines'!Q34 -> 61.861 | J37: ='Alcohol guidelines'!U34 -> 56.264 | K37: ='Alcohol guidelines'!V34 -> 50.216 | L37: ='Alcohol guidelines'!W34 -> 55.42 | M37: ='Alcohol guidelines'!X34 -> 61.689 | N37: ='Alcohol guidelines'!AA34 -> 68.094 | O37: ='Alcohol guidelines'!AB34 -> 60.068 | P37: ='Alcohol guidelines'!AC34 -> 62.011 | Q37: ='Alcohol guidelines'!AD34 -> 60.23 | S37: ='Alcohol guidelines'!AH34 -> 58.55
B38: Lower CI | C38: ='Alcohol guidelines'!B35 -> 47.201 | D38: ='Alcohol guidelines'!C35 -> 60.96 | E38: ='Alcohol guidelines'!I35 -> 55.478 | F38: ='Alcohol guidelines'!M35 -> 50.48 | G38: ='Alcohol guidelines'!O35 -> 57.91 | H38: ='Alcohol guidelines'!P35 -> 54.09 | I38: ='Alcohol guidelines'!Q35 -> 56.987 | J38: ='Alcohol guidelines'!U35 -> 50.915 | K38: ='Alcohol guidelines'!V35 -> 45.811 | L38: ='Alcohol guidelines'!W35 -> 50.57 | M38: ='Alcohol guidelines'!X35 -> 57.876 | N38: ='Alcohol guidelines'!AA35 -> 63.151 | O38: ='Alcohol guidelines'!AB35 -> 54.92 | P38: ='Alcohol guidelines'!AC35 -> 57.896 | Q38: ='Alcohol guidelines'!AD35 -> 56.06 | S38: ='Alcohol guidelines'!AH35 -> 57.57
B39: Upper CI | C39: ='Alcohol guidelines'!B36 -> 56.156 | D39: ='Alcohol guidelines'!C36 -> 68.79 | E39: ='Alcohol guidelines'!I36 -> 65.537 | F39: ='Alcohol guidelines'!M36 -> 57.34 | G39: ='Alcohol guidelines'!O36 -> 63.19 | H39: ='Alcohol guidelines'!P36 -> 60.29 | I39: ='Alcohol guidelines'!Q36 -> 66.735 | J39: ='Alcohol guidelines'!U36 -> 61.613 | K39: ='Alcohol guidelines'!V36 -> 54.622 | L39: ='Alcohol guidelines'!W36 -> 60.28 | M39: ='Alcohol guidelines'!X36 -> 65.501 | N39: ='Alcohol guidelines'!AA36 -> 73.037 | O39: ='Alcohol guidelines'!AB36 -> 65.215 | P39: ='Alcohol guidelines'!AC36 -> 66.126 | Q39: ='Alcohol guidelines'!AD36 -> 64.41 | S39: ='Alcohol guidelines'!AH36 -> 59.54
B40: Hazardous/harmful | C40: ='Alcohol guidelines'!B37 -> 28.572 | D40: ='Alcohol guidelines'!C37 -> 20.71 | E40: ='Alcohol guidelines'!I37 -> 24.09 | F40: ='Alcohol guidelines'!M37 -> 32.31 | G40: ='Alcohol guidelines'!O37 -> 23.13 | H40: ='Alcohol guidelines'!P37 -> 22.58 | I40: ='Alcohol guidelines'!Q37 -> 23.642 | J40: ='Alcohol guidelines'!U37 -> 20.482 | K40: ='Alcohol guidelines'!V37 -> 30.413 | L40: ='Alcohol guidelines'!W37 -> 27.47 | M40: ='Alcohol guidelines'!X37 -> 26.07 | N40: ='Alcohol guidelines'!AA37 -> 21.335 | O40: ='Alcohol guidelines'!AB37 -> 24.339 | P40: ='Alcohol guidelines'!AC37 -> 26.358 | Q40: ='Alcohol guidelines'!AD37 -> 25.03 | S40: ='Alcohol guidelines'!AH37 -> 25.26
B41: Lower CI | C41: ='Alcohol guidelines'!B38 -> 24.84 | D41: ='Alcohol guidelines'!C38 -> 17.59 | E41: ='Alcohol guidelines'!I38 -> 20.049 | F41: ='Alcohol guidelines'!M38 -> 28.58 | G41: ='Alcohol guidelines'!O38 -> 20.75 | H41: ='Alcohol guidelines'!P38 -> 19.9 | I41: ='Alcohol guidelines'!Q38 -> 19.82 | J41: ='Alcohol guidelines'!U38 -> 16.26 | K41: ='Alcohol guidelines'!V38 -> 26.132 | L41: ='Alcohol guidelines'!W38 -> 23.25 | M41: ='Alcohol guidelines'!X38 -> 22.515 | N41: ='Alcohol guidelines'!AA38 -> 16.447 | O41: ='Alcohol guidelines'!AB38 -> 19.648 | P41: ='Alcohol guidelines'!AC38 -> 22.741 | Q41: ='Alcohol guidelines'!AD38 -> 21.29 | S41: ='Alcohol guidelines'!AH38 -> 24.37
B42: Upper CI | C42: ='Alcohol guidelines'!B39 -> 32.303 | D42: ='Alcohol guidelines'!C39 -> 23.83 | E42: ='Alcohol guidelines'!I39 -> 28.13 | F42: ='Alcohol guidelines'!M39 -> 36.05 | G42: ='Alcohol guidelines'!O39 -> 25.51 | H42: ='Alcohol guidelines'!P39 -> 25.26 | I42: ='Alcohol guidelines'!Q39 -> 27.464 | J42: ='Alcohol guidelines'!U39 -> 24.705 | K42: ='Alcohol guidelines'!V39 -> 34.694 | L42: ='Alcohol guidelines'!W39 -> 31.68 | M42: ='Alcohol guidelines'!X39 -> 29.626 | N42: ='Alcohol guidelines'!AA39 -> 26.223 | O42: ='Alcohol guidelines'!AB39 -> 29.03 | P42: ='Alcohol guidelines'!AC39 -> 29.975 | Q42: ='Alcohol guidelines'!AD39 -> 28.77 | S42: ='Alcohol guidelines'!AH39 -> 26.16
A44: CLs | B44: Non drinker | C44: =C34-C35 -> 3.251 | D44: =D34-D35 -> 2.85 | E44: 4.582 | F44: =F34-F35 -> 3 | G44: 2.13 | H44: 2.68 | I44: =I34-I35 -> 3.584 | J44: =J34-J35 -> 5.191 | K44: 3.577 | L44: 3.51 | M44: 3.057 | N44: 3.05 | O44: 2.808 | P44: 2.851 | Q44: 3.05 | S44: =S34-S35 -> 0.76
B45: Moderate | C45: =C37-C38 -> 4.477 | D45: =D37-D38 -> 3.91 | E45: 5.03 | F45: =F37-F38 -> 3.43 | G45: 2.64 | H45: 3.1 | I45: =I37-I38 -> 4.874 | J45: =J37-J38 -> 5.349 | K45: 4.405 | L45: 4.85 | M45: 3.813 | N45: 4.943 | O45: 5.148 | P45: 4.115 | Q45: 4.17 | S45: =S37-S38 -> 0.98
B46: Hazardous/harmful | C46: =C40-C41 -> 3.732 | D46: =D40-D41 -> 3.12 | E46: 4.041 | F46: =F40-F41 -> 3.73 | G46: 2.38 | H46: 2.68 | I46: =I40-I41 -> 3.822 | J46: =J40-J41 -> 4.222 | K46: 4.281 | L46: 4.22 | M46: 3.555 | N46: 4.888 | O46: 4.691 | P46: 3.617 | Q46: 3.74 | S46: =S40-S41 -> 0.89
C47: Based on 2016 CMO recommendations (https://www.gov.uk/government/uploads/system/uploads/attachment_data/file/545937/UK_CMOs__report.pdf) Moderate- Up to and including 14 units per week Hazardous/harmful- Over 14 units per week

Sheet Mean alcohol units
A1: Mean number of alcohol units consumed weekly, by Local Authority and sex | M1: INDEX
A4: Aged 16 and over | B4: PLEASE NOTE: Where the sample size for a Local Authority (which does not correspond fully to an NHS board) was below 500, the result has been suppressed. This is shown here by *. | P4: 2014/2015/2016/2017 combined
A5: Mean alcohol drinking | B5: Local Authority
B6: Aberdeen City | C6: Aberdeenshire | D6: Angus | E6: Argyll & Bute | F6: Clackmannanshire | G6: Dumfries & Galloway | H6: Dundee City | I6: East Ayrshire | J6: East Dunbartonshire | K6: East Lothian | L6: East Renfrewshire | M6: Edinburgh, City of | N6: Falkirk | O6: Fife | P6: Glasgow City | Q6: Highland | R6: Inverclyde | S6: Midlothian | T6: Moray | U6: Na h-Eileanan Siar | V6: North Ayrshire | W6: North Lanarkshire | X6: Orkney Islands | Y6: Perth & Kinross | Z6: Renfrewshire | AA6: Scottish Borders | AB6: Shetland Islands | AC6: South Ayrshire | AD6: South Lanarkshire | AE6: Stirling | AF6: West Dunbartonshire | AG6: West Lothian | AH6: Scotland
A7: Men
A8: Weekly mean unitsa | B8: 19.612 | C8: 13.524 | D8: * | E8: * | F8: * | G8: * | H8: * | I8: 17.39 | J8: * | K8: * | L8: * | M8: 18.82 | N8: * | O8: 14.99 | P8: 16.25 | Q8: * | R8: * | S8: * | T8: * | U8: 16.975 | V8: 22.467 | W8: 17.471 | X8: 18.203 | Y8: * | Z8: * | AA8: 13.148 | AB8: 16.391 | AC8: 21.288 | AD8: 18.155 | AE8: * | AF8: * | AG8: * | AH8: 16.61
A9: Lower CI | B9: 15.928 | C9: 11.512 | D9: * | E9: * | F9: * | G9: * | H9: * | I9: 14.506 | J9: * | K9: * | L9: * | M9: 16.22 | N9: * | O9: 13.17 | P9: 14.25 | Q9: * | R9: * | S9: * | T9: * | U9: 13.266 | V9: 18.707 | W9: 14.176 | X9: 14.964 | Y9: * | Z9: * | AA9: 10.828 | AB9: 13.196 | AC9: 15.678 | AD9: 14.702 | AE9: * | AF9: * | AG9: * | AH9: 15.92
A10: Upper CI | B10: 23.296 | C10: 15.537 | D10: * | E10: * | F10: * | G10: * | H10: * | I10: 20.275 | J10: * | K10: * | L10: * | M10: 21.41 | N10: * | O10: 16.82 | P10: 18.25 | Q10: * | R10: * | S10: * | T10: * | U10: 20.683 | V10: 26.227 | W10: 20.767 | X10: 21.442 | Y10: * | Z10: * | AA10: 15.467 | AB10: 19.586 | AC10: 26.898 | AD10: 21.607 | AE10: * | AF10: * | AG10: * | AH10: 17.3
A12: Women
A13: Weekly mean unitsa | B13: 10.435 | C13: 8.215 | D13: * | E13: * | F13: * | G13: * | H13: * | I13: 8.295 | J13: * | K13: * | L13: * | M13: 9.95 | N13: * | O13: 8.64 | P13: 8.41 | Q13: * | R13: * | S13: * | T13: * | U13: 5.888 | V13: 9.882 | W13: 9.198 | X13: 7.799 | Y13: * | Z13: * | AA13: 7.633 | AB13: 8.505 | AC13: 8.734 | AD13: 9.163 | AE13: * | AF13: * | AG13: * | AH13: 8.77
A14: Lower CI | B14: 8.726 | C14: 6.884 | D14: * | E14: * | F14: * | G14: * | H14: * | I14: 6.2 | J14: * | K14: * | L14: * | M14: 8.9 | N14: * | O14: 7.49 | P14: 7.43 | Q14: * | R14: * | S14: * | T14: * | U14: 4.33 | V14: 8.193 | W14: 7.518 | X14: 6.485 | Y14: * | Z14: * | AA14: 6.139 | AB14: 6.597 | AC14: 7.048 | AD14: 7.25 | AE14: * | AF14: * | AG14: * | AH14: 8.44
A15: Upper CI | B15: 12.145 | C15: 9.545 | D15: * | E15: * | F15: * | G15: * | H15: * | I15: 10.389 | J15: * | K15: * | L15: * | M15: 11 | N15: * | O15: 9.79 | P15: 9.39 | Q15: * | R15: * | S15: * | T15: * | U15: 7.447 | V15: 11.57 | W15: 10.878 | X15: 9.113 | Y15: * | Z15: * | AA15: 9.127 | AB15: 10.412 | AC15: 10.419 | AD15: 11.075 | AE15: * | AF15: * | AG15: * | AH15: 9.11
A17: All adults
A18: Weekly mean unitsa | B18: 15.091 | C18: 10.827 | D18: * | E18: * | F18: * | G18: * | H18: * | I18: 12.445 | J18: * | K18: * | L18: * | M18: 14.56 | N18: * | O18: 11.88 | P18: 12.2 | Q18: * | R18: * | S18: * | T18: * | U18: 11.815 | V18: 16.2 | W18: 13.079 | X18: 13.299 | Y18: * | Z18: * | AA18: 10.117 | AB18: 12.68 | AC18: 14.721 | AD18: 13.669 | AE18: * | AF18: * | AG18: * | AH18: 12.65
A19: Lower CI | B19: 12.934 | C19: 9.461 | D19: * | E19: * | F19: * | G19: * | H19: * | I19: 10.65 | J19: * | K19: * | L19: * | M19: 13.02 | N19: * | O19: 10.73 | P19: 11.02 | Q19: * | R19: * | S19: * | T19: * | U19: 9.467 | V19: 13.775 | W19: 11.248 | X19: 11.398 | Y19: * | Z19: * | AA19: 8.688 | AB19: 10.466 | AC19: 11.406 | AD19: 11.553 | AE19: * | AF19: * | AG19: * | AH19: 12.24
A20: Upper CI | B20: 17.248 | C20: 12.193 | D20: * | E20: * | F20: * | G20: * | H20: * | I20: 14.24 | J20: * | K20: * | L20: * | M20: 16.1 | N20: * | O20: 13.04 | P20: 13.38 | Q20: * | R20: * | S20: * | T20: * | U20: 14.163 | V20: 18.626 | W20: 14.909 | X20: 15.199 | Y20: * | Z20: * | AA20: 11.545 | AB20: 14.893 | AC20: 18.036 | AD20: 15.786 | AE20: * | AF20: * | AG20: * | AH20: 13.05
A22: Bases (weighted):
A23: Men | B23: 290.7 | C23: 337.181 | D23: 140.695 | E23: 124.111 | F23: 58.008 | G23: 184.847 | H23: 203.226 | I23: 151.102 | J23: 161.442 | K23: 135.595 | L23: 109.461 | M23: 720.11 | N23: 234.785 | O23: 497.23 | P23: 728.19 | Q23: 299.674 | R23: 80.406 | S23: 109.751 | T23: 138.536 | U23: 35.711 | V23: 181.162 | W23: 450.891 | X23: 33.547 | Y23: 202.478 | Z23: 209.391 | AA23: 148.352 | AB23: 33.231 | AC23: 148.979 | AD23: 469.967 | AE23: 126.171 | AF23: 81.372 | AG23: 242.307 | AH23: 7068.61
A24: Women | B24: 282.29 | C24: 348.088 | D24: 150.315 | E24: 113.689 | F24: 66.751 | G24: 210.434 | H24: 220.267 | I24: 180.049 | J24: 151.501 | K24: 145.237 | L24: 114.876 | M24: 664.65 | N24: 194.08 | O24: 476.08 | P24: 780.07 | Q24: 329.279 | R24: 114.61 | S24: 115.205 | T24: 152.243 | U24: 31.089 | V24: 179.656 | W24: 510.329 | X24: 29.913 | Y24: 198.142 | Z24: 195.929 | AA24: 181.05 | AB24: 29.537 | AC24: 163.401 | AD24: 467.7 | AE24: 137.369 | AF24: 80.369 | AG24: 223.894 | AH24: 7238.1
A25: All Adults | B25: 572.99 | C25: 685.269 | D25: 291.01 | E25: 237.801 | F25: 124.759 | G25: 395.282 | H25: 423.493 | I25: 331.151 | J25: 312.943 | K25: 280.832 | L25: 224.337 | M25: 1384.75 | N25: 428.865 | O25: 973.32 | P25: 1508.27 | Q25: 628.952 | R25: 195.016 | S25: 224.956 | T25: 290.778 | U25: 66.8 | V25: 360.818 | W25: 961.22 | X25: 63.46 | Y25: 400.619 | Z25: 405.32 | AA25: 329.402 | AB25: 62.768 | AC25: 312.381 | AD25: 937.667 | AE25: 263.541 | AF25: 161.741 | AG25: 466.202 | AH25: 14306.71
A26: Bases (unweighted)
A27: Men | B27: 327 | C27: 406 | D27: 94 | E27: 91 | F27: 38 | G27: 158 | H27: 122 | I27: 237 | J27: 122 | K27: 77 | L27: 88 | M27: 460 | N27: 139 | O27: 719 | P27: 490 | Q27: 196 | R27: 62 | S27: 72 | T27: 161 | U27: 219 | V27: 261 | W27: 271 | X27: 215 | Y27: 155 | Z27: 144 | AA27: 162 | AB27: 202 | AC27: 225 | AD27: 303 | AE27: 85 | AF27: 58 | AG27: 134 | AH27: 6493
A28: Women | B28: 366 | C28: 468 | D28: 111 | E28: 104 | F28: 52 | G28: 196 | H28: 145 | I28: 301 | J28: 145 | K28: 93 | L28: 113 | M28: 518 | N28: 139 | O28: 823 | P28: 662 | Q28: 256 | R28: 94 | S28: 89 | T28: 198 | U28: 225 | V28: 288 | W28: 376 | X28: 218 | Y28: 165 | Z28: 164 | AA28: 224 | AB28: 214 | AC28: 282 | AD28: 369 | AE28: 109 | AF28: 71 | AG28: 156 | AH28: 7734
A29: All Adults | B29: 693 | C29: 874 | D29: 205 | E29: 195 | F29: 90 | G29: 354 | H29: 267 | I29: 538 | J29: 267 | K29: 170 | L29: 201 | M29: 978 | N29: 278 | O29: 1542 | P29: 1152 | Q29: 452 | R29: 156 | S29: 161 | T29: 359 | U29: 444 | V29: 549 | W29: 647 | X29: 433 | Y29: 320 | Z29: 308 | AA29: 386 | AB29: 416 | AC29: 507 | AD29: 672 | AE29: 194 | AF29: 129 | AG29: 290 | AH29: 14227
A31: a Among those who drank in the last year

Sheet Mean units chart
R1: INDEX
C31: Source: Scottish Health Survey
C33: Weekly mean units among those who drank in the last year
C34: Aberdeen City | D34: Aberdeenshire | E34: East Ayrshire | F34: Edinburgh, City of | G34: Fife | H34: Glasgow City | I34: Na h-Eileanan Siar | J34: North Ayrshire | K34: North Lanarkshire | L34: Orkney Islands | M34: Scottish Borders | N34: Shetland Islands | O34: South Ayrshire | P34: South Lanarkshire | R34: Scotland
B35: All Adults
B36: Weekly mean units | C36: ='Mean alcohol units'!B18 -> 15.091 | D36: ='Mean alcohol units'!C18 -> 10.827 | E36: ='Mean alcohol units'!I18 -> 12.445 | F36: ='Mean alcohol units'!M18 -> 14.56 | G36: ='Mean alcohol units'!O18 -> 11.88 | H36: ='Mean alcohol units'!P18 -> 12.2 | I36: ='Mean alcohol units'!U18 -> 11.815 | J36: ='Mean alcohol units'!V18 -> 16.2 | K36: ='Mean alcohol units'!W18 -> 13.079 | L36: ='Mean alcohol units'!X18 -> 13.299 | M36: ='Mean alcohol units'!AA18 -> 10.117 | N36: ='Mean alcohol units'!AB18 -> 12.68 | O36: ='Mean alcohol units'!AC18 -> 14.721 | P36: ='Mean alcohol units'!AD18 -> 13.669 | R36: ='Mean alcohol units'!AH18 -> 12.65
B37: Lower CI | C37: ='Mean alcohol units'!B19 -> 12.934 | D37: ='Mean alcohol units'!C19 -> 9.461 | E37: ='Mean alcohol units'!I19 -> 10.65 | F37: ='Mean alcohol units'!M19 -> 13.02 | G37: ='Mean alcohol units'!O19 -> 10.73 | H37: ='Mean alcohol units'!P19 -> 11.02 | I37: ='Mean alcohol units'!U19 -> 9.467 | J37: ='Mean alcohol units'!V19 -> 13.775 | K37: ='Mean alcohol units'!W19 -> 11.248 | L37: ='Mean alcohol units'!X19 -> 11.398 | M37: ='Mean alcohol units'!AA19 -> 8.688 | N37: ='Mean alcohol units'!AB19 -> 10.466 | O37: ='Mean alcohol units'!AC19 -> 11.406 | P37: ='Mean alcohol units'!AD19 -> 11.553 | R37: ='Mean alcohol units'!AH19 -> 12.24
B38: Upper CI | C38: ='Mean alcohol units'!B20 -> 17.248 | D38: ='Mean alcohol units'!C20 -> 12.193 | E38: ='Mean alcohol units'!I20 -> 14.24 | F38: ='Mean alcohol units'!M20 -> 16.1 | G38: ='Mean alcohol units'!O20 -> 13.04 | H38: ='Mean alcohol units'!P20 -> 13.38 | I38: ='Mean alcohol units'!U20 -> 14.163 | J38: ='Mean alcohol units'!V20 -> 18.626 | K38: ='Mean alcohol units'!W20 -> 14.909 | L38: ='Mean alcohol units'!X20 -> 15.199 | M38: ='Mean alcohol units'!AA20 -> 11.545 | N38: ='Mean alcohol units'!AB20 -> 14.893 | O38: ='Mean alcohol units'!AC20 -> 18.036 | P38: ='Mean alcohol units'!AD20 -> 15.786 | R38: ='Mean alcohol units'!AH20 -> 13.05
A40: CLs | C40: =C36-C37 -> 2.157 | D40: =D36-D37 -> 1.366 | E40: =E36-E37 -> 1.795 | F40: =F36-F37 -> 1.54 | G40: =G36-G37 -> 1.15 | H40: =H36-H37 -> 1.18 | I40: =I36-I37 -> 2.348 | J40: 2.425 | K40: 1.831 | L40: =L36-L37 -> 1.901 | M40: 1.429 | N40: 2.214 | O40: =O36-O37 -> 3.315 | P40: =P36-P37 -> 2.116 | R40: =R36-R37 -> 0.41

Sheet Smoking behaviour
A1: Smoking behaviour, three categories, by Local Authority and sex | M1: INDEX
A4: Aged 16 and over | B4: PLEASE NOTE: Where the sample size for a Local Authority (which does not correspond fully to an NHS board) was below 500, the result has been suppressed. This is shown here by *. | P4: 2014/2015/2016/2017 combined
A5: Smoking behaviour, three categories | B5: Local Authority
B6: Aberdeen City | C6: Aberdeenshire | D6: Angus | E6: Argyll & Bute | F6: Clackmannanshire | G6: Dumfries & Galloway | H6: Dundee City | I6: East Ayrshire | J6: East Dunbartonshire | K6: East Lothian | L6: East Renfrewshire | M6: Edinburgh, City of | N6: Falkirk | O6: Fife | P6: Glasgow City | Q6: Highland | R6: Inverclyde | S6: Midlothian | T6: Moray | U6: Na h-Eileanan Siar | V6: North Ayrshire | W6: North Lanarkshire | X6: Orkney Islands | Y6: Perth & Kinross | Z6: Renfrewshire | AA6: Scottish Borders | AB6: Shetland Islands | AC6: South Ayrshire | AD6: South Lanarkshire | AE6: Stirling | AF6: West Dunbartonshire | AG6: West Lothian | AH6: Scotland
B7: % | C7: % | D7: % | E7: % | F7: % | G7: % | H7: % | I7: % | J7: % | K7: % | L7: % | M7: % | N7: % | O7: % | P7: % | Q7: % | R7: % | S7: % | T7: % | U7: % | V7: % | W7: % | X7: % | Y7: % | Z7: % | AA7: % | AB7: % | AC7: % | AD7: % | AE7: % | AF7: % | AG7: % | AH7: %
A8: Men
A9: Never smoked, or ex-occasional | B9: 52.985 | C9: 54.18 | D9: * | E9: * | F9: * | G9: * | H9: * | I9: 53.017 | J9: * | K9: * | L9: * | M9: 58.84 | N9: * | O9: 51.02 | P9: 47.25 | Q9: 47.127 | R9: * | S9: * | T9: * | U9: 53.087 | V9: 43.112 | W9: 47.33 | X9: 48.68 | Y9: * | Z9: * | AA9: 53.918 | AB9: 56.237 | AC9: 52.903 | AD9: 56.33 | AE9: * | AF9: * | AG9: * | AH9: 52.19
A10: Lower CI | B10: 47.41 | C10: 49.24 | D10: * | E10: * | F10: * | G10: * | H10: * | I10: 45.229 | J10: * | K10: * | L10: * | M10: 53.71 | N10: * | O10: 47.07 | P10: 43.11 | Q10: 39.303 | R10: * | S10: * | T10: * | U10: 48.075 | V10: 37.486 | W10: 41.96 | X10: 40.718 | Y10: * | Z10: * | AA10: 46.062 | AB10: 52.224 | AC10: 45.771 | AD10: 50.22 | AE10: * | AF10: * | AG10: * | AH10: 50.8
A11: Upper CI | B11: 58.56 | C11: 59.12 | D11: * | E11: * | F11: * | G11: * | H11: * | I11: 60.804 | J11: * | K11: * | L11: * | M11: 63.97 | N11: * | O11: 54.97 | P11: 51.4 | Q11: 54.951 | R11: * | S11: * | T11: * | U11: 58.098 | V11: 48.739 | W11: 52.7 | X11: 56.641 | Y11: * | Z11: * | AA11: 61.775 | AB11: 60.25 | AC11: 60.035 | AD11: 62.44 | AE11: * | AF11: * | AG11: * | AH11: 53.59
A12: Ex-regular smoker, or occasional | B12: 20.897 | C12: 28.56 | D12: * | E12: * | F12: * | G12: * | H12: * | I12: 24.465 | J12: * | K12: * | L12: * | M12: 21.83 | N12: * | O12: 27.43 | P12: 22.14 | Q12: 30.415 | R12: * | S12: * | T12: * | U12: 27.904 | V12: 26.197 | W12: 30.14 | X12: 31.199 | Y12: * | Z12: * | AA12: 27.277 | AB12: 21.683 | AC12: 29.098 | AD12: 26.68 | AE12: * | AF12: * | AG12: * | AH12: 25.88
A13: Lower CI | B13: 17.534 | C13: 24.49 | D13: * | E13: * | F13: * | G13: * | H13: * | I13: 18.894 | J13: * | K13: * | L13: * | M13: 17.95 | N13: * | O13: 24.06 | P13: 18.94 | Q13: 24.555 | R13: * | S13: * | T13: * | U13: 22.392 | V13: 19.629 | W13: 24.24 | X13: 24.208 | Y13: * | Z13: * | AA13: 19.945 | AB13: 16.907 | AC13: 23.966 | AD13: 21.96 | AE13: * | AF13: * | AG13: * | AH13: 24.76
A14: Upper CI | B14: 24.26 | C14: 32.63 | D14: * | E14: * | F14: * | G14: * | H14: * | I14: 30.035 | J14: * | K14: * | L14: * | M14: 25.7 | N14: * | O14: 30.81 | P14: 25.33 | Q14: 36.274 | R14: * | S14: * | T14: * | U14: 33.417 | V14: 32.765 | W14: 36.03 | X14: 38.19 | Y14: * | Z14: * | AA14: 34.609 | AB14: 26.459 | AC14: 34.23 | AD14: 31.4 | AE14: * | AF14: * | AG14: * | AH14: 27.01
A15: Regular smoker | B15: 26.118 | C15: 17.26 | D15: * | E15: * | F15: * | G15: * | H15: * | I15: 22.518 | J15: * | K15: * | L15: * | M15: 19.33 | N15: * | O15: 21.55 | P15: 30.61 | Q15: 22.458 | R15: * | S15: * | T15: * | U15: 19.009 | V15: 30.691 | W15: 22.53 | X15: 20.122 | Y15: * | Z15: * | AA15: 18.804 | AB15: 22.08 | AC15: 17.999 | AD15: 16.99 | AE15: * | AF15: * | AG15: * | AH15: 21.92
A16: Lower CI | B16: 20.698 | C16: 13.21 | D16: * | E16: * | F16: * | G16: * | H16: * | I16: 17.131 | J16: * | K16: * | L16: * | M16: 15.72 | N16: * | O16: 18.36 | P16: 26.57 | Q16: 15.104 | R16: * | S16: * | T16: * | U16: 13.596 | V16: 25.664 | W16: 17.45 | X16: 13.625 | Y16: * | Z16: * | AA16: 13.096 | AB16: 16.821 | AC16: 13.041 | AD16: 12.62 | AE16: * | AF16: * | AG16: * | AH16: 20.82
A17: Upper CI | B17: 31.538 | C17: 21.3 | D17: * | E17: * | F17: * | G17: * | H17: * | I17: 27.906 | J17: * | K17: * | L17: * | M17: 22.95 | N17: * | O17: 24.73 | P17: 34.65 | Q17: 29.813 | R17: * | S17: * | T17: * | U17: 24.423 | V17: 35.717 | W17: 27.61 | X17: 26.619 | Y17: * | Z17: * | AA17: 24.512 | AB17: 27.339 | AC17: 22.957 | AD17: 21.36 | AE17: * | AF17: * | AG17: * | AH17: 23.03
A19: Women
A20: Never smoked, or ex-occasional | B20: 61.323 | C20: 61.76 | D20: * | E20: * | F20: * | G20: * | H20: * | I20: 51.673 | J20: * | K20: * | L20: * | M20: 63.24 | N20: * | O20: 58.86 | P20: 53.98 | Q20: 53.232 | R20: * | S20: * | T20: * | U20: 58.576 | V20: 52.19 | W20: 51.31 | X20: 63.408 | Y20: * | Z20: * | AA20: 60.017 | AB20: 57.258 | AC20: 58.889 | AD20: 60.34 | AE20: * | AF20: * | AG20: * | AH20: 57.35
A21: Lower CI | B21: 56.804 | C21: 57.54 | D21: * | E21: * | F21: * | G21: * | H21: * | I21: 46.008 | J21: * | K21: * | L21: * | M21: 57.92 | N21: * | O21: 55.44 | P21: 50.08 | Q21: 46.3 | R21: * | S21: * | T21: * | U21: 52.436 | V21: 45.894 | W21: 46.72 | X21: 57.611 | Y21: * | Z21: * | AA21: 53.962 | AB21: 52.418 | AC21: 52.267 | AD21: 54.87 | AE21: * | AF21: * | AG21: * | AH21: 56.06
A22: Upper CI | B22: 65.842 | C22: 65.99 | D22: * | E22: * | F22: * | G22: * | H22: * | I22: 57.337 | J22: * | K22: * | L22: * | M22: 68.55 | N22: * | O22: 62.28 | P22: 57.89 | Q22: 60.164 | R22: * | S22: * | T22: * | U22: 64.715 | V22: 58.485 | W22: 55.91 | X22: 69.205 | Y22: * | Z22: * | AA22: 66.072 | AB22: 62.097 | AC22: 65.512 | AD22: 65.81 | AE22: * | AF22: * | AG22: * | AH22: 58.64
A23: Ex-regular smoker, or occasional | B23: 19.242 | C23: 22.07 | D23: * | E23: * | F23: * | G23: * | H23: * | I23: 28.062 | J23: * | K23: * | L23: * | M23: 21.66 | N23: * | O23: 22.45 | P23: 21.31 | Q23: 26.607 | R23: * | S23: * | T23: * | U23: 26.086 | V23: 28.619 | W23: 25.49 | X23: 23.153 | Y23: * | Z23: * | AA23: 22.729 | AB23: 22.992 | AC23: 24.495 | AD23: 23.97 | AE23: * | AF23: * | AG23: * | AH23: 23.32
A24: Lower CI | B24: 15.863 | C24: 18.79 | D24: * | E24: * | F24: * | G24: * | H24: * | I24: 23.465 | J24: * | K24: * | L24: * | M24: 17.44 | N24: * | O24: 19.68 | P24: 18.62 | Q24: 20.546 | R24: * | S24: * | T24: * | U24: 21.464 | V24: 23.149 | W24: 21.62 | X24: 17.927 | Y24: * | Z24: * | AA24: 18.197 | AB24: 18.292 | AC24: 18.626 | AD24: 19.92 | AE24: * | AF24: * | AG24: * | AH24: 22.3
A25: Upper CI | B25: 22.621 | C25: 25.36 | D25: * | E25: * | F25: * | G25: * | H25: * | I25: 32.66 | J25: * | K25: * | L25: * | M25: 25.88 | N25: * | O25: 25.22 | P25: 24.01 | Q25: 32.669 | R25: * | S25: * | T25: * | U25: 30.708 | V25: 34.089 | W25: 29.37 | X25: 28.379 | Y25: * | Z25: * | AA25: 27.262 | AB25: 27.692 | AC25: 30.363 | AD25: 28.02 | AE25: * | AF25: * | AG25: * | AH25: 24.34
A26: Regular smoker | B26: 19.435 | C26: 16.16 | D26: * | E26: * | F26: * | G26: * | H26: * | I26: 20.265 | J26: * | K26: * | L26: * | M26: 15.1 | N26: * | O26: 18.69 | P26: 24.7 | Q26: 20.161 | R26: * | S26: * | T26: * | U26: 15.338 | V26: 19.191 | W26: 23.19 | X26: 13.439 | Y26: * | Z26: * | AA26: 17.254 | AB26: 19.75 | AC26: 16.616 | AD26: 15.7 | AE26: * | AF26: * | AG26: * | AH26: 19.33
A27: Lower CI | B27: 15.984 | C27: 12.63 | D27: * | E27: * | F27: * | G27: * | H27: * | I27: 15.517 | J27: * | K27: * | L27: * | M27: 11.15 | N27: * | O27: 15.71 | P27: 21.3 | Q27: 14.903 | R27: * | S27: * | T27: * | U27: 11.233 | V27: 15.061 | W27: 19.45 | X27: 9.114 | Y27: * | Z27: * | AA27: 12.254 | AB27: 14.571 | AC27: 12.289 | AD27: 11.92 | AE27: * | AF27: * | AG27: * | AH27: 18.35
A28: Upper CI | B28: 22.886 | C28: 19.69 | D28: * | E28: * | F28: * | G28: * | H28: * | I28: 25.013 | J28: * | K28: * | L28: * | M28: 19.05 | N28: * | O28: 21.67 | P28: 28.11 | Q28: 25.418 | R28: * | S28: * | T28: * | U28: 19.444 | V28: 23.321 | W28: 26.93 | X28: 17.764 | Y28: * | Z28: * | AA28: 22.254 | AB28: 24.929 | AC28: 20.943 | AD28: 19.47 | AE28: * | AF28: * | AG28: * | AH28: 20.32
A30: All Adults
A31: Never smoked, or ex-occasional | B31: 57.224 | C31: 58.12 | D31: * | E31: * | F31: * | G31: * | H31: * | I31: 52.26 | J31: * | K31: * | L31: * | M31: 61.02 | N31: * | O31: 55.02 | P31: 50.8 | Q31: 50.328 | R31: * | S31: * | T31: * | U31: 55.814 | V31: 47.933 | W31: 49.48 | X31: 55.865 | Y31: * | Z31: * | AA31: 57.247 | AB31: 56.729 | AC31: 56.079 | AD31: 58.39 | AE31: * | AF31: * | AG31: * | AH31: 54.88
A32: Lower CI | B32: 52.986 | C32: 54.75 | D32: * | E32: * | F32: * | G32: * | H32: * | I32: 47.461 | J32: * | K32: * | L32: * | M32: 56.8 | N32: * | O32: 52.47 | P32: 47.74 | Q32: 44.386 | R32: * | S32: * | T32: * | U32: 51.781 | V32: 43.278 | W32: 45.59 | X32: 50.156 | Y32: * | Z32: * | AA32: 52.29 | AB32: 53.139 | AC32: 50.231 | AD32: 53.88 | AE32: * | AF32: * | AG32: * | AH32: 53.83
A33: Upper CI | B33: 61.463 | C33: 61.5 | D33: * | E33: * | F33: * | G33: * | H33: * | I33: 57.059 | J33: * | K33: * | L33: * | M33: 65.25 | N33: * | O33: 57.57 | P33: 53.85 | Q33: 56.269 | R33: * | S33: * | T33: * | U33: 59.848 | V33: 52.588 | W33: 53.37 | X33: 61.574 | Y33: * | Z33: * | AA33: 62.204 | AB33: 60.318 | AC33: 61.928 | AD33: 62.9 | AE33: * | AF33: * | AG33: * | AH33: 55.92
A34: Ex-regular smoker, or occasional | B34: 20.055 | C34: 25.19 | D34: * | E34: * | F34: * | G34: * | H34: * | I34: 26.489 | J34: * | K34: * | L34: * | M34: 21.74 | N34: * | O34: 24.89 | P34: 21.7 | Q34: 28.419 | R34: * | S34: * | T34: * | U34: 27.001 | V34: 27.483 | W34: 27.63 | X34: 27.273 | Y34: * | Z34: * | AA34: 24.795 | AB34: 22.313 | AC34: 26.655 | AD34: 25.29 | AE34: * | AF34: * | AG34: * | AH34: 24.55
A35: Lower CI | B35: 17.429 | C35: 22.41 | D35: * | E35: * | F35: * | G35: * | H35: * | I35: 23.12 | J35: * | K35: * | L35: * | M35: 18.63 | N35: * | O35: 22.79 | P35: 19.53 | Q35: 23.852 | R35: * | S35: * | T35: * | U35: 23.342 | V35: 22.696 | W35: 24.08 | X35: 23.275 | Y35: * | Z35: * | AA35: 20.785 | AB35: 18.353 | AC35: 21.984 | AD35: 22.02 | AE35: * | AF35: * | AG35: * | AH35: 23.75
A36: Upper CI | B36: 22.682 | C36: 27.96 | D36: * | E36: * | F36: * | G36: * | H36: * | I36: 29.858 | J36: * | K36: * | L36: * | M36: 24.86 | N36: * | O36: 26.99 | P36: 23.87 | Q36: 32.985 | R36: * | S36: * | T36: * | U36: 30.659 | V36: 32.27 | W36: 31.19 | X36: 31.272 | Y36: * | Z36: * | AA36: 28.805 | AB36: 26.274 | AC36: 31.327 | AD36: 28.55 | AE36: * | AF36: * | AG36: * | AH36: 25.35
A37: Regular smoker | B37: 22.72 | C37: 16.69 | D37: * | E37: * | F37: * | G37: * | H37: * | I37: 21.25 | J37: * | K37: * | L37: * | M37: 17.23 | N37: * | O37: 20.09 | P37: 27.5 | Q37: 21.254 | R37: * | S37: * | T37: * | U37: 17.185 | V37: 24.584 | W37: 22.89 | X37: 16.861 | Y37: * | Z37: * | AA37: 17.958 | AB37: 20.958 | AC37: 17.265 | AD37: 16.32 | AE37: * | AF37: * | AG37: * | AH37: 20.58
A38: Lower CI | B38: 19.215 | C38: 13.66 | D38: * | E38: * | F38: * | G38: * | H38: * | I38: 17.069 | J38: * | K38: * | L38: * | M38: 14.13 | N38: * | O38: 17.68 | P38: 24.7 | Q38: 16.963 | R38: * | S38: * | T38: * | U38: 13.655 | V38: 21.232 | W38: 19.32 | X38: 12.236 | Y38: * | Z38: * | AA38: 13.622 | AB38: 16.326 | AC38: 13.69 | AD38: 13.02 | AE38: * | AF38: * | AG38: * | AH38: 19.76
A39: Upper CI | B39: 26.226 | C39: 19.72 | D39: * | E39: * | F39: * | G39: * | H39: * | I39: 25.432 | J39: * | K39: * | L39: * | M39: 20.33 | N39: * | O39: 22.5 | P39: 30.3 | Q39: 25.544 | R39: * | S39: * | T39: * | U39: 20.715 | V39: 27.936 | W39: 26.46 | X39: 21.486 | Y39: * | Z39: * | AA39: 22.294 | AB39: 25.59 | AC39: 20.84 | AD39: 19.63 | AE39: * | AF39: * | AG39: * | AH39: 21.39
A42: Bases (weighted):
A43: Men | B43: 360.521 | C43: 402.56 | D43: 170.13 | E43: 147.951 | F43: 71.728 | G43: 231.228 | H43: 241.857 | I43: 173.99 | J43: 189.682 | K43: 160.383 | L43: 135.307 | M43: 824.58 | N43: 263.511 | O43: 586.16 | P43: 927.7 | Q43: 358.293 | R43: 103.303 | S43: 122.062 | T43: 151.74 | U43: 44.929 | V43: 213.606 | W43: 549.58 | X43: 37.337 | Y43: 221.93 | Z43: 242.197 | AA43: 172.523 | AB43: 39.143 | AC43: 170.225 | AD43: 548.3 | AE43: 135.05 | AF43: 113.716 | AG43: 298.964 | AH43: 8410.19
A44: Women | B44: 372.917 | C44: 436.01 | D44: 198.7 | E44: 143.777 | F44: 86.173 | G44: 248.364 | H44: 268.454 | I44: 223.875 | J44: 178.85 | K44: 179.588 | L44: 142.356 | M44: 812.07 | N44: 255.612 | O44: 609.19 | P44: 1031.44 | Q44: 394.91 | R44: 145.041 | S44: 135.534 | T44: 187.219 | U44: 44.388 | V44: 241.874 | W44: 643.88 | X44: 35.57 | Y44: 248.271 | Z44: 248.838 | AA44: 207.301 | AB44: 36.337 | AC44: 192.432 | AD44: 580.86 | AE44: 164.223 | AF44: 127.016 | AG44: 290.988 | AH44: 9112.06
A45: All Adults | B45: 733.438 | C45: 838.57 | D45: 368.831 | E45: 291.728 | F45: 157.901 | G45: 479.591 | H45: 510.311 | I45: 397.865 | J45: 368.532 | K45: 339.971 | L45: 277.663 | M45: 1636.65 | N45: 519.123 | O45: 1195.34 | P45: 1959.14 | Q45: 753.203 | R45: 248.344 | S45: 257.596 | T45: 338.959 | U45: 89.317 | V45: 455.48 | W45: 1193.46 | X45: 72.907 | Y45: 470.201 | Z45: 491.036 | AA45: 379.825 | AB45: 75.479 | AC45: 362.657 | AD45: 1129.16 | AE45: 299.272 | AF45: 240.732 | AG45: 589.952 | AH45: 17522.25
A46: Bases (unweighted)
A47: Men | B47: 406 | C47: 481 | D47: 114 | E47: 110 | F47: 46 | G47: 199 | H47: 144 | I47: 273 | J47: 144 | K47: 96 | L47: 109 | M47: 532 | N47: 159 | O47: 856 | P47: 626 | Q47: 233 | R47: 81 | S47: 80 | T47: 178 | U47: 279 | V47: 310 | W47: 335 | X47: 241 | Y47: 170 | Z47: 167 | AA47: 191 | AB47: 242 | AC47: 259 | AD47: 355 | AE47: 92 | AF47: 82 | AG47: 166 | AH47: 7756
A48: Women | B48: 502 | C48: 586 | D48: 146 | E48: 131 | F48: 66 | G48: 234 | H48: 179 | I48: 373 | J48: 174 | K48: 118 | L48: 139 | M48: 636 | N48: 188 | O48: 1053 | P48: 883 | Q48: 313 | R48: 122 | S48: 106 | T48: 245 | U48: 318 | V48: 385 | W48: 484 | X48: 263 | Y48: 206 | Z48: 208 | AA48: 259 | AB48: 264 | AC48: 331 | AD48: 463 | AE48: 132 | AF48: 112 | AG48: 205 | AH48: 9824
A49: All Adults | B49: 908 | C49: 1067 | D49: 260 | E49: 241 | F49: 112 | G49: 433 | H49: 323 | I49: 646 | J49: 318 | K49: 214 | L49: 248 | M49: 1168 | N49: 347 | O49: 1909 | P49: 1509 | Q49: 546 | R49: 203 | S49: 186 | T49: 423 | U49: 597 | V49: 695 | W49: 819 | X49: 504 | Y49: 376 | Z49: 375 | AA49: 450 | AB49: 506 | AC49: 590 | AD49: 818 | AE49: 224 | AF49: 194 | AG49: 371 | AH49: 17580

Sheet Smoking chart
R1: INDEX
C31: Source: Scottish Health Survey
C34: Aberdeen City | D34: Aberdeenshire | E34: East Ayrshire | F34: Edinburgh, City of | G34: Fife | H34: Glasgow City | I34: Highland | J34: Na h-Eileanan Siar | K34: North Ayrshire | L34: North Lanarkshire | M34: Orkney Islands | N34: Scottish Borders | O34: Shetland Islands | P34: South Ayrshire | Q34: South Lanarkshire | S34: Scotland
B35: All Adults
B36: Never smoked, or ex-occasional | C36: ='Smoking behaviour'!B31 -> 57.224 | D36: ='Smoking behaviour'!C31 -> 58.12 | E36: ='Smoking behaviour'!I31 -> 52.26 | F36: ='Smoking behaviour'!M31 -> 61.02 | G36: ='Smoking behaviour'!O31 -> 55.02 | H36: ='Smoking behaviour'!P31 -> 50.8 | I36: ='Smoking behaviour'!Q31 -> 50.328 | J36: ='Smoking behaviour'!U31 -> 55.814 | K36: ='Smoking behaviour'!V31 -> 47.933 | L36: ='Smoking behaviour'!W31 -> 49.48 | M36: ='Smoking behaviour'!X31 -> 55.865 | N36: ='Smoking behaviour'!AA31 -> 57.247 | O36: ='Smoking behaviour'!AB31 -> 56.729 | P36: ='Smoking behaviour'!AC31 -> 56.079 | Q36: ='Smoking behaviour'!AD31 -> 58.39 | S36: ='Smoking behaviour'!AH31 -> 54.88
B37: Lower CI | C37: ='Smoking behaviour'!B32 -> 52.986 | D37: ='Smoking behaviour'!C32 -> 54.75 | E37: ='Smoking behaviour'!I32 -> 47.461 | F37: ='Smoking behaviour'!M32 -> 56.8 | G37: ='Smoking behaviour'!O32 -> 52.47 | H37: ='Smoking behaviour'!P32 -> 47.74 | I37: ='Smoking behaviour'!Q32 -> 44.386 | J37: ='Smoking behaviour'!U32 -> 51.781 | K37: ='Smoking behaviour'!V32 -> 43.278 | L37: ='Smoking behaviour'!W32 -> 45.59 | M37: ='Smoking behaviour'!X32 -> 50.156 | N37: ='Smoking behaviour'!AA32 -> 52.29 | O37: ='Smoking behaviour'!AB32 -> 53.139 | P37: ='Smoking behaviour'!AC32 -> 50.231 | Q37: ='Smoking behaviour'!AD32 -> 53.88 | S37: ='Smoking behaviour'!AH32 -> 53.83
B38: Upper CI | C38: ='Smoking behaviour'!B33 -> 61.463 | D38: ='Smoking behaviour'!C33 -> 61.5 | E38: ='Smoking behaviour'!I33 -> 57.059 | F38: ='Smoking behaviour'!M33 -> 65.25 | G38: ='Smoking behaviour'!O33 -> 57.57 | H38: ='Smoking behaviour'!P33 -> 53.85 | I38: ='Smoking behaviour'!Q33 -> 56.269 | J38: ='Smoking behaviour'!U33 -> 59.848 | K38: ='Smoking behaviour'!V33 -> 52.588 | L38: ='Smoking behaviour'!W33 -> 53.37 | M38: ='Smoking behaviour'!X33 -> 61.574 | N38: ='Smoking behaviour'!AA33 -> 62.204 | O38: ='Smoking behaviour'!AB33 -> 60.318 | P38: ='Smoking behaviour'!AC33 -> 61.928 | Q38: ='Smoking behaviour'!AD33 -> 62.9 | S38: ='Smoking behaviour'!AH33 -> 55.92
B39: Ex-regular smoker, or occasional | C39: ='Smoking behaviour'!B34 -> 20.055 | D39: ='Smoking behaviour'!C34 -> 25.19 | E39: ='Smoking behaviour'!I34 -> 26.489 | F39: ='Smoking behaviour'!M34 -> 21.74 | G39: ='Smoking behaviour'!O34 -> 24.89 | H39: ='Smoking behaviour'!P34 -> 21.7 | I39: ='Smoking behaviour'!Q34 -> 28.419 | J39: ='Smoking behaviour'!U34 -> 27.001 | K39: ='Smoking behaviour'!V34 -> 27.483 | L39: ='Smoking behaviour'!W34 -> 27.63 | M39: ='Smoking behaviour'!X34 -> 27.273 | N39: ='Smoking behaviour'!AA34 -> 24.795 | O39: ='Smoking behaviour'!AB34 -> 22.313 | P39: ='Smoking behaviour'!AC34 -> 26.655 | Q39: ='Smoking behaviour'!AD34 -> 25.29 | S39: ='Smoking behaviour'!AH34 -> 24.55
B40: Lower CI | C40: ='Smoking behaviour'!B35 -> 17.429 | D40: ='Smoking behaviour'!C35 -> 22.41 | E40: ='Smoking behaviour'!I35 -> 23.12 | F40: ='Smoking behaviour'!M35 -> 18.63 | G40: ='Smoking behaviour'!O35 -> 22.79 | H40: ='Smoking behaviour'!P35 -> 19.53 | I40: ='Smoking behaviour'!Q35 -> 23.852 | J40: ='Smoking behaviour'!U35 -> 23.342 | K40: ='Smoking behaviour'!V35 -> 22.696 | L40: ='Smoking behaviour'!W35 -> 24.08 | M40: ='Smoking behaviour'!X35 -> 23.275 | N40: ='Smoking behaviour'!AA35 -> 20.785 | O40: ='Smoking behaviour'!AB35 -> 18.353 | P40: ='Smoking behaviour'!AC35 -> 21.984 | Q40: ='Smoking behaviour'!AD35 -> 22.02 | S40: ='Smoking behaviour'!AH35 -> 23.75
B41: Upper CI | C41: ='Smoking behaviour'!B36 -> 22.682 | D41: ='Smoking behaviour'!C36 -> 27.96 | E41: ='Smoking behaviour'!I36 -> 29.858 | F41: ='Smoking behaviour'!M36 -> 24.86 | G41: ='Smoking behaviour'!O36 -> 26.99 | H41: ='Smoking behaviour'!P36 -> 23.87 | I41: ='Smoking behaviour'!Q36 -> 32.985 | J41: ='Smoking behaviour'!U36 -> 30.659 | K41: ='Smoking behaviour'!V36 -> 32.27 | L41: ='Smoking behaviour'!W36 -> 31.19 | M41: ='Smoking behaviour'!X36 -> 31.272 | N41: ='Smoking behaviour'!AA36 -> 28.805 | O41: ='Smoking behaviour'!AB36 -> 26.274 | P41: ='Smoking behaviour'!AC36 -> 31.327 | Q41: ='Smoking behaviour'!AD36 -> 28.55 | S41: ='Smoking behaviour'!AH36 -> 25.35
B42: Regular smoker | C42: ='Smoking behaviour'!B37 -> 22.72 | D42: ='Smoking behaviour'!C37 -> 16.69 | E42: ='Smoking behaviour'!I37 -> 21.25 | F42: ='Smoking behaviour'!M37 -> 17.23 | G42: ='Smoking behaviour'!O37 -> 20.09 | H42: ='Smoking behaviour'!P37 -> 27.5 | I42: ='Smoking behaviour'!Q37 -> 21.254 | J42: ='Smoking behaviour'!U37 -> 17.185 | K42: ='Smoking behaviour'!V37 -> 24.584 | L42: ='Smoking behaviour'!W37 -> 22.89 | M42: ='Smoking behaviour'!X37 -> 16.861 | N42: ='Smoking behaviour'!AA37 -> 17.958 | O42: ='Smoking behaviour'!AB37 -> 20.958 | P42: ='Smoking behaviour'!AC37 -> 17.265 | Q42: ='Smoking behaviour'!AD37 -> 16.32 | S42: ='Smoking behaviour'!AH37 -> 20.58
B43: Lower CI | C43: ='Smoking behaviour'!B38 -> 19.215 | D43: ='Smoking behaviour'!C38 -> 13.66 | E43: ='Smoking behaviour'!I38 -> 17.069 | F43: ='Smoking behaviour'!M38 -> 14.13 | G43: ='Smoking behaviour'!O38 -> 17.68 | H43: ='Smoking behaviour'!P38 -> 24.7 | I43: ='Smoking behaviour'!Q38 -> 16.963 | J43: ='Smoking behaviour'!U38 -> 13.655 | K43: ='Smoking behaviour'!V38 -> 21.232 | L43: ='Smoking behaviour'!W38 -> 19.32 | M43: ='Smoking behaviour'!X38 -> 12.236 | N43: ='Smoking behaviour'!AA38 -> 13.622 | O43: ='Smoking behaviour'!AB38 -> 16.326 | P43: ='Smoking behaviour'!AC38 -> 13.69 | Q43: ='Smoking behaviour'!AD38 -> 13.02 | S43: ='Smoking behaviour'!AH38 -> 19.76
B44: Upper CI | C44: ='Smoking behaviour'!B39 -> 26.226 | D44: ='Smoking behaviour'!C39 -> 19.72 | E44: ='Smoking behaviour'!I39 -> 25.432 | F44: ='Smoking behaviour'!M39 -> 20.33 | G44: ='Smoking behaviour'!O39 -> 22.5 | H44: ='Smoking behaviour'!P39 -> 30.3 | I44: ='Smoking behaviour'!Q39 -> 25.544 | J44: ='Smoking behaviour'!U39 -> 20.715 | K44: ='Smoking behaviour'!V39 -> 27.936 | L44: ='Smoking behaviour'!W39 -> 26.46 | M44: ='Smoking behaviour'!X39 -> 21.486 | N44: ='Smoking behaviour'!AA39 -> 22.294 | O44: ='Smoking behaviour'!AB39 -> 25.59 | P44: ='Smoking behaviour'!AC39 -> 20.84 | Q44: ='Smoking behaviour'!AD39 -> 19.63 | S44: ='Smoking behaviour'!AH39 -> 21.39
A46: CLs | B46: Never smoked, or ex-occasional | C46: =C36-C37 -> 4.238 | D46: =D36-D37 -> 3.37 | E46: =E36-E37 -> 4.799 | F46: =F36-F37 -> 4.22 | G46: =G36-G37 -> 2.55 | H46: =H36-H37 -> 3.06 | I46: =I36-I37 -> 5.942 | J46: 4.033 | K46: 4.655 | L46: 3.89 | M46: 5.709 | N46: =N36-N37 -> 4.957 | O46: =O36-O37 -> 3.59 | P46: =P36-P37 -> 5.848 | Q46: =Q36-Q37 -> 4.51 | S46: =S36-S37 -> 1.05
B47: Ex-regular smoker, or occasional | C47: =C39-C40 -> 2.626 | D47: =D39-D40 -> 2.78 | E47: =E39-E40 -> 3.369 | F47: =F39-F40 -> 3.11 | G47: =G39-G40 -> 2.1 | H47: =H39-H40 -> 2.17 | I47: =I39-I40 -> 4.567 | J47: 3.659 | K47: 4.787 | L47: 3.55 | M47: 3.998 | N47: =N39-N40 -> 4.01 | O47: =O39-O40 -> 3.96 | P47: =P39-P40 -> 4.671 | Q47: =Q39-Q40 -> 3.27 | S47: =S39-S40 -> 0.8
B48: Regular smoker | C48: =C42-C43 -> 3.505 | D48: =D42-D43 -> 3.03 | E48: =E42-E43 -> 4.181 | F48: =F42-F43 -> 3.1 | G48: =G42-G43 -> 2.41 | H48: =H42-H43 -> 2.8 | I48: =I42-I43 -> 4.291 | J48: 3.53 | K48: 3.352 | L48: 3.57 | M48: 4.625 | N48: =N42-N43 -> 4.336 | O48: =O42-O43 -> 4.632 | P48: =P42-P43 -> 3.575 | Q48: =Q42-Q43 -> 3.3 | S48: =S42-S43 -> 0.82

Sheet Overweight
A1: Prevalence of overweight (including obesity), by Local Authority and sex | M1: INDEX
A4: Aged 16 and over | B4: PLEASE NOTE: Where the sample size for a Local Authority (which does not correspond fully to an NHS board) was below 500, the result has been suppressed. This is shown here by *. | P4: 2014/2015/2016/2017 combined
A5: Overweight (including obese)a | B5: Local Authority
B6: Aberdeen City | C6: Aberdeenshire | D6: Angus | E6: Argyll & Bute | F6: Clackmannanshire | G6: Dumfries & Galloway | H6: Dundee City | I6: East Ayrshire | J6: East Dunbartonshire | K6: East Lothian | L6: East Renfrewshire | M6: Edinburgh, City of | N6: Falkirk | O6: Fife | P6: Glasgow City | Q6: Highland | R6: Inverclyde | S6: Midlothian | T6: Moray | U6: Na h-Eileanan Siar | V6: North Ayrshire | W6: North Lanarkshire | X6: Orkney Islands | Y6: Perth & Kinross | Z6: Renfrewshire | AA6: Scottish Borders | AB6: Shetland Islands | AC6: South Ayrshire | AD6: South Lanarkshire | AE6: Stirling | AF6: West Dunbartonshire | AG6: West Lothian | AH6: Scotland
B7: % | C7: % | D7: % | E7: % | F7: % | G7: % | H7: % | I7: % | J7: % | K7: % | L7: % | M7: % | N7: % | O7: % | P7: % | Q7: % | R7: % | S7: % | T7: % | U7: % | V7: % | W7: % | X7: % | Y7: % | Z7: % | AA7: % | AB7: % | AC7: % | AD7: % | AE7: % | AF7: % | AG7: % | AH7: %
A8: Men
A9: Overweight (including obese)a | B9: 63.202 | C9: 73.806 | D9: * | E9: * | F9: * | G9: * | H9: * | I9: 73.186 | J9: * | K9: * | L9: * | M9: 54.46 | N9: * | O9: 71.16 | P9: 62.06 | Q9: * | R9: * | S9: * | T9: * | U9: 74.101 | V9: 74.937 | W9: 76.809 | X9: 73.136 | Y9: * | Z9: * | AA9: 71.264 | AB9: 74.276 | AC9: * | AD9: 71.677 | AE9: * | AF9: * | AG9: * | AH9: 68.27
A10: Lower CI | B10: 56.805 | C10: 69.452 | D10: * | E10: * | F10: * | G10: * | H10: * | I10: 66.592 | J10: * | K10: * | L10: * | M10: 49.27 | N10: * | O10: 66.92 | P10: 57.04 | Q10: * | R10: * | S10: * | T10: * | U10: 66.881 | V10: 69.426 | W10: 71.487 | X10: 66.443 | Y10: * | Z10: * | AA10: 62.405 | AB10: 65.035 | AC10: * | AD10: 65.369 | AE10: * | AF10: * | AG10: * | AH10: 66.69
A11: Upper CI | B11: 69.599 | C11: 78.16 | D11: * | E11: * | F11: * | G11: * | H11: * | I11: 79.78 | J11: * | K11: * | L11: * | M11: 59.66 | N11: * | O11: 75.41 | P11: 67.09 | Q11: * | R11: * | S11: * | T11: * | U11: 81.321 | V11: 80.448 | W11: 82.131 | X11: 79.829 | Y11: * | Z11: * | AA11: 80.123 | AB11: 83.517 | AC11: * | AD11: 77.986 | AE11: * | AF11: * | AG11: * | AH11: 69.85
A13: Women
A14: Overweight (including obese)a | B14: 57.904 | C14: 64.139 | D14: * | E14: * | F14: * | G14: * | H14: * | I14: 70.918 | J14: * | K14: * | L14: * | M14: 47.64 | N14: * | O14: 64.2 | P14: 59.14 | Q14: * | R14: * | S14: * | T14: * | U14: 72.034 | V14: 68.726 | W14: 67.543 | X14: 72.866 | Y14: * | Z14: * | AA14: 60.417 | AB14: 66.729 | AC14: * | AD14: 65.714 | AE14: * | AF14: * | AG14: * | AH14: 61.73
A15: Lower CI | B15: 52.401 | C15: 58.792 | D15: * | E15: * | F15: * | G15: * | H15: * | I15: 65.64 | J15: * | K15: * | L15: * | M15: 42.39 | N15: * | O15: 60.61 | P15: 54.96 | Q15: * | R15: * | S15: * | T15: * | U15: 65.106 | V15: 63.257 | W15: 62.304 | X15: 66.345 | Y15: * | Z15: * | AA15: 53.294 | AB15: 59.779 | AC15: * | AD15: 60.39 | AE15: * | AF15: * | AG15: * | AH15: 60.35
A16: Upper CI | B16: 63.408 | C16: 69.486 | D16: * | E16: * | F16: * | G16: * | H16: * | I16: 76.197 | J16: * | K16: * | L16: * | M16: 52.9 | N16: * | O16: 67.78 | P16: 63.32 | Q16: * | R16: * | S16: * | T16: * | U16: 78.962 | V16: 74.195 | W16: 72.782 | X16: 79.388 | Y16: * | Z16: * | AA16: 67.54 | AB16: 73.678 | AC16: * | AD16: 71.038 | AE16: * | AF16: * | AG16: * | AH16: 63.11
A18: All Adults
A19: Overweight (including obese)a | B19: 60.577 | C19: 68.875 | D19: * | E19: * | F19: * | G19: * | H19: * | I19: 71.906 | J19: * | K19: * | L19: * | M19: 51.23 | N19: * | O19: 67.66 | P19: 60.58 | Q19: * | R19: * | S19: * | T19: * | U19: 73.089 | V19: 71.584 | W19: 71.951 | X19: 73.008 | Y19: * | Z19: * | AA19: 65.505 | AB19: 70.633 | AC19: * | AD19: 68.692 | AE19: * | AF19: * | AG19: * | AH19: 64.94
A20: Lower CI | B20: 55.98 | C20: 65.261 | D20: * | E20: * | F20: * | G20: * | H20: * | I20: 67.734 | J20: * | K20: * | L20: * | M20: 47.48 | N20: * | O20: 64.67 | P20: 57.02 | Q20: * | R20: * | S20: * | T20: * | U20: 67.512 | V20: 67.702 | W20: 68.001 | X20: 67.676 | Y20: * | Z20: * | AA20: 59.316 | AB20: 63.921 | AC20: * | AD20: 64.636 | AE20: * | AF20: * | AG20: * | AH20: 63.84
A21: Upper CI | B21: 65.175 | C21: 72.489 | D21: * | E21: * | F21: * | G21: * | H21: * | I21: 76.077 | J21: * | K21: * | L21: * | M21: 54.98 | N21: * | O21: 70.65 | P21: 64.13 | Q21: * | R21: * | S21: * | T21: * | U21: 78.666 | V21: 75.466 | W21: 75.902 | X21: 78.34 | Y21: * | Z21: * | AA21: 71.695 | AB21: 77.346 | AC21: * | AD21: 72.748 | AE21: * | AF21: * | AG21: * | AH21: 66.04
A23: Bases (weighted):
A24: Men | B24: 337.22 | C24: 376.73 | D24: 137.277 | E24: 133.771 | F24: 55.392 | G24: 190.102 | H24: 215.875 | I24: 149.512 | J24: 166.052 | K24: 142.178 | L24: 115.703 | M24: 726.4 | N24: 199.926 | O24: 485.03 | P24: 815.33 | Q24: 288.894 | R24: 79.538 | S24: 103.915 | T24: 132.694 | U24: 33.113 | V24: 183.235 | W24: 444.875 | X24: 33.741 | Y24: 185.226 | Z24: 215.7 | AA24: 154.771 | AB24: 29.803 | AC24: 125.594 | AD24: 442.654 | AE24: 107.81 | AF24: 100.384 | AG24: 250.07 | AH24: 7158.51
A25: Women | B25: 331.139 | C25: 392.219 | D25: 155.367 | E25: 130.428 | F25: 61.211 | G25: 219.423 | H25: 242.274 | I25: 193.848 | J25: 156.673 | K25: 147.729 | L25: 123.943 | M25: 655.82 | N25: 186.33 | O25: 490.26 | P25: 838.96 | Q25: 288.154 | R25: 115.221 | S25: 124.334 | T25: 156.463 | U25: 31.745 | V25: 214.959 | W25: 490.28 | X25: 30.563 | Y25: 208.775 | Z25: 191.934 | AA25: 175.176 | AB25: 27.802 | AC25: 154.724 | AD25: 443.808 | AE25: 107.47 | AF25: 97.849 | AG25: 235.845 | AH25: 7420.72
A26: All Adults | B26: 668.359 | C26: 768.949 | D26: 292.644 | E26: 264.199 | F26: 116.604 | G26: 409.525 | H26: 458.149 | I26: 343.36 | J26: 322.724 | K26: 289.907 | L26: 239.647 | M26: 1382.21 | N26: 386.257 | O26: 975.29 | P26: 1654.28 | Q26: 577.048 | R26: 194.759 | S26: 228.249 | T26: 289.157 | U26: 64.858 | V26: 398.195 | W26: 935.155 | X26: 64.305 | Y26: 394.001 | Z26: 407.634 | AA26: 329.947 | AB26: 57.605 | AC26: 280.319 | AD26: 886.462 | AE26: 215.28 | AF26: 198.233 | AG26: 485.914 | AH26: 14579.23
A27: Bases (unweighted)
A28: Men | B28: 374 | C28: 451 | D28: 95 | E28: 98 | F28: 37 | G28: 164 | H28: 129 | I28: 230 | J28: 126 | K28: 87 | L28: 90 | M28: 466 | N28: 116 | O28: 699 | P28: 540 | Q28: 179 | R28: 62 | S28: 68 | T28: 154 | U28: 211 | V28: 263 | W28: 270 | X28: 217 | Y28: 141 | Z28: 145 | AA28: 169 | AB28: 186 | AC28: 194 | AD28: 281 | AE28: 70 | AF28: 71 | AG28: 135 | AH28: 6518
A29: Women | B29: 441 | C29: 528 | D29: 116 | E29: 116 | F29: 48 | G29: 202 | H29: 162 | I29: 320 | J29: 154 | K29: 99 | L29: 121 | M29: 521 | N29: 136 | O29: 845 | P29: 712 | Q29: 225 | R29: 96 | S29: 98 | T29: 206 | U29: 230 | V29: 341 | W29: 374 | X29: 227 | Y29: 173 | Z29: 157 | AA29: 220 | AB29: 202 | AC29: 275 | AD29: 352 | AE29: 90 | AF29: 86 | AG29: 161 | AH29: 8034
A30: All Adults | B30: 815 | C30: 979 | D30: 211 | E30: 214 | F30: 85 | G30: 366 | H30: 291 | I30: 550 | J30: 280 | K30: 186 | L30: 211 | M30: 987 | N30: 252 | O30: 1544 | P30: 1252 | Q30: 404 | R30: 158 | S30: 166 | T30: 360 | U30: 441 | V30: 604 | W30: 644 | X30: 444 | Y30: 314 | Z30: 302 | AA30: 389 | AB30: 388 | AC30: 469 | AD30: 633 | AE30: 160 | AF30: 157 | AG30: 296 | AH30: 14552
A32: a BMI 25 or higher

Sheet Overweight chart
R1: INDEX
C31: Source: Scottish Health Survey
C32: Overweight: BMI 25+
C34: Aberdeen City | D34: Aberdeenshire | E34: East Ayrshire | F34: Edinburgh, City of | G34: Fife | H34: Glasgow City | I34: Na h-Eileanan Siar | J34: North Ayrshire | K34: North Lanarkshire | L34: Orkney Islands | M34: Scottish Borders | N34: Shetland Islands | O34: South Lanarkshire | Q34: Scotland
B35: All Adults
B36: Overweight (including obese)a | C36: =Overweight!B19 -> 60.577 | D36: =Overweight!C19 -> 68.875 | E36: =Overweight!I19 -> 71.906 | F36: =Overweight!M19 -> 51.23 | G36: =Overweight!O19 -> 67.66 | H36: =Overweight!P19 -> 60.58 | I36: =Overweight!U19 -> 73.089 | J36: =Overweight!V19 -> 71.584 | K36: =Overweight!W19 -> 71.951 | L36: =Overweight!X19 -> 73.008 | M36: =Overweight!AA19 -> 65.505 | N36: =Overweight!AB19 -> 70.633 | O36: =Overweight!AD19 -> 68.692 | Q36: =Overweight!AH19 -> 64.94
B37: Lower CI | C37: =Overweight!B20 -> 55.98 | D37: =Overweight!C20 -> 65.261 | E37: =Overweight!I20 -> 67.734 | F37: =Overweight!M20 -> 47.48 | G37: =Overweight!O20 -> 64.67 | H37: =Overweight!P20 -> 57.02 | I37: =Overweight!U20 -> 67.512 | J37: =Overweight!V20 -> 67.702 | K37: =Overweight!W20 -> 68.001 | L37: =Overweight!X20 -> 67.676 | M37: =Overweight!AA20 -> 59.316 | N37: =Overweight!AB20 -> 63.921 | O37: =Overweight!AD20 -> 64.636 | Q37: =Overweight!AH20 -> 63.84
B38: Upper CI | C38: =Overweight!B21 -> 65.175 | D38: =Overweight!C21 -> 72.489 | E38: =Overweight!I21 -> 76.077 | F38: =Overweight!M21 -> 54.98 | G38: =Overweight!O21 -> 70.65 | H38: =Overweight!P21 -> 64.13 | I38: =Overweight!U21 -> 78.666 | J38: =Overweight!V21 -> 75.466 | K38: =Overweight!W21 -> 75.902 | L38: =Overweight!X21 -> 78.34 | M38: =Overweight!AA21 -> 71.695 | N38: =Overweight!AB21 -> 77.346 | O38: =Overweight!AD21 -> 72.748 | Q38: =Overweight!AH21 -> 66.04
A40: CLs | C40: =C36-C37 -> 4.597 | D40: =D36-D37 -> 3.614 | E40: =E36-E37 -> 4.172 | F40: =F36-F37 -> 3.75 | G40: =G36-G37 -> 2.99 | H40: =H36-H37 -> 3.56 | I40: 5.577 | J40: 3.882 | K40: 3.95 | L40: =L36-L37 -> 5.332 | M40: 6.189 | N40: 6.712 | O40: =O36-O37 -> 4.056 | Q40: =Q36-Q37 -> 1.1

Sheet Obesity
A1: Prevalence of obesity by Local Authority and sex | N1: INDEX
A4: Aged 16 and over | B4: PLEASE NOTE: Where the sample size for a Local Authority (which does not correspond fully to an NHS board) was below 500, the result has been suppressed. This is shown here by *. | P4: 2014/2015/2016/2017 combined
A5: Obesitya | B5: Local Authority
B6: Aberdeen City | C6: Aberdeenshire | D6: Angus | E6: Argyll & Bute | F6: Clackmannanshire | G6: Dumfries & Galloway | H6: Dundee City | I6: East Ayrshire | J6: East Dunbartonshire | K6: East Lothian | L6: East Renfrewshire | M6: Edinburgh, City of | N6: Falkirk | O6: Fife | P6: Glasgow City | Q6: Highland | R6: Inverclyde | S6: Midlothian | T6: Moray | U6: Na h-Eileanan Siar | V6: North Ayrshire | W6: North Lanarkshire | X6: Orkney Islands | Y6: Perth & Kinross | Z6: Renfrewshire | AA6: Scottish Borders | AB6: Shetland Islands | AC6: South Ayrshire | AD6: South Lanarkshire | AE6: Stirling | AF6: West Dunbartonshire | AG6: West Lothian | AH6: Scotland
B7: % | C7: % | D7: % | E7: % | F7: % | G7: % | H7: % | I7: % | J7: % | K7: % | L7: % | M7: % | N7: % | O7: % | P7: % | Q7: % | R7: % | S7: % | T7: % | U7: % | V7: % | W7: % | X7: % | Y7: % | Z7: % | AA7: % | AB7: % | AC7: % | AD7: % | AE7: % | AF7: % | AG7: % | AH7: %
A8: Men
A9: Obesea | B9: 25.221 | C9: 31.326 | D9: * | E9: * | F9: * | G9: * | H9: * | I9: 32.855 | J9: * | K9: * | L9: * | M9: 18.97 | N9: * | O9: 31.57 | P9: 21.01 | Q9: * | R9: * | S9: * | T9: * | U9: 30.141 | V9: 26.394 | W9: 37.639 | X9: 28.754 | Y9: * | Z9: * | AA9: 26.295 | AB9: 37.732 | AC9: * | AD9: 33.722 | AE9: * | AF9: * | AG9: * | AH9: 27.56
A10: Lower CI | B10: 20.311 | C10: 27.373 | D10: * | E10: * | F10: * | G10: * | H10: * | I10: 25.717 | J10: * | K10: * | L10: * | M10: 14.38 | N10: * | O10: 27.67 | P10: 17.43 | Q10: * | R10: * | S10: * | T10: * | U10: 22.649 | V10: 20.779 | W10: 31.578 | X10: 21.656 | Y10: * | Z10: * | AA10: 18.028 | AB10: 27.442 | AC10: * | AD10: 27.515 | AE10: * | AF10: * | AG10: * | AH10: 26.24
A11: Upper CI | B11: 30.132 | C11: 35.28 | D11: * | E11: * | F11: * | G11: * | H11: * | I11: 39.993 | J11: * | K11: * | L11: * | M11: 23.56 | N11: * | O11: 35.46 | P11: 24.59 | Q11: * | R11: * | S11: * | T11: * | U11: 37.632 | V11: 32.009 | W11: 43.7 | X11: 35.853 | Y11: * | Z11: * | AA11: 34.562 | AB11: 48.023 | AC11: * | AD11: 39.928 | AE11: * | AF11: * | AG11: * | AH11: 28.89
A13: Women
A14: Obesea | B14: 24.828 | C14: 33.593 | D14: * | E14: * | F14: * | G14: * | H14: * | I14: 39.085 | J14: * | K14: * | L14: * | M14: 18.37 | N14: * | O14: 32.37 | P14: 30.73 | Q14: * | R14: * | S14: * | T14: * | U14: 38.089 | V14: 39.362 | W14: 32.885 | X14: 34.818 | Y14: * | Z14: * | AA14: 24.513 | AB14: 36.461 | AC14: * | AD14: 26.405 | AE14: * | AF14: * | AG14: * | AH14: 29.55
A15: Lower CI | B15: 20.726 | C15: 28.887 | D15: * | E15: * | F15: * | G15: * | H15: * | I15: 32.269 | J15: * | K15: * | L15: * | M15: 14.88 | N15: * | O15: 29.14 | P15: 27.33 | Q15: * | R15: * | S15: * | T15: * | U15: 30.81 | V15: 34.076 | W15: 27.493 | X15: 25.866 | Y15: * | Z15: * | AA15: 18.282 | AB15: 28.682 | AC15: * | AD15: 21.667 | AE15: * | AF15: * | AG15: * | AH15: 28.42
A16: Upper CI | B16: 28.93 | C16: 38.298 | D16: * | E16: * | F16: * | G16: * | H16: * | I16: 45.902 | J16: * | K16: * | L16: * | M16: 21.87 | N16: * | O16: 35.59 | P16: 34.13 | Q16: * | R16: * | S16: * | T16: * | U16: 45.367 | V16: 44.648 | W16: 38.277 | X16: 43.769 | Y16: * | Z16: * | AA16: 30.744 | AB16: 44.24 | AC16: * | AD16: 31.143 | AE16: * | AF16: * | AG16: * | AH16: 30.68
A18: All Adults
A19: Obesea | B19: 25.026 | C19: 32.482 | D19: * | E19: * | F19: * | G19: * | H19: * | I19: 36.372 | J19: * | K19: * | L19: * | M19: 18.69 | N19: * | O19: 31.97 | P19: 25.94 | Q19: * | R19: * | S19: * | T19: * | U19: 34.031 | V19: 33.395 | W19: 35.147 | X19: 31.636 | Y19: * | Z19: * | AA19: 25.349 | AB19: 37.119 | AC19: * | AD19: 30.059 | AE19: * | AF19: * | AG19: * | AH19: 28.57
A20: Lower CI | B20: 21.436 | C20: 29.166 | D20: * | E20: * | F20: * | G20: * | H20: * | I20: 31.868 | J20: * | K20: * | L20: * | M20: 15.58 | N20: * | O20: 29.17 | P20: 23.25 | Q20: * | R20: * | S20: * | T20: * | U20: 28.654 | V20: 29.258 | W20: 31.064 | X20: 25.371 | Y20: * | Z20: * | AA20: 19.691 | AB20: 29.947 | AC20: * | AD20: 25.791 | AE20: * | AF20: * | AG20: * | AH20: 27.66
A21: Upper CI | B21: 28.617 | C21: 35.799 | D21: * | E21: * | F21: * | G21: * | H21: * | I21: 40.877 | J21: * | K21: * | L21: * | M21: 21.8 | N21: * | O21: 34.76 | P21: 28.62 | Q21: * | R21: * | S21: * | T21: * | U21: 39.408 | V21: 37.531 | W21: 39.23 | X21: 37.901 | Y21: * | Z21: * | AA21: 31.007 | AB21: 44.29 | AC21: * | AD21: 34.326 | AE21: * | AF21: * | AG21: * | AH21: 29.49
A23: Bases (weighted):
A24: Men | B24: 337.22 | C24: 376.73 | D24: 137.277 | E24: 133.771 | F24: 55.392 | G24: 190.102 | H24: 215.875 | I24: 149.512 | J24: 166.052 | K24: 142.178 | L24: 115.703 | M24: 726.4 | N24: 199.926 | O24: 485.03 | P24: 815.33 | Q24: 288.894 | R24: 79.538 | S24: 103.915 | T24: 132.694 | U24: 33.113 | V24: 183.235 | W24: 444.875 | X24: 33.741 | Y24: 185.226 | Z24: 215.7 | AA24: 154.771 | AB24: 29.803 | AC24: 125.594 | AD24: 442.654 | AE24: 107.81 | AF24: 100.384 | AG24: 250.07 | AH24: 7158.51
A25: Women | B25: 331.139 | C25: 392.219 | D25: 155.367 | E25: 130.428 | F25: 61.211 | G25: 219.423 | H25: 242.274 | I25: 193.848 | J25: 156.673 | K25: 147.729 | L25: 123.943 | M25: 655.82 | N25: 186.33 | O25: 490.26 | P25: 838.96 | Q25: 288.154 | R25: 115.221 | S25: 124.334 | T25: 156.463 | U25: 31.745 | V25: 214.959 | W25: 490.28 | X25: 30.563 | Y25: 208.775 | Z25: 191.934 | AA25: 175.176 | AB25: 27.802 | AC25: 154.724 | AD25: 443.808 | AE25: 107.47 | AF25: 97.849 | AG25: 235.845 | AH25: 7420.72
A26: All Adults | B26: 668.359 | C26: 768.949 | D26: 292.644 | E26: 264.199 | F26: 116.604 | G26: 409.525 | H26: 458.149 | I26: 343.36 | J26: 322.724 | K26: 289.907 | L26: 239.647 | M26: 1382.21 | N26: 386.257 | O26: 975.29 | P26: 1654.28 | Q26: 577.048 | R26: 194.759 | S26: 228.249 | T26: 289.157 | U26: 64.858 | V26: 398.195 | W26: 935.155 | X26: 64.305 | Y26: 394.001 | Z26: 407.634 | AA26: 329.947 | AB26: 57.605 | AC26: 280.319 | AD26: 886.462 | AE26: 215.28 | AF26: 198.233 | AG26: 485.914 | AH26: 14579.23
A27: Bases (unweighted)
A28: Men | B28: 374 | C28: 451 | D28: 95 | E28: 98 | F28: 37 | G28: 164 | H28: 129 | I28: 230 | J28: 126 | K28: 87 | L28: 90 | M28: 466 | N28: 116 | O28: 699 | P28: 540 | Q28: 179 | R28: 62 | S28: 68 | T28: 154 | U28: 211 | V28: 263 | W28: 270 | X28: 217 | Y28: 141 | Z28: 145 | AA28: 169 | AB28: 186 | AC28: 194 | AD28: 281 | AE28: 70 | AF28: 71 | AG28: 135 | AH28: 6518
A29: Women | B29: 441 | C29: 528 | D29: 116 | E29: 116 | F29: 48 | G29: 202 | H29: 162 | I29: 320 | J29: 154 | K29: 99 | L29: 121 | M29: 521 | N29: 136 | O29: 845 | P29: 712 | Q29: 225 | R29: 96 | S29: 98 | T29: 206 | U29: 230 | V29: 341 | W29: 374 | X29: 227 | Y29: 173 | Z29: 157 | AA29: 220 | AB29: 202 | AC29: 275 | AD29: 352 | AE29: 90 | AF29: 86 | AG29: 161 | AH29: 8034
A30: All Adults | B30: 815 | C30: 979 | D30: 211 | E30: 214 | F30: 85 | G30: 366 | H30: 291 | I30: 550 | J30: 280 | K30: 186 | L30: 211 | M30: 987 | N30: 252 | O30: 1544 | P30: 1252 | Q30: 404 | R30: 158 | S30: 166 | T30: 360 | U30: 441 | V30: 604 | W30: 644 | X30: 444 | Y30: 314 | Z30: 302 | AA30: 389 | AB30: 388 | AC30: 469 | AD30: 633 | AE30: 160 | AF30: 157 | AG30: 296 | AH30: 14552
A32: a BMI 30 or higher

Sheet Obesity chart
R1: INDEX
C31: Source: Scottish Health Survey
C32: Obese: BMI 30+
C34: Aberdeen City | D34: Aberdeenshire | E34: East Ayrshire | F34: Edinburgh, City of | G34: Fife | H34: Glasgow City | I34: Na h-Eileanan Siar | J34: North Ayrshire | K34: North Lanarkshire | L34: Orkney Islands | M34: Scottish Borders | N34: Shetland Islands | O34: South Lanarkshire | Q34: Scotland
B35: All Adults
B36: Obesea | C36: =Obesity!B19 -> 25.026 | D36: =Obesity!C19 -> 32.482 | E36: =Obesity!I19 -> 36.372 | F36: =Obesity!M19 -> 18.69 | G36: =Obesity!O19 -> 31.97 | H36: =Obesity!P19 -> 25.94 | I36: =Obesity!U19 -> 34.031 | J36: =Obesity!V19 -> 33.395 | K36: =Obesity!W19 -> 35.147 | L36: =Obesity!X19 -> 31.636 | M36: =Obesity!AA19 -> 25.349 | N36: =Obesity!AB19 -> 37.119 | O36: =Obesity!AD19 -> 30.059 | Q36: =Obesity!AH19 -> 28.57
B37: Lower CI | C37: =Obesity!B20 -> 21.436 | D37: =Obesity!C20 -> 29.166 | E37: =Obesity!I20 -> 31.868 | F37: =Obesity!M20 -> 15.58 | G37: =Obesity!O20 -> 29.17 | H37: =Obesity!P20 -> 23.25 | I37: =Obesity!U20 -> 28.654 | J37: =Obesity!V20 -> 29.258 | K37: =Obesity!W20 -> 31.064 | L37: =Obesity!X20 -> 25.371 | M37: =Obesity!AA20 -> 19.691 | N37: =Obesity!AB20 -> 29.947 | O37: =Obesity!AD20 -> 25.791 | Q37: =Obesity!AH20 -> 27.66
B38: Upper CI | C38: =Obesity!B21 -> 28.617 | D38: =Obesity!C21 -> 35.799 | E38: =Obesity!I21 -> 40.877 | F38: =Obesity!M21 -> 21.8 | G38: =Obesity!O21 -> 34.76 | H38: =Obesity!P21 -> 28.62 | I38: =Obesity!U21 -> 39.408 | J38: =Obesity!V21 -> 37.531 | K38: =Obesity!W21 -> 39.23 | L38: =Obesity!X21 -> 37.901 | M38: =Obesity!AA21 -> 31.007 | N38: =Obesity!AB21 -> 44.29 | O38: =Obesity!AD21 -> 34.326 | Q38: =Obesity!AH21 -> 29.49
A40: CLs | C40: =C36-C37 -> 3.59 | D40: =D36-D37 -> 3.316 | E40: =E36-E37 -> 4.504 | F40: =F36-F37 -> 3.11 | G40: =G36-G37 -> 2.8 | H40: =H36-H37 -> 2.69 | I40: 5.377 | J40: 4.137 | K40: 4.083 | L40: =L36-L37 -> 6.265 | M40: =M36-M37 -> 5.658 | N40: 7.172 | O40: =O36-O37 -> 4.268 | Q40: =Q36-Q37 -> 0.91

Sheet Fruit and vegetables
A1: Daily fruit and vegetable consumption, three categories, by Local Authority and sex | M1: INDEX
A4: Aged 16 and over | B4: PLEASE NOTE: Where the sample size for a Local Authority (which does not correspond fully to an NHS board) was below 500, the result has been suppressed. This is shown here by *. | P4: 2014/2015/2016/2017 combined
A5: Daily fruit and vegatable consumption, three categories | B5: Local Authority
B6: Aberdeen City | C6: Aberdeenshire | D6: Angus | E6: Argyll & Bute | F6: Clackmannanshire | G6: Dumfries & Galloway | H6: Dundee City | I6: East Ayrshire | J6: East Dunbartonshire | K6: East Lothian | L6: East Renfrewshire | M6: Edinburgh, City of | N6: Falkirk | O6: Fife | P6: Glasgow City | Q6: Highland | R6: Inverclyde | S6: Midlothian | T6: Moray | U6: Na h-Eileanan Siar | V6: North Ayrshire | W6: North Lanarkshire | X6: Orkney Islands | Y6: Perth & Kinross | Z6: Renfrewshire | AA6: Scottish Borders | AB6: Shetland Islands | AC6: South Ayrshire | AD6: South Lanarkshire | AE6: Stirling | AF6: West Dunbartonshire | AG6: West Lothian | AH6: Scotland
B7: % | C7: % | D7: % | E7: % | F7: % | G7: % | H7: % | I7: % | J7: % | K7: % | L7: % | M7: % | N7: % | O7: % | P7: % | Q7: % | R7: % | S7: % | T7: % | U7: % | V7: % | W7: % | X7: % | Y7: % | Z7: % | AA7: % | AB7: % | AC7: % | AD7: % | AE7: % | AF7: % | AG7: % | AH7: %
A8: Men
A9: None | B9: 10.601 | C9: 10.55 | D9: * | E9: * | F9: * | G9: * | H9: * | I9: 20.088 | J9: * | K9: * | L9: * | M9: 6.7 | N9: * | O9: 10.79 | P9: 15.08 | Q9: 14.412 | R9: * | S9: * | T9: * | U9: 10.719 | V9: 16.371 | W9: 14.1 | X9: 9.527 | Y9: * | Z9: * | AA9: 10.159 | AB9: 9.439 | AC9: 8.849 | AD9: 14.09 | AE9: * | AF9: * | AG9: * | AH9: 12.56
A10: Lower CI | B10: 7.126 | C10: 6.88 | D10: * | E10: * | F10: * | G10: * | H10: * | I10: 13.691 | J10: * | K10: * | L10: * | M10: 4.29 | N10: * | O10: 8.3 | P10: 11.59 | Q10: 9.611 | R10: * | S10: * | T10: * | U10: 6.217 | V10: 11.359 | W10: 9.56 | X10: 5.648 | Y10: * | Z10: * | AA10: 5.915 | AB10: 5.205 | AC10: 4.632 | AD10: 9.37 | AE10: * | AF10: * | AG10: * | AH10: 11.64
A11: Upper CI | B11: 14.075 | C11: 14.22 | D11: * | E11: * | F11: * | G11: * | H11: * | I11: 26.485 | J11: * | K11: * | L11: * | M11: 9.1 | N11: * | O11: 13.28 | P11: 18.57 | Q11: 19.214 | R11: * | S11: * | T11: * | U11: 15.221 | V11: 21.384 | W11: 18.65 | X11: 13.406 | Y11: * | Z11: * | AA11: 14.402 | AB11: 13.672 | AC11: 13.067 | AD11: 18.82 | AE11: * | AF11: * | AG11: * | AH11: 13.48
A12: Less than 5 portions | B12: 70.635 | C12: 73.46 | D12: * | E12: * | F12: * | G12: * | H12: * | I12: 66.318 | J12: * | K12: * | L12: * | M12: 63.38 | N12: * | O12: 69.31 | P12: 65.77 | Q12: 64.673 | R12: * | S12: * | T12: * | U12: 69.303 | V12: 71.368 | W12: 70.54 | X12: 70.352 | Y12: * | Z12: * | AA12: 69.097 | AB12: 72.901 | AC12: 74.97 | AD12: 69.54 | AE12: * | AF12: * | AG12: * | AH12: 67.78
A13: Lower CI | B13: 65.556 | C13: 68.9 | D13: * | E13: * | F13: * | G13: * | H13: * | I13: 59.475 | J13: * | K13: * | L13: * | M13: 58.57 | N13: * | O13: 65.92 | P13: 61.8 | Q13: 58.685 | R13: * | S13: * | T13: * | U13: 63.254 | V13: 65.745 | W13: 65.08 | X13: 63.323 | Y13: * | Z13: * | AA13: 61.597 | AB13: 66.336 | AC13: 66.239 | AD13: 63.64 | AE13: * | AF13: * | AG13: * | AH13: 66.45
A14: Upper CI | B14: 75.714 | C14: 78.02 | D14: * | E14: * | F14: * | G14: * | H14: * | I14: 73.161 | J14: * | K14: * | L14: * | M14: 68.19 | N14: * | O14: 72.69 | P14: 69.73 | Q14: 70.66 | R14: * | S14: * | T14: * | U14: 75.352 | V14: 76.991 | W14: 76 | X14: 77.38 | Y14: * | Z14: * | AA14: 76.597 | AB14: 79.466 | AC14: 83.701 | AD14: 75.44 | AE14: * | AF14: * | AG14: * | AH14: 69.12
A15: 5 portions or more | B15: 18.764 | C15: 15.99 | D15: * | E15: * | F15: * | G15: * | H15: * | I15: 13.594 | J15: * | K15: * | L15: * | M15: 29.92 | N15: * | O15: 19.9 | P15: 19.16 | Q15: 20.915 | R15: * | S15: * | T15: * | U15: 19.978 | V15: 12.261 | W15: 15.36 | X15: 20.121 | Y15: * | Z15: * | AA15: 20.744 | AB15: 17.66 | AC15: 16.181 | AD15: 16.37 | AE15: * | AF15: * | AG15: * | AH15: 19.66
A16: Lower CI | B16: 13.911 | C16: 12.44 | D16: * | E16: * | F16: * | G16: * | H16: * | I16: 8.892 | J16: * | K16: * | L16: * | M16: 25.35 | N16: * | O16: 16.88 | P16: 15.36 | Q16: 15.329 | R16: * | S16: * | T16: * | U16: 14.781 | V16: 8.111 | W16: 11.31 | X16: 13.839 | Y16: * | Z16: * | AA16: 14.498 | AB16: 11.21 | AC16: 9.185 | AD16: 11.6 | AE16: * | AF16: * | AG16: * | AH16: 18.5
A17: Upper CI | B17: 23.617 | C17: 19.54 | D17: * | E17: * | F17: * | G17: * | H17: * | I17: 18.296 | J17: * | K17: * | L17: * | M17: 34.49 | N17: * | O17: 22.93 | P17: 22.95 | Q17: 26.502 | R17: * | S17: * | T17: * | U17: 25.174 | V17: 16.411 | W17: 19.4 | X17: 26.403 | Y17: * | Z17: * | AA17: 26.991 | AB17: 24.11 | AC17: 23.177 | AD17: 21.13 | AE17: * | AF17: * | AG17: * | AH17: 20.81
A19: Women
A20: None | B20: 7.028 | C20: 6.49 | D20: * | E20: * | F20: * | G20: * | H20: * | I20: 13.99 | J20: * | K20: * | L20: * | M20: 5.19 | N20: * | O20: 7.5 | P20: 11.46 | Q20: 7.996 | R20: * | S20: * | T20: * | U20: 6.693 | V20: 9.781 | W20: 12.32 | X20: 7.878 | Y20: * | Z20: * | AA20: 6.14 | AB20: 7.07 | AC20: 8.753 | AD20: 9.09 | AE20: * | AF20: * | AG20: * | AH20: 8.94
A21: Lower CI | B21: 4.661 | C21: 4.26 | D21: * | E21: * | F21: * | G21: * | H21: * | I21: 11.019 | J21: * | K21: * | L21: * | M21: 3.49 | N21: * | O21: 5.75 | P21: 8.82 | Q21: 4.924 | R21: * | S21: * | T21: * | U21: 4.205 | V21: 5.938 | W21: 9.27 | X21: 5.691 | Y21: * | Z21: * | AA21: 3.002 | AB21: 4.014 | AC21: 5.787 | AD21: 4.87 | AE21: * | AF21: * | AG21: * | AH21: 8.2
A22: Upper CI | B22: 9.395 | C22: 8.72 | D22: * | E22: * | F22: * | G22: * | H22: * | I22: 16.962 | J22: * | K22: * | L22: * | M22: 6.88 | N22: * | O22: 9.24 | P22: 14.1 | Q22: 11.069 | R22: * | S22: * | T22: * | U22: 9.182 | V22: 13.624 | W22: 15.38 | X22: 10.064 | Y22: * | Z22: * | AA22: 9.277 | AB22: 10.125 | AC22: 11.72 | AD22: 13.31 | AE22: * | AF22: * | AG22: * | AH22: 9.68
A23: Less than 5 portions | B23: 68.887 | C23: 72.1 | D23: * | E23: * | F23: * | G23: * | H23: * | I23: 68.243 | J23: * | K23: * | L23: * | M23: 61.3 | N23: * | O23: 68.11 | P23: 65.89 | Q23: 70.705 | R23: * | S23: * | T23: * | U23: 70.555 | V23: 75.481 | W23: 74.62 | X23: 71.308 | Y23: * | Z23: * | AA23: 70.35 | AB23: 71.137 | AC23: 73.64 | AD23: 71.64 | AE23: * | AF23: * | AG23: * | AH23: 68.69
A24: Lower CI | B24: 63.885 | C24: 68.41 | D24: * | E24: * | F24: * | G24: * | H24: * | I24: 62.464 | J24: * | K24: * | L24: * | M24: 56.82 | N24: * | O24: 64.95 | P24: 62.32 | Q24: 65.519 | R24: * | S24: * | T24: * | U24: 63.948 | V24: 70.354 | W24: 70.31 | X24: 65.497 | Y24: * | Z24: * | AA24: 64.23 | AB24: 65.502 | AC24: 68.584 | AD24: 67.07 | AE24: * | AF24: * | AG24: * | AH24: 67.6
A25: Upper CI | B25: 73.888 | C25: 75.78 | D25: * | E25: * | F25: * | G25: * | H25: * | I25: 74.022 | J25: * | K25: * | L25: * | M25: 65.77 | N25: * | O25: 71.28 | P25: 69.46 | Q25: 75.892 | R25: * | S25: * | T25: * | U25: 77.161 | V25: 80.607 | W25: 78.93 | X25: 77.119 | Y25: * | Z25: * | AA25: 76.469 | AB25: 76.772 | AC25: 78.695 | AD25: 76.21 | AE25: * | AF25: * | AG25: * | AH25: 69.78
A26: 5 portions or more | B26: 24.085 | C26: 21.41 | D26: * | E26: * | F26: * | G26: * | H26: * | I26: 17.766 | J26: * | K26: * | L26: * | M26: 33.51 | N26: * | O26: 24.39 | P26: 22.65 | Q26: 21.298 | R26: * | S26: * | T26: * | U26: 22.752 | V26: 14.738 | W26: 13.06 | X26: 20.814 | Y26: * | Z26: * | AA26: 23.511 | AB26: 21.793 | AC26: 17.607 | AD26: 19.27 | AE26: * | AF26: * | AG26: * | AH26: 22.37
A27: Lower CI | B27: 19.541 | C27: 17.37 | D27: * | E27: * | F27: * | G27: * | H27: * | I27: 11.936 | J27: * | K27: * | L27: * | M27: 29.12 | N27: * | O27: 21.37 | P27: 19.17 | Q27: 16.27 | R27: * | S27: * | T27: * | U27: 16.078 | V27: 9.827 | W27: 9.92 | X27: 15.552 | Y27: * | Z27: * | AA27: 16.846 | AB27: 16.528 | AC27: 13.281 | AD27: 15.42 | AE27: * | AF27: * | AG27: * | AH27: 21.34
A28: Upper CI | B28: 28.629 | C28: 25.46 | D28: * | E28: * | F28: * | G28: * | H28: * | I28: 23.597 | J28: * | K28: * | L28: * | M28: 37.91 | N28: * | O28: 27.41 | P28: 26.13 | Q28: 26.326 | R28: * | S28: * | T28: * | U28: 29.426 | V28: 19.65 | W28: 16.19 | X28: 26.077 | Y28: * | Z28: * | AA28: 30.175 | AB28: 27.058 | AC28: 21.933 | AD28: 23.12 | AE28: * | AF28: * | AG28: * | AH28: 23.4
A30: All Adults
A31: None | B31: 8.782 | C31: 8.44 | D31: * | E31: * | F31: * | G31: * | H31: * | I31: 16.67 | J31: * | K31: * | L31: * | M31: 5.95 | N31: * | O31: 9.11 | P31: 13.18 | Q31: 11.065 | R31: * | S31: * | T31: * | U31: 8.728 | V31: 12.862 | W31: 13.15 | X31: 8.72 | Y31: * | Z31: * | AA31: 7.965 | AB31: 8.298 | AC31: 8.798 | AD31: 11.53 | AE31: * | AF31: * | AG31: * | AH31: 10.68
A32: Lower CI | B32: 6.616 | C32: 6.08 | D32: * | E32: * | F32: * | G32: * | H32: * | I32: 12.945 | J32: * | K32: * | L32: * | M32: 4.45 | N32: * | O32: 7.37 | P32: 10.6 | Q32: 8.165 | R32: * | S32: * | T32: * | U32: 6.036 | V32: 9.209 | W32: 10.18 | X32: 6.326 | Y32: * | Z32: * | AA32: 5.136 | AB32: 5.431 | AC32: 6.333 | AD32: 7.85 | AE32: * | AF32: * | AG32: * | AH32: 10.02
A33: Upper CI | B33: 10.948 | C33: 10.8 | D33: * | E33: * | F33: * | G33: * | H33: * | I33: 20.396 | J33: * | K33: * | L33: * | M33: 7.45 | N33: * | O33: 10.85 | P33: 15.75 | Q33: 13.966 | R33: * | S33: * | T33: * | U33: 11.419 | V33: 16.514 | W33: 16.13 | X33: 11.115 | Y33: * | Z33: * | AA33: 10.794 | AB33: 11.164 | AC33: 11.264 | AD33: 15.2 | AE33: * | AF33: * | AG33: * | AH33: 11.34
A34: Less than 5 portions | B34: 69.745 | C34: 72.75 | D34: * | E34: * | F34: * | G34: * | H34: * | I34: 67.397 | J34: * | K34: * | L34: * | M34: 62.35 | N34: * | O34: 68.7 | P34: 65.83 | Q34: 67.82 | R34: * | S34: * | T34: * | U34: 69.922 | V34: 73.558 | W34: 72.72 | X34: 70.819 | Y34: * | Z34: * | AA34: 69.781 | AB34: 72.052 | AC34: 74.265 | AD34: 70.62 | AE34: * | AF34: * | AG34: * | AH34: 68.25
A35: Lower CI | B35: 65.968 | C35: 69.62 | D35: * | E35: * | F35: * | G35: * | H35: * | I35: 62.613 | J35: * | K35: * | L35: * | M35: 58.7 | N35: * | O35: 66.08 | P35: 62.92 | Q35: 63.742 | R35: * | S35: * | T35: * | U35: 65.274 | V35: 69.502 | W35: 69.19 | X35: 65.942 | Y35: * | Z35: * | AA35: 64.249 | AB35: 67.415 | AC35: 68.801 | AD35: 66.67 | AE35: * | AF35: * | AG35: * | AH35: 67.3
A36: Upper CI | B36: 73.523 | C36: 75.89 | D36: * | E36: * | F36: * | G36: * | H36: * | I36: 72.181 | J36: * | K36: * | L36: * | M36: 65.99 | N36: * | O36: 71.32 | P36: 68.74 | Q36: 71.898 | R36: * | S36: * | T36: * | U36: 74.571 | V36: 77.614 | W36: 76.25 | X36: 75.697 | Y36: * | Z36: * | AA36: 75.312 | AB36: 76.688 | AC36: 79.729 | AD36: 74.56 | AE36: * | AF36: * | AG36: * | AH36: 69.21
A37: 5 portions or more | B37: 21.473 | C37: 18.8 | D37: * | E37: * | F37: * | G37: * | H37: * | I37: 15.933 | J37: * | K37: * | L37: * | M37: 31.7 | N37: * | O37: 22.19 | P37: 20.99 | Q37: 21.115 | R37: * | S37: * | T37: * | U37: 21.35 | V37: 13.58 | W37: 14.13 | X37: 20.46 | Y37: * | Z37: * | AA37: 22.254 | AB37: 19.651 | AC37: 16.936 | AD37: 17.86 | AE37: * | AF37: * | AG37: * | AH37: 21.07
A38: Lower CI | B38: 18.153 | C38: 15.68 | D38: * | E38: * | F38: * | G38: * | H38: * | I38: 11.432 | J38: * | K38: * | L38: * | M38: 28.11 | N38: * | O38: 19.82 | P38: 18.08 | Q38: 17.16 | R38: * | S38: * | T38: * | U38: 16.436 | V38: 9.782 | W38: 11.77 | X38: 15.885 | Y38: * | Z38: * | AA38: 17.186 | AB38: 14.879 | AC38: 12.175 | AD38: 14.73 | AE38: * | AF38: * | AG38: * | AH38: 20.19
A39: Upper CI | B39: 24.793 | C39: 21.93 | D39: * | E39: * | F39: * | G39: * | H39: * | I39: 20.433 | J39: * | K39: * | L39: * | M39: 35.29 | N39: * | O39: 24.57 | P39: 23.91 | Q39: 25.07 | R39: * | S39: * | T39: * | U39: 26.265 | V39: 17.379 | W39: 16.48 | X39: 25.036 | Y39: * | Z39: * | AA39: 27.322 | AB39: 24.423 | AC39: 21.698 | AD39: 20.98 | AE39: * | AF39: * | AG39: * | AH39: 21.94
A42: Bases (weighted):
A43: Men | B43: 361.119 | C43: 404.26 | D43: 170.13 | E43: 147.951 | F43: 71.728 | G43: 238.321 | H43: 241.857 | I43: 175.553 | J43: 189.682 | K43: 160.383 | L43: 135.307 | M43: 832.18 | N43: 265.1 | O43: 588.94 | P43: 934.5 | Q43: 362.144 | R43: 103.303 | S43: 123.743 | T43: 151.74 | U43: 45.339 | V43: 216.421 | W43: 567.26 | X43: 37.337 | Y43: 222.884 | Z43: 243.813 | AA43: 172.523 | AB43: 39.284 | AC43: 170.831 | AD43: 550.8 | AE43: 135.05 | AF43: 113.716 | AG43: 312.42 | AH43: 8485.61
A44: Women | B44: 374.389 | C44: 436.01 | D44: 198.7 | E44: 148.815 | F44: 86.173 | G44: 261.559 | H44: 271.726 | I44: 223.875 | J44: 180.321 | K44: 182.716 | L44: 142.356 | M44: 817.43 | N44: 255.612 | O44: 613.42 | P44: 1034.56 | Q44: 394.91 | R44: 146.48 | S44: 135.534 | T44: 187.219 | U44: 44.388 | V44: 246.538 | W44: 652.59 | X44: 35.742 | Y44: 250.133 | Z44: 248.838 | AA44: 207.301 | AB44: 36.496 | AC44: 192.432 | AD44: 579.67 | AE44: 167.888 | AF44: 127.016 | AG44: 292.096 | AH44: 9172.95
A45: All Adults | B45: 735.508 | C45: 840.27 | D45: 368.831 | E45: 296.766 | F45: 157.901 | G45: 499.879 | H45: 513.583 | I45: 399.427 | J45: 370.003 | K45: 343.099 | L45: 277.663 | M45: 1649.61 | N45: 520.712 | O45: 1202.36 | P45: 1969.06 | Q45: 757.054 | R45: 249.784 | S45: 259.277 | T45: 338.959 | U45: 89.726 | V45: 462.959 | W45: 1219.85 | X45: 73.079 | Y45: 473.017 | Z45: 492.652 | AA45: 379.825 | AB45: 75.78 | AC45: 363.262 | AD45: 1130.47 | AE45: 302.938 | AF45: 240.732 | AG45: 604.516 | AH45: 17658.56
A46: Bases (unweighted)
A47: Men | B47: 407 | C47: 483 | D47: 114 | E47: 110 | F47: 46 | G47: 205 | H47: 144 | I47: 275 | J47: 144 | K47: 96 | L47: 109 | M47: 535 | N47: 160 | O47: 859 | P47: 629 | Q47: 235 | R47: 81 | S47: 81 | T47: 178 | U47: 280 | V47: 314 | W47: 340 | X47: 241 | Y47: 171 | Z47: 168 | AA47: 191 | AB47: 243 | AC47: 260 | AD47: 356 | AE47: 92 | AF47: 82 | AG47: 170 | AH47: 7799
A48: Women | B48: 503 | C48: 586 | D48: 146 | E48: 133 | F48: 66 | G48: 244 | H48: 180 | I48: 373 | J48: 175 | K48: 119 | L48: 139 | M48: 639 | N48: 188 | O48: 1058 | P48: 886 | Q48: 313 | R48: 123 | S48: 106 | T48: 245 | U48: 318 | V48: 389 | W48: 488 | X48: 264 | Y48: 207 | Z48: 208 | AA48: 259 | AB48: 265 | AC48: 331 | AD48: 462 | AE48: 134 | AF48: 112 | AG48: 206 | AH48: 9865
A49: All Adults | B49: 910 | C49: 1069 | D49: 260 | E49: 243 | F49: 112 | G49: 449 | H49: 324 | I49: 648 | J49: 319 | K49: 215 | L49: 248 | M49: 1174 | N49: 348 | O49: 1917 | P49: 1515 | Q49: 548 | R49: 204 | S49: 187 | T49: 423 | U49: 598 | V49: 703 | W49: 828 | X49: 505 | Y49: 378 | Z49: 376 | AA49: 450 | AB49: 508 | AC49: 591 | AD49: 818 | AE49: 226 | AF49: 194 | AG49: 376 | AH49: 17664

Sheet Fruit and veg chart
R1: INDEX
C31: Source: Scottish Health Survey
C34: Aberdeen City | D34: Aberdeenshire | E34: East Ayrshire | F34: Edinburgh, City of | G34: Fife | H34: Glasgow City | I34: Highland | J34: Na h-Eileanan Siar | K34: North Ayrshire | L34: North Lanarkshire | M34: Orkney Islands | N34: Scottish Borders | O34: Shetland Islands | P34: South Ayrshire | Q34: South Lanarkshire | S34: Scotland
B35: All Adults
B36: None | C36: ='Fruit and vegetables'!B31 -> 8.782 | D36: ='Fruit and vegetables'!C31 -> 8.44 | E36: ='Fruit and vegetables'!I31 -> 16.67 | F36: ='Fruit and vegetables'!M31 -> 5.95 | G36: ='Fruit and vegetables'!O31 -> 9.11 | H36: ='Fruit and vegetables'!P31 -> 13.18 | I36: ='Fruit and vegetables'!Q31 -> 11.065 | J36: ='Fruit and vegetables'!U31 -> 8.728 | K36: ='Fruit and vegetables'!V31 -> 12.862 | L36: ='Fruit and vegetables'!W31 -> 13.15 | M36: ='Fruit and vegetables'!X31 -> 8.72 | N36: ='Fruit and vegetables'!AA31 -> 7.965 | O36: ='Fruit and vegetables'!AB31 -> 8.298 | P36: ='Fruit and vegetables'!AC31 -> 8.798 | Q36: ='Fruit and vegetables'!AD31 -> 11.53 | S36: ='Fruit and vegetables'!AH31 -> 10.68
B37: Lower CI | C37: ='Fruit and vegetables'!B32 -> 6.616 | D37: ='Fruit and vegetables'!C32 -> 6.08 | E37: ='Fruit and vegetables'!I32 -> 12.945 | F37: ='Fruit and vegetables'!M32 -> 4.45 | G37: ='Fruit and vegetables'!O32 -> 7.37 | H37: ='Fruit and vegetables'!P32 -> 10.6 | I37: ='Fruit and vegetables'!Q32 -> 8.165 | J37: ='Fruit and vegetables'!U32 -> 6.036 | K37: ='Fruit and vegetables'!V32 -> 9.209 | L37: ='Fruit and vegetables'!W32 -> 10.18 | M37: ='Fruit and vegetables'!X32 -> 6.326 | N37: ='Fruit and vegetables'!AA32 -> 5.136 | O37: ='Fruit and vegetables'!AB32 -> 5.431 | P37: ='Fruit and vegetables'!AC32 -> 6.333 | Q37: ='Fruit and vegetables'!AD32 -> 7.85 | S37: ='Fruit and vegetables'!AH32 -> 10.02
B38: Upper CI | C38: ='Fruit and vegetables'!B33 -> 10.948 | D38: ='Fruit and vegetables'!C33 -> 10.8 | E38: ='Fruit and vegetables'!I33 -> 20.396 | F38: ='Fruit and vegetables'!M33 -> 7.45 | G38: ='Fruit and vegetables'!O33 -> 10.85 | H38: ='Fruit and vegetables'!P33 -> 15.75 | I38: ='Fruit and vegetables'!Q33 -> 13.966 | J38: ='Fruit and vegetables'!U33 -> 11.419 | K38: ='Fruit and vegetables'!V33 -> 16.514 | L38: ='Fruit and vegetables'!W33 -> 16.13 | M38: ='Fruit and vegetables'!X33 -> 11.115 | N38: ='Fruit and vegetables'!AA33 -> 10.794 | O38: ='Fruit and vegetables'!AB33 -> 11.164 | P38: ='Fruit and vegetables'!AC33 -> 11.264 | Q38: ='Fruit and vegetables'!AD33 -> 15.2 | S38: ='Fruit and vegetables'!AH33 -> 11.34
B39: Less than 5 portions | C39: ='Fruit and vegetables'!B34 -> 69.745 | D39: ='Fruit and vegetables'!C34 -> 72.75 | E39: ='Fruit and vegetables'!I34 -> 67.397 | F39: ='Fruit and vegetables'!M34 -> 62.35 | G39: ='Fruit and vegetables'!O34 -> 68.7 | H39: ='Fruit and vegetables'!P34 -> 65.83 | I39: ='Fruit and vegetables'!Q34 -> 67.82 | J39: ='Fruit and vegetables'!U34 -> 69.922 | K39: ='Fruit and vegetables'!V34 -> 73.558 | L39: ='Fruit and vegetables'!W34 -> 72.72 | M39: ='Fruit and vegetables'!X34 -> 70.819 | N39: ='Fruit and vegetables'!AA34 -> 69.781 | O39: ='Fruit and vegetables'!AB34 -> 72.052 | P39: ='Fruit and vegetables'!AC34 -> 74.265 | Q39: ='Fruit and vegetables'!AD34 -> 70.62 | S39: ='Fruit and vegetables'!AH34 -> 68.25
B40: Lower CI | C40: ='Fruit and vegetables'!B35 -> 65.968 | D40: ='Fruit and vegetables'!C35 -> 69.62 | E40: ='Fruit and vegetables'!I35 -> 62.613 | F40: ='Fruit and vegetables'!M35 -> 58.7 | G40: ='Fruit and vegetables'!O35 -> 66.08 | H40: ='Fruit and vegetables'!P35 -> 62.92 | I40: ='Fruit and vegetables'!Q35 -> 63.742 | J40: ='Fruit and vegetables'!U35 -> 65.274 | K40: ='Fruit and vegetables'!V35 -> 69.502 | L40: ='Fruit and vegetables'!W35 -> 69.19 | M40: ='Fruit and vegetables'!X35 -> 65.942 | N40: ='Fruit and vegetables'!AA35 -> 64.249 | O40: ='Fruit and vegetables'!AB35 -> 67.415 | P40: ='Fruit and vegetables'!AC35 -> 68.801 | Q40: ='Fruit and vegetables'!AD35 -> 66.67 | S40: ='Fruit and vegetables'!AH35 -> 67.3
B41: Upper CI | C41: ='Fruit and vegetables'!B36 -> 73.523 | D41: ='Fruit and vegetables'!C36 -> 75.89 | E41: ='Fruit and vegetables'!I36 -> 72.181 | F41: ='Fruit and vegetables'!M36 -> 65.99 | G41: ='Fruit and vegetables'!O36 -> 71.32 | H41: ='Fruit and vegetables'!P36 -> 68.74 | I41: ='Fruit and vegetables'!Q36 -> 71.898 | J41: ='Fruit and vegetables'!U36 -> 74.571 | K41: ='Fruit and vegetables'!V36 -> 77.614 | L41: ='Fruit and vegetables'!W36 -> 76.25 | M41: ='Fruit and vegetables'!X36 -> 75.697 | N41: ='Fruit and vegetables'!AA36 -> 75.312 | O41: ='Fruit and vegetables'!AB36 -> 76.688 | P41: ='Fruit and vegetables'!AC36 -> 79.729 | Q41: ='Fruit and vegetables'!AD36 -> 74.56 | S41: ='Fruit and vegetables'!AH36 -> 69.21
B42: 5 portions or more | C42: ='Fruit and vegetables'!B37 -> 21.473 | D42: ='Fruit and vegetables'!C37 -> 18.8 | E42: ='Fruit and vegetables'!I37 -> 15.933 | F42: ='Fruit and vegetables'!M37 -> 31.7 | G42: ='Fruit and vegetables'!O37 -> 22.19 | H42: ='Fruit and vegetables'!P37 -> 20.99 | I42: ='Fruit and vegetables'!Q37 -> 21.115 | J42: ='Fruit and vegetables'!U37 -> 21.35 | K42: ='Fruit and vegetables'!V37 -> 13.58 | L42: ='Fruit and vegetables'!W37 -> 14.13 | M42: ='Fruit and vegetables'!X37 -> 20.46 | N42: ='Fruit and vegetables'!AA37 -> 22.254 | O42: ='Fruit and vegetables'!AB37 -> 19.651 | P42: ='Fruit and vegetables'!AC37 -> 16.936 | Q42: ='Fruit and vegetables'!AD37 -> 17.86 | S42: ='Fruit and vegetables'!AH37 -> 21.07
B43: Lower CI | C43: ='Fruit and vegetables'!B38 -> 18.153 | D43: ='Fruit and vegetables'!C38 -> 15.68 | E43: ='Fruit and vegetables'!I38 -> 11.432 | F43: ='Fruit and vegetables'!M38 -> 28.11 | G43: ='Fruit and vegetables'!O38 -> 19.82 | H43: ='Fruit and vegetables'!P38 -> 18.08 | I43: ='Fruit and vegetables'!Q38 -> 17.16 | J43: ='Fruit and vegetables'!U38 -> 16.436 | K43: ='Fruit and vegetables'!V38 -> 9.782 | L43: ='Fruit and vegetables'!W38 -> 11.77 | M43: ='Fruit and vegetables'!X38 -> 15.885 | N43: ='Fruit and vegetables'!AA38 -> 17.186 | O43: ='Fruit and vegetables'!AB38 -> 14.879 | P43: ='Fruit and vegetables'!AC38 -> 12.175 | Q43: ='Fruit and vegetables'!AD38 -> 14.73 | S43: ='Fruit and vegetables'!AH38 -> 20.19
B44: Upper CI | C44: ='Fruit and vegetables'!B39 -> 24.793 | D44: ='Fruit and vegetables'!C39 -> 21.93 | E44: ='Fruit and vegetables'!I39 -> 20.433 | F44: ='Fruit and vegetables'!M39 -> 35.29 | G44: ='Fruit and vegetables'!O39 -> 24.57 | H44: ='Fruit and vegetables'!P39 -> 23.91 | I44: ='Fruit and vegetables'!Q39 -> 25.07 | J44: ='Fruit and vegetables'!U39 -> 26.265 | K44: ='Fruit and vegetables'!V39 -> 17.379 | L44: ='Fruit and vegetables'!W39 -> 16.48 | M44: ='Fruit and vegetables'!X39 -> 25.036 | N44: ='Fruit and vegetables'!AA39 -> 27.322 | O44: ='Fruit and vegetables'!AB39 -> 24.423 | P44: ='Fruit and vegetables'!AC39 -> 21.698 | Q44: ='Fruit and vegetables'!AD39 -> 20.98 | S44: ='Fruit and vegetables'!AH39 -> 21.94
A46: CLs | B46: None | C46: =C36-C37 -> 2.166 | D46: =D36-D37 -> 2.36 | E46: =E36-E37 -> 3.725 | F46: =F36-F37 -> 1.5 | G46: =G36-G37 -> 1.74 | H46: =H36-H37 -> 2.58 | I46: 2.9 | J46: 2.692 | K46: 3.653 | L46: 2.97 | M46: 2.394 | N46: =N36-N37 -> 2.829 | O46: =O36-O37 -> 2.867 | P46: =P36-P37 -> 2.465 | Q46: =Q36-Q37 -> 3.68 | S46: =S36-S37 -> 0.66
B47: Less than 5 portions | C47: =C39-C40 -> 3.777 | D47: =D39-D40 -> 3.13 | E47: =E39-E40 -> 4.784 | F47: =F39-F40 -> 3.65 | G47: =G39-G40 -> 2.62 | H47: =H39-H40 -> 2.91 | I47: 4.078 | J47: 4.648 | K47: 4.056 | L47: 3.53 | M47: 4.877 | N47: =N39-N40 -> 5.532 | O47: =O39-O40 -> 4.637 | P47: =P39-P40 -> 5.464 | Q47: =Q39-Q40 -> 3.95 | S47: =S39-S40 -> 0.95
B48: 5 portions or more | C48: =C42-C43 -> 3.32 | D48: =D42-D43 -> 3.12 | E48: =E42-E43 -> 4.501 | F48: =F42-F43 -> 3.59 | G48: =G42-G43 -> 2.37 | H48: =H42-H43 -> 2.91 | I48: 3.955 | J48: 4.914 | K48: 3.798 | L48: 2.36 | M48: 4.575 | N48: =N42-N43 -> 5.068 | O48: =O42-O43 -> 4.772 | P48: =P42-P43 -> 4.761 | Q48: =Q42-Q43 -> 3.13 | S48: =S42-S43 -> 0.88

Sheet Mean fruit and vegetables
A1: Mean daily portions of fruit and vegetables, by Local Authority and sex | M1: INDEX
A4: Aged 16 and over | B4: PLEASE NOTE: Where the sample size for a Local Authority (which does not correspond fully to an NHS board) was below 500, the result has been suppressed. This is shown here by *. | P4: 2014/2015/2016/2017 combined
A5: Mean daily portions of fruit and vegetables | B5: Local Authority
B6: Aberdeen City | C6: Aberdeenshire | D6: Angus | E6: Argyll & Bute | F6: Clackmannanshire | G6: Dumfries & Galloway | H6: Dundee City | I6: East Ayrshire | J6: East Dunbartonshire | K6: East Lothian | L6: East Renfrewshire | M6: Edinburgh, City of | N6: Falkirk | O6: Fife | P6: Glasgow City | Q6: Highland | R6: Inverclyde | S6: Midlothian | T6: Moray | U6: Na h-Eileanan Siar | V6: North Ayrshire | W6: North Lanarkshire | X6: Orkney Islands | Y6: Perth & Kinross | Z6: Renfrewshire | AA6: Scottish Borders | AB6: Shetland Islands | AC6: South Ayrshire | AD6: South Lanarkshire | AE6: Stirling | AF6: West Dunbartonshire | AG6: West Lothian | AH6: Scotland
A7: Men
A8: Mean | B8: 3.126 | C8: 2.93 | D8: * | E8: * | F8: * | G8: * | H8: * | I8: 2.401 | J8: * | K8: * | L8: * | M8: 3.81 | N8: * | O8: 3.03 | P8: 2.98 | Q8: 3.125 | R8: * | S8: * | T8: * | U8: 3.066 | V8: 2.365 | W8: 2.62 | X8: 2.994 | Y8: * | Z8: * | AA8: 3.182 | AB8: 2.931 | AC8: 2.805 | AD8: 2.84 | AE8: * | AF8: * | AG8: * | AH8: 3
A9: Lower CI | B9: 2.771 | C9: 2.7 | D9: * | E9: * | F9: * | G9: * | H9: * | I9: 2.07 | J9: * | K9: * | L9: * | M9: 3.52 | N9: * | O9: 2.82 | P9: 2.72 | Q9: 2.736 | R9: * | S9: * | T9: * | U9: 2.76 | V9: 2.073 | W9: 2.36 | X9: 2.67 | Y9: * | Z9: * | AA9: 2.891 | AB9: 2.607 | AC9: 2.514 | AD9: 2.57 | AE9: * | AF9: * | AG9: * | AH9: 2.93
A10: Upper CI | B10: 3.481 | C10: 3.17 | D10: * | E10: * | F10: * | G10: * | H10: * | I10: 2.733 | J10: * | K10: * | L10: * | M10: 4.1 | N10: * | O10: 3.23 | P10: 3.25 | Q10: 3.514 | R10: * | S10: * | T10: * | U10: 3.371 | V10: 2.657 | W10: 2.88 | X10: 3.318 | Y10: * | Z10: * | AA10: 3.472 | AB10: 3.255 | AC10: 3.097 | AD10: 3.12 | AE10: * | AF10: * | AG10: * | AH10: 3.08
A12: Women
A13: Mean | B13: 3.442 | C13: 3.24 | D13: * | E13: * | F13: * | G13: * | H13: * | I13: 2.867 | J13: * | K13: * | L13: * | M13: 4.07 | N13: * | O13: 3.46 | P13: 3.23 | Q13: 3.399 | R13: * | S13: * | T13: * | U13: 3.508 | V13: 2.713 | W13: 2.72 | X13: 3.297 | Y13: * | Z13: * | AA13: 3.448 | AB13: 3.367 | AC13: 3.028 | AD13: 3.17 | AE13: * | AF13: * | AG13: * | AH13: 3.31
A14: Lower CI | B14: 3.171 | C14: 3.01 | D14: * | E14: * | F14: * | G14: * | H14: * | I14: 2.476 | J14: * | K14: * | L14: * | M14: 3.82 | N14: * | O14: 3.27 | P14: 2.99 | Q14: 3.121 | R14: * | S14: * | T14: * | U14: 3.105 | V14: 2.414 | W14: 2.48 | X14: 3.034 | Y14: * | Z14: * | AA14: 3.027 | AB14: 2.982 | AC14: 2.763 | AD14: 2.86 | AE14: * | AF14: * | AG14: * | AH14: 3.24
A15: Upper CI | B15: 3.712 | C15: 3.47 | D15: * | E15: * | F15: * | G15: * | H15: * | I15: 3.258 | J15: * | K15: * | L15: * | M15: 4.32 | N15: * | O15: 3.65 | P15: 3.47 | Q15: 3.677 | R15: * | S15: * | T15: * | U15: 3.911 | V15: 3.011 | W15: 2.96 | X15: 3.56 | Y15: * | Z15: * | AA15: 3.87 | AB15: 3.751 | AC15: 3.293 | AD15: 3.48 | AE15: * | AF15: * | AG15: * | AH15: 3.38
A17: All adults
A18: Mean | B18: 3.287 | C18: 3.09 | D18: * | E18: * | F18: * | G18: * | H18: * | I18: 2.662 | J18: * | K18: * | L18: * | M18: 3.94 | N18: * | O18: 3.25 | P18: 3.11 | Q18: 3.268 | R18: * | S18: * | T18: * | U18: 3.285 | V18: 2.55 | W18: 2.67 | X18: 3.142 | Y18: * | Z18: * | AA18: 3.327 | AB18: 3.141 | AC18: 2.923 | AD18: 3.01 | AE18: * | AF18: * | AG18: * | AH18: 3.16
A19: Lower CI | B19: 3.06 | C19: 2.9 | D19: * | E19: * | F19: * | G19: * | H19: * | I19: 2.327 | J19: * | K19: * | L19: * | M19: 3.71 | N19: * | O19: 3.08 | P19: 2.91 | Q19: 3.006 | R19: * | S19: * | T19: * | U19: 2.984 | V19: 2.308 | W19: 2.49 | X19: 2.929 | Y19: * | Z19: * | AA19: 3.05 | AB19: 2.848 | AC19: 2.684 | AD19: 2.78 | AE19: * | AF19: * | AG19: * | AH19: 3.1
A20: Upper CI | B20: 3.514 | C20: 3.29 | D20: * | E20: * | F20: * | G20: * | H20: * | I20: 2.997 | J20: * | K20: * | L20: * | M20: 4.16 | N20: * | O20: 3.41 | P20: 3.32 | Q20: 3.529 | R20: * | S20: * | T20: * | U20: 3.585 | V20: 2.792 | W20: 2.85 | X20: 3.356 | Y20: * | Z20: * | AA20: 3.604 | AB20: 3.434 | AC20: 3.163 | AD20: 3.24 | AE20: * | AF20: * | AG20: * | AH20: 3.22
A22: Bases (weighted):
A23: Men | B23: 361.119 | C23: 404.26 | D23: 170.13 | E23: 147.951 | F23: 71.728 | G23: 238.321 | H23: 241.857 | I23: 175.553 | J23: 189.682 | K23: 160.383 | L23: 135.307 | M23: 832.18 | N23: 265.1 | O23: 588.94 | P23: 934.5 | Q23: 362.144 | R23: 103.303 | S23: 123.743 | T23: 151.74 | U23: 45.339 | V23: 216.421 | W23: 567.26 | X23: 37.337 | Y23: 222.884 | Z23: 243.813 | AA23: 172.523 | AB23: 39.284 | AC23: 170.831 | AD23: 550.8 | AE23: 135.05 | AF23: 113.716 | AG23: 312.42 | AH23: 8485.61
A24: Women | B24: 374.389 | C24: 436.01 | D24: 198.7 | E24: 148.815 | F24: 86.173 | G24: 261.559 | H24: 271.726 | I24: 223.875 | J24: 180.321 | K24: 182.716 | L24: 142.356 | M24: 817.43 | N24: 255.612 | O24: 613.42 | P24: 1034.56 | Q24: 394.91 | R24: 146.48 | S24: 135.534 | T24: 187.219 | U24: 44.388 | V24: 246.538 | W24: 652.59 | X24: 35.742 | Y24: 250.133 | Z24: 248.838 | AA24: 207.301 | AB24: 36.496 | AC24: 192.432 | AD24: 579.67 | AE24: 167.888 | AF24: 127.016 | AG24: 292.096 | AH24: 9172.95
A25: All Adults | B25: 735.508 | C25: 840.27 | D25: 368.831 | E25: 296.766 | F25: 157.901 | G25: 499.879 | H25: 513.583 | I25: 399.427 | J25: 370.003 | K25: 343.099 | L25: 277.663 | M25: 1649.61 | N25: 520.712 | O25: 1202.36 | P25: 1969.06 | Q25: 757.054 | R25: 249.784 | S25: 259.277 | T25: 338.959 | U25: 89.726 | V25: 462.959 | W25: 1219.85 | X25: 73.079 | Y25: 473.017 | Z25: 492.652 | AA25: 379.825 | AB25: 75.78 | AC25: 363.262 | AD25: 1130.47 | AE25: 302.938 | AF25: 240.732 | AG25: 604.516 | AH25: 17658.56
A26: Bases (unweighted)
A27: Men | B27: 407 | C27: 483 | D27: 114 | E27: 110 | F27: 46 | G27: 205 | H27: 144 | I27: 275 | J27: 144 | K27: 96 | L27: 109 | M27: 535 | N27: 160 | O27: 859 | P27: 629 | Q27: 235 | R27: 81 | S27: 81 | T27: 178 | U27: 280 | V27: 314 | W27: 340 | X27: 241 | Y27: 171 | Z27: 168 | AA27: 191 | AB27: 243 | AC27: 260 | AD27: 356 | AE27: 92 | AF27: 82 | AG27: 170 | AH27: 7799
A28: Women | B28: 503 | C28: 586 | D28: 146 | E28: 133 | F28: 66 | G28: 244 | H28: 180 | I28: 373 | J28: 175 | K28: 119 | L28: 139 | M28: 639 | N28: 188 | O28: 1058 | P28: 886 | Q28: 313 | R28: 123 | S28: 106 | T28: 245 | U28: 318 | V28: 389 | W28: 488 | X28: 264 | Y28: 207 | Z28: 208 | AA28: 259 | AB28: 265 | AC28: 331 | AD28: 462 | AE28: 134 | AF28: 112 | AG28: 206 | AH28: 9865
A29: All Adults | B29: 910 | C29: 1069 | D29: 260 | E29: 243 | F29: 112 | G29: 449 | H29: 324 | I29: 648 | J29: 319 | K29: 215 | L29: 248 | M29: 1174 | N29: 348 | O29: 1917 | P29: 1515 | Q29: 548 | R29: 204 | S29: 187 | T29: 423 | U29: 598 | V29: 703 | W29: 828 | X29: 505 | Y29: 378 | Z29: 376 | AA29: 450 | AB29: 508 | AC29: 591 | AD29: 818 | AE29: 226 | AF29: 194 | AG29: 376 | AH29: 17664

Sheet Mean fruit and veg chart
R1: INDEX
C31: Source: Scottish Health Survey
C34: Aberdeen City | D34: Aberdeenshire | E34: East Ayrshire | F34: Edinburgh, City of | G34: Fife | H34: Glasgow City | I34: Highland | J34: Na h-Eileanan Siar | K34: North Ayrshire | L34: North Lanarkshire | M34: Orkney Islands | N34: Scottish Borders | O34: Shetland Islands | P34: South Ayrshire | Q34: South Lanarkshire | S34: Scotland
B35: All adults
B36: Mean | C36: ='Mean fruit and vegetables'!B18 -> 3.287 | D36: ='Mean fruit and vegetables'!C18 -> 3.09 | E36: ='Mean fruit and vegetables'!I18 -> 2.662 | F36: ='Mean fruit and vegetables'!M18 -> 3.94 | G36: ='Mean fruit and vegetables'!O18 -> 3.25 | H36: ='Mean fruit and vegetables'!P18 -> 3.11 | I36: ='Mean fruit and vegetables'!Q18 -> 3.268 | J36: ='Mean fruit and vegetables'!U18 -> 3.285 | K36: ='Mean fruit and vegetables'!V18 -> 2.55 | L36: ='Mean fruit and vegetables'!W18 -> 2.67 | M36: ='Mean fruit and vegetables'!X18 -> 3.142 | N36: ='Mean fruit and vegetables'!AA18 -> 3.327 | O36: ='Mean fruit and vegetables'!AB18 -> 3.141 | P36: ='Mean fruit and vegetables'!AC18 -> 2.923 | Q36: ='Mean fruit and vegetables'!AD18 -> 3.01 | S36: ='Mean fruit and vegetables'!AH18 -> 3.16
B37: Lower CI | C37: ='Mean fruit and vegetables'!B19 -> 3.06 | D37: ='Mean fruit and vegetables'!C19 -> 2.9 | E37: ='Mean fruit and vegetables'!I19 -> 2.327 | F37: ='Mean fruit and vegetables'!M19 -> 3.71 | G37: ='Mean fruit and vegetables'!O19 -> 3.08 | H37: ='Mean fruit and vegetables'!P19 -> 2.91 | I37: ='Mean fruit and vegetables'!Q19 -> 3.006 | J37: ='Mean fruit and vegetables'!U19 -> 2.984 | K37: ='Mean fruit and vegetables'!V19 -> 2.308 | L37: ='Mean fruit and vegetables'!W19 -> 2.49 | M37: ='Mean fruit and vegetables'!X19 -> 2.929 | N37: ='Mean fruit and vegetables'!AA19 -> 3.05 | O37: ='Mean fruit and vegetables'!AB19 -> 2.848 | P37: ='Mean fruit and vegetables'!AC19 -> 2.684 | Q37: ='Mean fruit and vegetables'!AD19 -> 2.78 | S37: ='Mean fruit and vegetables'!AH19 -> 3.1
B38: Upper CI | C38: ='Mean fruit and vegetables'!B20 -> 3.514 | D38: ='Mean fruit and vegetables'!C20 -> 3.29 | E38: ='Mean fruit and vegetables'!I20 -> 2.997 | F38: ='Mean fruit and vegetables'!M20 -> 4.16 | G38: ='Mean fruit and vegetables'!O20 -> 3.41 | H38: ='Mean fruit and vegetables'!P20 -> 3.32 | I38: ='Mean fruit and vegetables'!Q20 -> 3.529 | J38: ='Mean fruit and vegetables'!U20 -> 3.585 | K38: ='Mean fruit and vegetables'!V20 -> 2.792 | L38: ='Mean fruit and vegetables'!W20 -> 2.85 | M38: ='Mean fruit and vegetables'!X20 -> 3.356 | N38: ='Mean fruit and vegetables'!AA20 -> 3.604 | O38: ='Mean fruit and vegetables'!AB20 -> 3.434 | P38: ='Mean fruit and vegetables'!AC20 -> 3.163 | Q38: ='Mean fruit and vegetables'!AD20 -> 3.24 | S38: ='Mean fruit and vegetables'!AH20 -> 3.22
A40: CLs | C40: =C36-C37 -> 0.227 | D40: =D36-D37 -> 0.19 | E40: =E36-E37 -> 0.335 | F40: =F36-F37 -> 0.23 | G40: =G36-G37 -> 0.17 | H40: =H36-H37 -> 0.2 | I40: 0.262 | J40: 0.301 | K40: 0.242 | L40: 0.18 | M40: 0.213 | N40: =N36-N37 -> 0.277 | O40: =O36-O37 -> 0.293 | P40: =P36-P37 -> 0.239 | Q40: =Q36-Q37 -> 0.23 | S40: =S36-S37 -> 0.06

Sheet Physical activity guidelines
A1: Adherence to physical activity guidelines, by Local Authority and sex | N1: INDEX
A4: Aged 16 and over | B4: PLEASE NOTE: Where the sample size for a Local Authority (which does not correspond fully to an NHS board) was below 500, the result has been suppressed. This is shown here by *. | P4: 2014/2015/2016/2017 combined
A5: Physical activity guidelinesa | B5: Local Authority
B6: Aberdeen City | C6: Aberdeenshire | D6: Angus | E6: Argyll & Bute | F6: Clackmannanshire | G6: Dumfries & Galloway | H6: Dundee City | I6: East Ayrshire | J6: East Dunbartonshire | K6: East Lothian | L6: East Renfrewshire | M6: Edinburgh, City of | N6: Falkirk | O6: Fife | P6: Glasgow City | Q6: Highland | R6: Inverclyde | S6: Midlothian | T6: Moray | U6: Na h-Eileanan Siar | V6: North Ayrshire | W6: North Lanarkshire | X6: Orkney Islands | Y6: Perth & Kinross | Z6: Renfrewshire | AA6: Scottish Borders | AB6: Shetland Islands | AC6: South Ayrshire | AD6: South Lanarkshire | AE6: Stirling | AF6: West Dunbartonshire | AG6: West Lothian | AH6: Scotland
B7: % | C7: % | D7: % | E7: % | F7: % | G7: % | H7: % | I7: % | J7: % | K7: % | L7: % | M7: % | N7: % | O7: % | P7: % | Q7: % | R7: % | S7: % | T7: % | U7: % | V7: % | W7: % | X7: % | Y7: % | Z7: % | AA7: % | AB7: % | AC7: % | AD7: % | AE7: % | AF7: % | AG7: % | AH7: %
A8: Men
A9: Meets guidelines | B9: 71.027 | C9: 67.19 | D9: * | E9: * | F9: * | G9: * | H9: * | I9: 58.552 | J9: * | K9: * | L9: * | M9: 78.7 | N9: * | O9: 68.93 | P9: 69.31 | Q9: 69.907 | R9: * | S9: * | T9: * | U9: 70.238 | V9: 64.48 | W9: 61.57 | X9: 66.696 | Y9: * | Z9: * | AA9: 62.317 | AB9: 71.326 | AC9: 68.131 | AD9: 67.4 | AE9: * | AF9: * | AG9: * | AH9: 68.47
A10: Lower CI | B10: 65.734 | C10: 62.77 | D10: * | E10: * | F10: * | G10: * | H10: * | I10: 51.697 | J10: * | K10: * | L10: * | M10: 74.34 | N10: * | O10: 65.69 | P10: 65.04 | Q10: 62.821 | R10: * | S10: * | T10: * | U10: 65.163 | V10: 60.523 | W10: 56.01 | X10: 61.136 | Y10: * | Z10: * | AA10: 54.693 | AB10: 64.548 | AC10: 59.968 | AD10: 62 | AE10: * | AF10: * | AG10: * | AH10: 67.18
A11: Upper CI | B11: 76.32 | C11: 71.61 | D11: * | E11: * | F11: * | G11: * | H11: * | I11: 65.408 | J11: * | K11: * | L11: * | M11: 83.06 | N11: * | O11: 72.17 | P11: 73.57 | Q11: 76.994 | R11: * | S11: * | T11: * | U11: 75.314 | V11: 68.436 | W11: 67.14 | X11: 72.255 | Y11: * | Z11: * | AA11: 69.941 | AB11: 78.104 | AC11: 76.293 | AD11: 72.79 | AE11: * | AF11: * | AG11: * | AH11: 69.76
A12: Some activity | B12: 6.919 | C12: 10.59 | D12: * | E12: * | F12: * | G12: * | H12: * | I12: 8.512 | J12: * | K12: * | L12: * | M12: 6.92 | N12: * | O12: 7.13 | P12: 7.81 | Q12: 10.147 | R12: * | S12: * | T12: * | U12: 8.535 | V12: 9.341 | W12: 12.64 | X12: 12.762 | Y12: * | Z12: * | AA12: 10.137 | AB12: 9.96 | AC12: 8.526 | AD12: 8.77 | AE12: * | AF12: * | AG12: * | AH12: 9.42
A13: Lower CI | B13: 4.557 | C13: 7.74 | D13: * | E13: * | F13: * | G13: * | H13: * | I13: 4.315 | J13: * | K13: * | L13: * | M13: 4.5 | N13: * | O13: 5.43 | P13: 5.58 | Q13: 6.33 | R13: * | S13: * | T13: * | U13: 5.019 | V13: 5.937 | W13: 8.12 | X13: 8.119 | Y13: * | Z13: * | AA13: 5.883 | AB13: 6.169 | AC13: 4.672 | AD13: 5.45 | AE13: * | AF13: * | AG13: * | AH13: 8.61
A14: Upper CI | B14: 9.281 | C14: 13.44 | D14: * | E14: * | F14: * | G14: * | H14: * | I14: 12.709 | J14: * | K14: * | L14: * | M14: 9.35 | N14: * | O14: 8.83 | P14: 10.04 | Q14: 13.964 | R14: * | S14: * | T14: * | U14: 12.051 | V14: 12.745 | W14: 17.15 | X14: 17.405 | Y14: * | Z14: * | AA14: 14.391 | AB14: 13.75 | AC14: 12.38 | AD14: 12.09 | AE14: * | AF14: * | AG14: * | AH14: 10.23
A15: Low activity | B15: 4.228 | C15: 3.9 | D15: * | E15: * | F15: * | G15: * | H15: * | I15: 3.38 | J15: * | K15: * | L15: * | M15: 3.18 | N15: * | O15: 3.92 | P15: 4.25 | Q15: 3.131 | R15: * | S15: * | T15: * | U15: 3.231 | V15: 2.904 | W15: 3.35 | X15: 2.892 | Y15: * | Z15: * | AA15: 5.376 | AB15: 2.744 | AC15: 1.871 | AD15: 4.24 | AE15: * | AF15: * | AG15: * | AH15: 3.75
A16: Lower CI | B16: 2.427 | C16: 1.93 | D16: * | E16: * | F16: * | G16: * | H16: * | I16: 1.295 | J16: * | K16: * | L16: * | M16: 1.71 | N16: * | O16: 2.6 | P16: 2.52 | Q16: 1.008 | R16: * | S16: * | T16: * | U16: 1.129 | V16: 1.268 | W16: 1.47 | X16: 0.629 | Y16: * | Z16: * | AA16: 2.126 | AB16: 0.94 | AC16: 0.522 | AD16: 2.21 | AE16: * | AF16: * | AG16: * | AH16: 3.26
A17: Upper CI | B17: 6.029 | C17: 5.87 | D17: * | E17: * | F17: * | G17: * | H17: * | I17: 5.464 | J17: * | K17: * | L17: * | M17: 4.64 | N17: * | O17: 5.23 | P17: 5.99 | Q17: 5.254 | R17: * | S17: * | T17: * | U17: 5.333 | V17: 4.541 | W17: 5.23 | X17: 5.155 | Y17: * | Z17: * | AA17: 8.626 | AB17: 4.547 | AC17: 3.22 | AD17: 6.27 | AE17: * | AF17: * | AG17: * | AH17: 4.23
A18: Very low activity | B18: 17.826 | C18: 18.32 | D18: * | E18: * | F18: * | G18: * | H18: * | I18: 29.557 | J18: * | K18: * | L18: * | M18: 11.2 | N18: * | O18: 20.02 | P18: 18.63 | Q18: 16.815 | R18: * | S18: * | T18: * | U18: 17.995 | V18: 23.275 | W18: 22.44 | X18: 17.65 | Y18: * | Z18: * | AA18: 22.17 | AB18: 15.971 | AC18: 21.473 | AD18: 19.59 | AE18: * | AF18: * | AG18: * | AH18: 18.37
A19: Lower CI | B19: 13.957 | C19: 14.7 | D19: * | E19: * | F19: * | G19: * | H19: * | I19: 23.297 | J19: * | K19: * | L19: * | M19: 8.25 | N19: * | O19: 17.17 | P19: 15.06 | Q19: 11.008 | R19: * | S19: * | T19: * | U19: 14.171 | V19: 18.956 | W19: 17.82 | X19: 13.626 | Y19: * | Z19: * | AA19: 16.006 | AB19: 10.746 | AC19: 12.949 | AD19: 15.43 | AE19: * | AF19: * | AG19: * | AH19: 17.32
A20: Upper CI | B20: 21.695 | C20: 21.94 | D20: * | E20: * | F20: * | G20: * | H20: * | I20: 35.816 | J20: * | K20: * | L20: * | M20: 14.15 | N20: * | O20: 22.87 | P20: 22.2 | Q20: 22.622 | R20: * | S20: * | T20: * | U20: 21.82 | V20: 27.595 | W20: 27.06 | X20: 21.675 | Y20: * | Z20: * | AA20: 28.335 | AB20: 21.195 | AC20: 29.997 | AD20: 23.76 | AE20: * | AF20: * | AG20: * | AH20: 19.42
A22: Women
A23: Meets guidelines | B23: 63.327 | C23: 57.44 | D23: * | E23: * | F23: * | G23: * | H23: * | I23: 53.864 | J23: * | K23: * | L23: * | M23: 66.47 | N23: * | O23: 57.99 | P23: 53.46 | Q23: 60.066 | R23: * | S23: * | T23: * | U23: 59.644 | V23: 57.741 | W23: 54.37 | X23: 57.698 | Y23: * | Z23: * | AA23: 57.251 | AB23: 60.024 | AC23: 60.772 | AD23: 61.08 | AE23: * | AF23: * | AG23: * | AH23: 59.13
A24: Lower CI | B24: 57.934 | C24: 53.17 | D24: * | E24: * | F24: * | G24: * | H24: * | I24: 46.69 | J24: * | K24: * | L24: * | M24: 62.24 | N24: * | O24: 54.74 | P24: 49.91 | Q24: 54.328 | R24: * | S24: * | T24: * | U24: 53.401 | V24: 51.5 | W24: 49.27 | X24: 49.797 | Y24: * | Z24: * | AA24: 50.98 | AB24: 54.271 | AC24: 55.068 | AD24: 55.95 | AE24: * | AF24: * | AG24: * | AH24: 57.95
A25: Upper CI | B25: 68.721 | C25: 61.71 | D25: * | E25: * | F25: * | G25: * | H25: * | I25: 61.037 | J25: * | K25: * | L25: * | M25: 70.71 | N25: * | O25: 61.24 | P25: 57 | Q25: 65.804 | R25: * | S25: * | T25: * | U25: 65.886 | V25: 63.982 | W25: 59.47 | X25: 65.6 | Y25: * | Z25: * | AA25: 63.521 | AB25: 65.777 | AC25: 66.477 | AD25: 66.21 | AE25: * | AF25: * | AG25: * | AH25: 60.31
A26: Some activity | B26: 11.389 | C26: 13.9 | D26: * | E26: * | F26: * | G26: * | H26: * | I26: 12.028 | J26: * | K26: * | L26: * | M26: 10.17 | N26: * | O26: 14.19 | P26: 12.04 | Q26: 13.406 | R26: * | S26: * | T26: * | U26: 12.027 | V26: 11.234 | W26: 12.88 | X26: 9.38 | Y26: * | Z26: * | AA26: 13.822 | AB26: 11.173 | AC26: 10.235 | AD26: 11.21 | AE26: * | AF26: * | AG26: * | AH26: 12.57
A27: Lower CI | B27: 8.709 | C27: 10.67 | D27: * | E27: * | F27: * | G27: * | H27: * | I27: 7.29 | J27: * | K27: * | L27: * | M27: 7.62 | N27: * | O27: 11.97 | P27: 9.75 | Q27: 10.235 | R27: * | S27: * | T27: * | U27: 6.732 | V27: 7.155 | W27: 9.93 | X27: 5.574 | Y27: * | Z27: * | AA27: 9.43 | AB27: 7.323 | AC27: 6.632 | AD27: 8.33 | AE27: * | AF27: * | AG27: * | AH27: 11.83
A28: Upper CI | B28: 14.068 | C28: 17.14 | D28: * | E28: * | F28: * | G28: * | H28: * | I28: 16.767 | J28: * | K28: * | L28: * | M28: 12.71 | N28: * | O28: 16.4 | P28: 14.33 | Q28: 16.578 | R28: * | S28: * | T28: * | U28: 17.322 | V28: 15.312 | W28: 15.83 | X28: 13.186 | Y28: * | Z28: * | AA28: 18.214 | AB28: 15.022 | AC28: 13.838 | AD28: 14.09 | AE28: * | AF28: * | AG28: * | AH28: 13.32
A29: Low activity | B29: 4.448 | C29: 5.31 | D29: * | E29: * | F29: * | G29: * | H29: * | I29: 5.636 | J29: * | K29: * | L29: * | M29: 4.1 | N29: * | O29: 4.94 | P29: 5.7 | Q29: 4.547 | R29: * | S29: * | T29: * | U29: 4.212 | V29: 3.35 | W29: 5.47 | X29: 8.74 | Y29: * | Z29: * | AA29: 6.701 | AB29: 5.69 | AC29: 4.274 | AD29: 4.99 | AE29: * | AF29: * | AG29: * | AH29: 5.02
A30: Lower CI | B30: 2.763 | C30: 3.57 | D30: * | E30: * | F30: * | G30: * | H30: * | I30: 2.78 | J30: * | K30: * | L30: * | M30: 2.37 | N30: * | O30: 3.73 | P30: 4.04 | Q30: 2.127 | R30: * | S30: * | T30: * | U30: 2.271 | V30: 1.444 | W30: 3.06 | X30: 5.542 | Y30: * | Z30: * | AA30: 2.864 | AB30: 2.84 | AC30: 2.313 | AD30: 2.72 | AE30: * | AF30: * | AG30: * | AH30: 4.51
A31: Upper CI | B31: 6.132 | C31: 7.05 | D31: * | E31: * | F31: * | G31: * | H31: * | I31: 8.493 | J31: * | K31: * | L31: * | M31: 5.82 | N31: * | O31: 6.14 | P31: 7.37 | Q31: 6.968 | R31: * | S31: * | T31: * | U31: 6.154 | V31: 5.256 | W31: 7.88 | X31: 11.937 | Y31: * | Z31: * | AA31: 10.537 | AB31: 8.54 | AC31: 6.236 | AD31: 7.27 | AE31: * | AF31: * | AG31: * | AH31: 5.53
A32: Very low activity | B32: 20.836 | C32: 23.35 | D32: * | E32: * | F32: * | G32: * | H32: * | I32: 28.472 | J32: * | K32: * | L32: * | M32: 19.26 | N32: * | O32: 22.88 | P32: 28.8 | Q32: 21.98 | R32: * | S32: * | T32: * | U32: 24.117 | V32: 27.675 | W32: 27.29 | X32: 24.182 | Y32: * | Z32: * | AA32: 22.227 | AB32: 23.114 | AC32: 24.718 | AD32: 22.71 | AE32: * | AF32: * | AG32: * | AH32: 23.28
A33: Lower CI | B33: 16.816 | C33: 19.61 | D33: * | E33: * | F33: * | G33: * | H33: * | I33: 22.963 | J33: * | K33: * | L33: * | M33: 16.02 | N33: * | O33: 20.38 | P33: 25.35 | Q33: 17.603 | R33: * | S33: * | T33: * | U33: 19.598 | V33: 23.253 | W33: 22.64 | X33: 16.513 | Y33: * | Z33: * | AA33: 16.923 | AB33: 18.347 | AC33: 18.18 | AD33: 18.92 | AE33: * | AF33: * | AG33: * | AH33: 22.3
A34: Upper CI | B34: 24.856 | C34: 27.09 | D34: * | E34: * | F34: * | G34: * | H34: * | I34: 33.981 | J34: * | K34: * | L34: * | M34: 22.5 | N34: * | O34: 25.39 | P34: 32.25 | Q34: 26.358 | R34: * | S34: * | T34: * | U34: 28.637 | V34: 32.097 | W34: 31.93 | X34: 31.85 | Y34: * | Z34: * | AA34: 27.53 | AB34: 27.881 | AC34: 31.257 | AD34: 26.5 | AE34: * | AF34: * | AG34: * | AH34: 24.27
A36: All Adults
A37: Meets guidelines | B37: 67.113 | C37: 62.13 | D37: * | E37: * | F37: * | G37: * | H37: * | I37: 55.929 | J37: * | K37: * | L37: * | M37: 72.63 | N37: * | O37: 63.36 | P37: 61 | Q37: 64.818 | R37: * | S37: * | T37: * | U37: 65.011 | V37: 60.899 | W37: 57.71 | X37: 62.268 | Y37: * | Z37: * | AA37: 59.552 | AB37: 65.849 | AC37: 64.233 | AD37: 64.16 | AE37: * | AF37: * | AG37: * | AH37: 63.62
A38: Lower CI | B38: 63.029 | C38: 58.72 | D38: * | E38: * | F38: * | G38: * | H38: * | I38: 50.442 | J38: * | K38: * | L38: * | M38: 69.11 | N38: * | O38: 60.93 | P38: 57.83 | Q38: 59.882 | R38: * | S38: * | T38: * | U38: 61.399 | V38: 56.753 | W38: 53.48 | X38: 57.346 | Y38: * | Z38: * | AA38: 53.852 | AB38: 60.218 | AC38: 58.451 | AD38: 59.94 | AE38: * | AF38: * | AG38: * | AH38: 62.62
A39: Upper CI | B39: 71.196 | C39: 65.55 | D39: * | E39: * | F39: * | G39: * | H39: * | I39: 61.417 | J39: * | K39: * | L39: * | M39: 76.14 | N39: * | O39: 65.78 | P39: 64.17 | Q39: 69.754 | R39: * | S39: * | T39: * | U39: 68.623 | V39: 65.046 | W39: 61.94 | X39: 67.19 | Y39: * | Z39: * | AA39: 65.251 | AB39: 71.48 | AC39: 70.014 | AD39: 68.39 | AE39: * | AF39: * | AG39: * | AH39: 64.62
A40: Some activity | B40: 9.191 | C40: 12.31 | D40: * | E40: * | F40: * | G40: * | H40: * | I40: 10.479 | J40: * | K40: * | L40: * | M40: 8.54 | N40: * | O40: 10.72 | P40: 10.03 | Q40: 11.833 | R40: * | S40: * | T40: * | U40: 10.258 | V40: 10.346 | W40: 12.77 | X40: 11.098 | Y40: * | Z40: * | AA40: 12.148 | AB40: 10.548 | AC40: 9.431 | AD40: 10.02 | AE40: * | AF40: * | AG40: * | AH40: 11.06
A41: Lower CI | B41: 7.282 | C41: 10.1 | D41: * | E41: * | F41: * | G41: * | H41: * | I41: 6.887 | J41: * | K41: * | L41: * | M41: 6.63 | N41: * | O41: 9.27 | P41: 8.47 | Q41: 9.162 | R41: * | S41: * | T41: * | U41: 7.055 | V41: 7.787 | W41: 9.94 | X41: 7.878 | Y41: * | Z41: * | AA41: 9.008 | AB41: 7.322 | AC41: 6.896 | AD41: 7.59 | AE41: * | AF41: * | AG41: * | AH41: 10.49
A42: Upper CI | B42: 11.1 | C42: 14.52 | D42: * | E42: * | F42: * | G42: * | H42: * | I42: 14.071 | J42: * | K42: * | L42: * | M42: 10.44 | N42: * | O42: 12.18 | P42: 11.59 | Q42: 14.503 | R42: * | S42: * | T42: * | U42: 13.46 | V42: 12.905 | W42: 15.59 | X42: 14.317 | Y42: * | Z42: * | AA42: 15.289 | AB42: 13.773 | AC42: 11.966 | AD42: 12.45 | AE42: * | AF42: * | AG42: * | AH42: 11.63
A43: Low activity | B43: 4.34 | C43: 4.63 | D43: * | E43: * | F43: * | G43: * | H43: * | I43: 4.642 | J43: * | K43: * | L43: * | M43: 3.63 | N43: * | O43: 4.44 | P43: 5.01 | Q43: 3.863 | R43: * | S43: * | T43: * | U43: 3.715 | V43: 3.141 | W43: 4.49 | X43: 5.77 | Y43: * | Z43: * | AA43: 6.099 | AB43: 4.171 | AC43: 3.144 | AD43: 4.63 | AE43: * | AF43: * | AG43: * | AH43: 4.41
A44: Lower CI | B44: 3.184 | C44: 3.02 | D44: * | E44: * | F44: * | G44: * | H44: * | I44: 2.872 | J44: * | K44: * | L44: * | M44: 2.51 | N44: * | O44: 3.5 | P44: 3.77 | Q44: 2.342 | R44: * | S44: * | T44: * | U44: 2.286 | V44: 1.651 | W44: 3.02 | X44: 3.704 | Y44: * | Z44: * | AA44: 3.33 | AB44: 2.305 | AC44: 1.698 | AD44: 3.17 | AE44: * | AF44: * | AG44: * | AH44: 4.04
A45: Upper CI | B45: 5.495 | C45: 6.24 | D45: * | E45: * | F45: * | G45: * | H45: * | I45: 6.412 | J45: * | K45: * | L45: * | M45: 4.76 | N45: * | O45: 5.38 | P45: 6.26 | Q45: 5.384 | R45: * | S45: * | T45: * | U45: 5.145 | V45: 4.631 | W45: 5.95 | X45: 7.835 | Y45: * | Z45: * | AA45: 8.868 | AB45: 6.037 | AC45: 4.59 | AD45: 6.08 | AE45: * | AF45: * | AG45: * | AH45: 4.77
A46: Very low activity | B46: 19.356 | C46: 20.93 | D46: * | E46: * | F46: * | G46: * | H46: * | I46: 28.95 | J46: * | K46: * | L46: * | M46: 15.2 | N46: * | O46: 21.48 | P46: 23.96 | Q46: 19.486 | R46: * | S46: * | T46: * | U46: 21.016 | V46: 25.613 | W46: 25.04 | X46: 20.864 | Y46: * | Z46: * | AA46: 22.201 | AB46: 19.432 | AC46: 23.192 | AD46: 21.19 | AE46: * | AF46: * | AG46: * | AH46: 20.92
A47: Lower CI | B47: 16.405 | C47: 17.87 | D47: * | E47: * | F47: * | G47: * | H47: * | I47: 24.586 | J47: * | K47: * | L47: * | M47: 12.86 | N47: * | O47: 19.51 | P47: 21.01 | Q47: 15.636 | R47: * | S47: * | T47: * | U47: 18.169 | V47: 22.041 | W47: 21.05 | X47: 16.519 | Y47: * | Z47: * | AA47: 17.629 | AB47: 15.268 | AC47: 16.289 | AD47: 18.05 | AE47: * | AF47: * | AG47: * | AH47: 20.09
A48: Upper CI | B48: 22.308 | C48: 23.99 | D48: * | E48: * | F48: * | G48: * | H48: * | I48: 33.314 | J48: * | K48: * | L48: * | M48: 17.55 | N48: * | O48: 23.45 | P48: 26.92 | Q48: 23.337 | R48: * | S48: * | T48: * | U48: 23.863 | V48: 29.185 | W48: 29.03 | X48: 25.21 | Y48: * | Z48: * | AA48: 26.773 | AB48: 23.597 | AC48: 30.095 | AD48: 24.33 | AE48: * | AF48: * | AG48: * | AH48: 21.75
A50: Bases (weighted):
A51: Men | B51: 359.428 | C51: 403.56 | D51: 170.13 | E51: 145.826 | F51: 71.728 | G51: 234.765 | H51: 240.831 | I51: 175.553 | J51: 189.682 | K51: 160.383 | L51: 135.307 | M51: 826.18 | N51: 260.068 | O51: 586.85 | P51: 931.65 | Q51: 358.867 | R51: 103.303 | S51: 123.743 | T51: 146.803 | U51: 45.339 | V51: 215.457 | W51: 559.52 | X51: 36.001 | Y51: 222.884 | Z51: 242.597 | AA51: 171.911 | AB51: 38.375 | AC51: 170.831 | AD51: 548.63 | AE51: 135.05 | AF51: 112.368 | AG51: 311.186 | AH51: 8434.81
A52: Women | B52: 371.707 | C52: 435 | D52: 197.584 | E52: 145.417 | F52: 86.173 | G52: 258.51 | H52: 267.69 | I52: 222.925 | J52: 180.321 | K52: 181.741 | L52: 142.356 | M52: 815.56 | N52: 255.497 | O52: 608.86 | P52: 1026.71 | Q52: 384.338 | R52: 146.48 | S52: 135.534 | T52: 184.657 | U52: 44.157 | V52: 244.237 | W52: 647.06 | X52: 34.881 | Y52: 249.083 | Z52: 244.321 | AA52: 206.592 | AB52: 36.08 | AC52: 192.432 | AD52: 575.12 | AE52: 166.825 | AF52: 127.016 | AG52: 290.988 | AH52: 9105.86
A53: All Adults | B53: 731.134 | C53: 838.57 | D53: 367.714 | E53: 291.243 | F53: 157.901 | G53: 493.275 | H53: 508.52 | I53: 398.478 | J53: 370.003 | K53: 342.124 | L53: 277.663 | M53: 1641.73 | N53: 515.565 | O53: 1195.72 | P53: 1958.36 | Q53: 743.205 | R53: 249.784 | S53: 259.277 | T53: 331.46 | U53: 89.496 | V53: 459.694 | W53: 1206.59 | X53: 70.882 | Y53: 471.967 | Z53: 486.917 | AA53: 378.504 | AB53: 74.455 | AC53: 363.262 | AD53: 1123.75 | AE53: 301.875 | AF53: 239.385 | AG53: 602.174 | AH53: 17540.67
A54: Bases (unweighted)
A55: Men | B55: 406 | C55: 482 | D55: 114 | E55: 108 | F55: 46 | G55: 202 | H55: 143 | I55: 275 | J55: 144 | K55: 96 | L55: 109 | M55: 530 | N55: 157 | O55: 856 | P55: 627 | Q55: 233 | R55: 81 | S55: 81 | T55: 172 | U55: 280 | V55: 312 | W55: 336 | X55: 234 | Y55: 171 | Z55: 167 | AA55: 190 | AB55: 238 | AC55: 260 | AD55: 355 | AE55: 92 | AF55: 81 | AG55: 169 | AH55: 7747
A56: Women | B56: 500 | C56: 585 | D56: 145 | E56: 130 | F56: 66 | G56: 241 | H56: 178 | I56: 372 | J56: 175 | K56: 118 | L56: 139 | M56: 637 | N56: 188 | O56: 1050 | P56: 880 | Q56: 305 | R56: 123 | S56: 106 | T56: 243 | U56: 317 | V56: 388 | W56: 484 | X56: 258 | Y56: 206 | Z56: 204 | AA56: 258 | AB56: 262 | AC56: 331 | AD56: 459 | AE56: 133 | AF56: 112 | AG56: 205 | AH56: 9798
A57: All Adults | B57: 906 | C57: 1067 | D57: 259 | E57: 238 | F57: 112 | G57: 443 | H57: 321 | I57: 647 | J57: 319 | K57: 214 | L57: 248 | M57: 1167 | N57: 345 | O57: 1906 | P57: 1507 | Q57: 538 | R57: 204 | S57: 187 | T57: 415 | U57: 597 | V57: 700 | W57: 820 | X57: 492 | Y57: 377 | Z57: 371 | AA57: 448 | AB57: 500 | AC57: 591 | AD57: 814 | AE57: 225 | AF57: 193 | AG57: 374 | AH57: 17545
A59: a Meets moderate / vigorous physical activity (MVPA) guidelines:at least 150 minutes of moderately intensive physical activity or 75 minutes vigorous activity per week or an equivalent combination of both. Some activity: 60-149 minutes of moderate activity or 30-74 minutes of vigorous activity or an equivalent combination of these. Low activity: 30-59 minutes of moderate activity or 15-29 minutes of vigorous activity or an equivalent combination of these. Very low activity: Less than 30 minutes of moderate activity or less than 15 minutes of vigorous activity or an equivalent combination of these.

Sheet Physical activity chart
R1: INDEX
C31: Source: Scottish Health Survey
C32: Meets moderate / vigorous physical activity (MVPA) guidelines:at least 150 minutes of moderately intensive physical activity or 75 minutes vigorous activity per week or an equivalent combination of both. Some activity: 60-149 minutes of moderate activity or 30-74 minutes of vigorous activity or an equivalent combination of these. Low activity: 30-59 minutes of moderate activity or 15-29 minutes of vigorous activity or an equivalent combination of these. Very low activity: Less than 30 minutes of moderate activity or less than 15 minutes of vigorous activity or an equivalent combination of these.
C34: Aberdeen City | D34: Aberdeenshire | E34: East Ayrshire | F34: Edinburgh, City of | G34: Fife | H34: Glasgow City | I34: Highland | J34: Na h-Eileanan Siar | K34: North Ayrshire | L34: North Lanarkshire | M34: Orkney Islands | N34: Scottish Borders | O34: Shetland Islands | P34: South Ayrshire | Q34: South Lanarkshire | S34: Scotland
B35: All Adults
B36: Meets guidelines | C36: ='Physical activity guidelines'!B37 -> 67.113 | D36: ='Physical activity guidelines'!C37 -> 62.13 | E36: ='Physical activity guidelines'!I37 -> 55.929 | F36: ='Physical activity guidelines'!M37 -> 72.63 | G36: ='Physical activity guidelines'!O37 -> 63.36 | H36: ='Physical activity guidelines'!P37 -> 61 | I36: ='Physical activity guidelines'!Q37 -> 64.818 | J36: ='Physical activity guidelines'!U37 -> 65.011 | K36: ='Physical activity guidelines'!V37 -> 60.899 | L36: ='Physical activity guidelines'!W37 -> 57.71 | M36: ='Physical activity guidelines'!X37 -> 62.268 | N36: ='Physical activity guidelines'!AA37 -> 59.552 | O36: ='Physical activity guidelines'!AB37 -> 65.849 | P36: ='Physical activity guidelines'!AC37 -> 64.233 | Q36: ='Physical activity guidelines'!AD37 -> 64.16 | S36: ='Physical activity guidelines'!AH37 -> 63.62
B37: Lower CI | C37: ='Physical activity guidelines'!B38 -> 63.029 | D37: ='Physical activity guidelines'!C38 -> 58.72 | E37: ='Physical activity guidelines'!I38 -> 50.442 | F37: ='Physical activity guidelines'!M38 -> 69.11 | G37: ='Physical activity guidelines'!O38 -> 60.93 | H37: ='Physical activity guidelines'!P38 -> 57.83 | I37: ='Physical activity guidelines'!Q38 -> 59.882 | J37: ='Physical activity guidelines'!U38 -> 61.399 | K37: ='Physical activity guidelines'!V38 -> 56.753 | L37: ='Physical activity guidelines'!W38 -> 53.48 | M37: ='Physical activity guidelines'!X38 -> 57.346 | N37: ='Physical activity guidelines'!AA38 -> 53.852 | O37: ='Physical activity guidelines'!AB38 -> 60.218 | P37: ='Physical activity guidelines'!AC38 -> 58.451 | Q37: ='Physical activity guidelines'!AD38 -> 59.94 | S37: ='Physical activity guidelines'!AH38 -> 62.62
B38: Upper CI | C38: ='Physical activity guidelines'!B39 -> 71.196 | D38: ='Physical activity guidelines'!C39 -> 65.55 | E38: ='Physical activity guidelines'!I39 -> 61.417 | F38: ='Physical activity guidelines'!M39 -> 76.14 | G38: ='Physical activity guidelines'!O39 -> 65.78 | H38: ='Physical activity guidelines'!P39 -> 64.17 | I38: ='Physical activity guidelines'!Q39 -> 69.754 | J38: ='Physical activity guidelines'!U39 -> 68.623 | K38: ='Physical activity guidelines'!V39 -> 65.046 | L38: ='Physical activity guidelines'!W39 -> 61.94 | M38: ='Physical activity guidelines'!X39 -> 67.19 | N38: ='Physical activity guidelines'!AA39 -> 65.251 | O38: ='Physical activity guidelines'!AB39 -> 71.48 | P38: ='Physical activity guidelines'!AC39 -> 70.014 | Q38: ='Physical activity guidelines'!AD39 -> 68.39 | S38: ='Physical activity guidelines'!AH39 -> 64.62
B39: Some activity | C39: ='Physical activity guidelines'!B40 -> 9.191 | D39: ='Physical activity guidelines'!C40 -> 12.31 | E39: ='Physical activity guidelines'!I40 -> 10.479 | F39: ='Physical activity guidelines'!M40 -> 8.54 | G39: ='Physical activity guidelines'!O40 -> 10.72 | H39: ='Physical activity guidelines'!P40 -> 10.03 | I39: ='Physical activity guidelines'!Q40 -> 11.833 | J39: ='Physical activity guidelines'!U40 -> 10.258 | K39: ='Physical activity guidelines'!V40 -> 10.346 | L39: ='Physical activity guidelines'!W40 -> 12.77 | M39: ='Physical activity guidelines'!X40 -> 11.098 | N39: ='Physical activity guidelines'!AA40 -> 12.148 | O39: ='Physical activity guidelines'!AB40 -> 10.548 | P39: ='Physical activity guidelines'!AC40 -> 9.431 | Q39: ='Physical activity guidelines'!AD40 -> 10.02 | S39: ='Physical activity guidelines'!AH40 -> 11.06
B40: Lower CI | C40: ='Physical activity guidelines'!B41 -> 7.282 | D40: ='Physical activity guidelines'!C41 -> 10.1 | E40: ='Physical activity guidelines'!I41 -> 6.887 | F40: ='Physical activity guidelines'!M41 -> 6.63 | G40: ='Physical activity guidelines'!O41 -> 9.27 | H40: ='Physical activity guidelines'!P41 -> 8.47 | I40: ='Physical activity guidelines'!Q41 -> 9.162 | J40: ='Physical activity guidelines'!U41 -> 7.055 | K40: ='Physical activity guidelines'!V41 -> 7.787 | L40: ='Physical activity guidelines'!W41 -> 9.94 | M40: ='Physical activity guidelines'!X41 -> 7.878 | N40: ='Physical activity guidelines'!AA41 -> 9.008 | O40: ='Physical activity guidelines'!AB41 -> 7.322 | P40: ='Physical activity guidelines'!AC41 -> 6.896 | Q40: ='Physical activity guidelines'!AD41 -> 7.59 | S40: ='Physical activity guidelines'!AH41 -> 10.49
B41: Upper CI | C41: ='Physical activity guidelines'!B42 -> 11.1 | D41: ='Physical activity guidelines'!C42 -> 14.52 | E41: ='Physical activity guidelines'!I42 -> 14.071 | F41: ='Physical activity guidelines'!M42 -> 10.44 | G41: ='Physical activity guidelines'!O42 -> 12.18 | H41: ='Physical activity guidelines'!P42 -> 11.59 | I41: ='Physical activity guidelines'!Q42 -> 14.503 | J41: ='Physical activity guidelines'!U42 -> 13.46 | K41: ='Physical activity guidelines'!V42 -> 12.905 | L41: ='Physical activity guidelines'!W42 -> 15.59 | M41: ='Physical activity guidelines'!X42 -> 14.317 | N41: ='Physical activity guidelines'!AA42 -> 15.289 | O41: ='Physical activity guidelines'!AB42 -> 13.773 | P41: ='Physical activity guidelines'!AC42 -> 11.966 | Q41: ='Physical activity guidelines'!AD42 -> 12.45 | S41: ='Physical activity guidelines'!AH42 -> 11.63
B42: Low activity | C42: ='Physical activity guidelines'!B43 -> 4.34 | D42: ='Physical activity guidelines'!C43 -> 4.63 | E42: ='Physical activity guidelines'!I43 -> 4.642 | F42: ='Physical activity guidelines'!M43 -> 3.63 | G42: ='Physical activity guidelines'!O43 -> 4.44 | H42: ='Physical activity guidelines'!P43 -> 5.01 | I42: ='Physical activity guidelines'!Q43 -> 3.863 | J42: ='Physical activity guidelines'!U43 -> 3.715 | K42: ='Physical activity guidelines'!V43 -> 3.141 | L42: ='Physical activity guidelines'!W43 -> 4.49 | M42: ='Physical activity guidelines'!X43 -> 5.77 | N42: ='Physical activity guidelines'!AA43 -> 6.099 | O42: ='Physical activity guidelines'!AB43 -> 4.171 | P42: ='Physical activity guidelines'!AC43 -> 3.144 | Q42: ='Physical activity guidelines'!AD43 -> 4.63 | S42: ='Physical activity guidelines'!AH43 -> 4.41
B43: Lower CI | C43: ='Physical activity guidelines'!B44 -> 3.184 | D43: ='Physical activity guidelines'!C44 -> 3.02 | E43: ='Physical activity guidelines'!I44 -> 2.872 | F43: ='Physical activity guidelines'!M44 -> 2.51 | G43: ='Physical activity guidelines'!O44 -> 3.5 | H43: ='Physical activity guidelines'!P44 -> 3.77 | I43: ='Physical activity guidelines'!Q44 -> 2.342 | J43: ='Physical activity guidelines'!U44 -> 2.286 | K43: ='Physical activity guidelines'!V44 -> 1.651 | L43: ='Physical activity guidelines'!W44 -> 3.02 | M43: ='Physical activity guidelines'!X44 -> 3.704 | N43: ='Physical activity guidelines'!AA44 -> 3.33 | O43: ='Physical activity guidelines'!AB44 -> 2.305 | P43: ='Physical activity guidelines'!AC44 -> 1.698 | Q43: ='Physical activity guidelines'!AD44 -> 3.17 | S43: ='Physical activity guidelines'!AH44 -> 4.04
B44: Upper CI | C44: ='Physical activity guidelines'!B45 -> 5.495 | D44: ='Physical activity guidelines'!C45 -> 6.24 | E44: ='Physical activity guidelines'!I45 -> 6.412 | F44: ='Physical activity guidelines'!M45 -> 4.76 | G44: ='Physical activity guidelines'!O45 -> 5.38 | H44: ='Physical activity guidelines'!P45 -> 6.26 | I44: ='Physical activity guidelines'!Q45 -> 5.384 | J44: ='Physical activity guidelines'!U45 -> 5.145 | K44: ='Physical activity guidelines'!V45 -> 4.631 | L44: ='Physical activity guidelines'!W45 -> 5.95 | M44: ='Physical activity guidelines'!X45 -> 7.835 | N44: ='Physical activity guidelines'!AA45 -> 8.868 | O44: ='Physical activity guidelines'!AB45 -> 6.037 | P44: ='Physical activity guidelines'!AC45 -> 4.59 | Q44: ='Physical activity guidelines'!AD45 -> 6.08 | S44: ='Physical activity guidelines'!AH45 -> 4.77
B45: Very low activity | C45: ='Physical activity guidelines'!B46 -> 19.356 | D45: ='Physical activity guidelines'!C46 -> 20.93 | E45: ='Physical activity guidelines'!I46 -> 28.95 | F45: ='Physical activity guidelines'!M46 -> 15.2 | G45: ='Physical activity guidelines'!O46 -> 21.48 | H45: ='Physical activity guidelines'!P46 -> 23.96 | I45: ='Physical activity guidelines'!Q46 -> 19.486 | J45: ='Physical activity guidelines'!U46 -> 21.016 | K45: ='Physical activity guidelines'!V46 -> 25.613 | L45: ='Physical activity guidelines'!W46 -> 25.04 | M45: ='Physical activity guidelines'!X46 -> 20.864 | N45: ='Physical activity guidelines'!AA46 -> 22.201 | O45: ='Physical activity guidelines'!AB46 -> 19.432 | P45: ='Physical activity guidelines'!AC46 -> 23.192 | Q45: ='Physical activity guidelines'!AD46 -> 21.19 | S45: ='Physical activity guidelines'!AH46 -> 20.92
B46: Lower CI | C46: ='Physical activity guidelines'!B47 -> 16.405 | D46: ='Physical activity guidelines'!C47 -> 17.87 | E46: ='Physical activity guidelines'!I47 -> 24.586 | F46: ='Physical activity guidelines'!M47 -> 12.86 | G46: ='Physical activity guidelines'!O47 -> 19.51 | H46: ='Physical activity guidelines'!P47 -> 21.01 | I46: ='Physical activity guidelines'!Q47 -> 15.636 | J46: ='Physical activity guidelines'!U47 -> 18.169 | K46: ='Physical activity guidelines'!V47 -> 22.041 | L46: ='Physical activity guidelines'!W47 -> 21.05 | M46: ='Physical activity guidelines'!X47 -> 16.519 | N46: ='Physical activity guidelines'!AA47 -> 17.629 | O46: ='Physical activity guidelines'!AB47 -> 15.268 | P46: ='Physical activity guidelines'!AC47 -> 16.289 | Q46: ='Physical activity guidelines'!AD47 -> 18.05 | S46: ='Physical activity guidelines'!AH47 -> 20.09
B47: Upper CI | C47: ='Physical activity guidelines'!B48 -> 22.308 | D47: ='Physical activity guidelines'!C48 -> 23.99 | E47: ='Physical activity guidelines'!I48 -> 33.314 | F47: ='Physical activity guidelines'!M48 -> 17.55 | G47: ='Physical activity guidelines'!O48 -> 23.45 | H47: ='Physical activity guidelines'!P48 -> 26.92 | I47: ='Physical activity guidelines'!Q48 -> 23.337 | J47: ='Physical activity guidelines'!U48 -> 23.863 | K47: ='Physical activity guidelines'!V48 -> 29.185 | L47: ='Physical activity guidelines'!W48 -> 29.03 | M47: ='Physical activity guidelines'!X48 -> 25.21 | N47: ='Physical activity guidelines'!AA48 -> 26.773 | O47: ='Physical activity guidelines'!AB48 -> 23.597 | P47: ='Physical activity guidelines'!AC48 -> 30.095 | Q47: ='Physical activity guidelines'!AD48 -> 24.33 | S47: ='Physical activity guidelines'!AH48 -> 21.75
A49: CLs | B49: Meets guidelines | C49: =C36-C37 -> 4.084 | D49: =D36-D37 -> 3.41 | E49: =E36-E37 -> 5.487 | F49: =F36-F37 -> 3.52 | G49: =G36-G37 -> 2.43 | H49: =H36-H37 -> 3.17 | I49: 4.936 | J49: 3.612 | K49: 4.146 | L49: 4.23 | M49: =M36-M37 -> 4.922 | N49: =N36-N37 -> 5.7 | O49: =O36-O37 -> 5.631 | P49: =P36-P37 -> 5.782 | Q49: =Q36-Q37 -> 4.22 | S49: =S36-S37 -> 1
B50: Some activity | C50: =C39-C40 -> 1.909 | D50: =D39-D40 -> 2.21 | E50: =E39-E40 -> 3.592 | F50: =F39-F40 -> 1.91 | G50: =G39-G40 -> 1.45 | H50: =H39-H40 -> 1.56 | I50: 2.671 | J50: 3.203 | K50: 2.559 | L50: 2.83 | M50: =M39-M40 -> 3.22 | N50: =N39-N40 -> 3.14 | O50: =O39-O40 -> 3.226 | P50: =P39-P40 -> 2.535 | Q50: =Q39-Q40 -> 2.43 | S50: =S39-S40 -> 0.57
B51: Low activity | C51: =C42-C43 -> 1.156 | D51: =D42-D43 -> 1.61 | E51: =E42-E43 -> 1.77 | F51: =F42-F43 -> 1.12 | G51: =G42-G43 -> 0.94 | H51: =H42-H43 -> 1.24 | I51: 1.521 | J51: 1.429 | K51: 1.49 | L51: 1.47 | M51: =M42-M43 -> 2.066 | N51: =N42-N43 -> 2.769 | O51: =O42-O43 -> 1.866 | P51: =P42-P43 -> 1.446 | Q51: =Q42-Q43 -> 1.46 | S51: =S42-S43 -> 0.37
B52: Very low activity | C52: =C45-C46 -> 2.951 | D52: =D45-D46 -> 3.06 | E52: =E45-E46 -> 4.364 | F52: =F45-F46 -> 2.34 | G52: =G45-G46 -> 1.97 | H52: =H45-H46 -> 2.95 | I52: 3.85 | J52: 2.847 | K52: 3.572 | L52: 3.99 | M52: =M45-M46 -> 4.345 | N52: =N45-N46 -> 4.572 | O52: =O45-O46 -> 4.164 | P52: =P45-P46 -> 6.903 | Q52: =Q45-Q46 -> 3.14 | S52: =S45-S46 -> 0.83

Sheet CVD
A1: Prevalence of cardiovascular (CVD) conditions by Local Authority and sex | M1: INDEX
A4: Aged 16 and over | B4: PLEASE NOTE: Where the sample size for a Local Authority (which does not correspond fully to an NHS board) was below 500, the result has been suppressed. This is shown here by *. | P4: 2014/2015/2016/2017 combined
A5: CVD | B5: Local Authority
B6: Aberdeen City | C6: Aberdeenshire | D6: Angus | E6: Argyll & Bute | F6: Clackmannanshire | G6: Dumfries & Galloway | H6: Dundee City | I6: East Ayrshire | J6: East Dunbartonshire | K6: East Lothian | L6: East Renfrewshire | M6: Edinburgh, City of | N6: Falkirk | O6: Fife | P6: Glasgow City | Q6: Highland | R6: Inverclyde | S6: Midlothian | T6: Moray | U6: Na h-Eileanan Siar | V6: North Ayrshire | W6: North Lanarkshire | X6: Orkney Islands | Y6: Perth & Kinross | Z6: Renfrewshire | AA6: Scottish Borders | AB6: Shetland Islands | AC6: South Ayrshire | AD6: South Lanarkshire | AE6: Stirling | AF6: West Dunbartonshire | AG6: West Lothian | AH6: Scotland
B7: % | C7: % | D7: % | E7: % | F7: % | G7: % | H7: % | I7: % | J7: % | K7: % | L7: % | M7: % | N7: % | O7: % | P7: % | Q7: % | R7: % | S7: % | T7: % | U7: % | V7: % | W7: % | X7: % | Y7: % | Z7: % | AA7: % | AB7: % | AC7: % | AD7: % | AE7: % | AF7: % | AG7: % | AH7: %
A8: Men
A9: Has a cardiovascular condition | B9: 14.065 | C9: 17.84 | D9: * | E9: * | F9: * | G9: * | H9: * | I9: 22.8 | J9: * | K9: * | L9: * | M9: 11 | N9: * | O9: 18.44 | P9: 15.65 | Q9: 13.236 | R9: * | S9: * | T9: * | U9: 17.279 | V9: 21.21 | W9: 16.39 | X9: 17.334 | Y9: * | Z9: * | AA9: 20.057 | AB9: 13.87 | AC9: 20.713 | AD9: 18.15 | AE9: * | AF9: * | AG9: * | AH9: 16.54
A10: Lower CI | B10: 10.822 | C10: 14.4 | D10: * | E10: * | F10: * | G10: * | H10: * | I10: 17.281 | J10: * | K10: * | L10: * | M10: 8.5 | N10: * | O10: 15.66 | P10: 12.5 | Q10: 8.504 | R10: * | S10: * | T10: * | U10: 13.026 | V10: 15.971 | W10: 12.44 | X10: 12.424 | Y10: * | Z10: * | AA10: 12.996 | AB10: 8.573 | AC10: 16.476 | AD10: 12.37 | AE10: * | AF10: * | AG10: * | AH10: 15.56
A11: Upper CI | B11: 17.307 | C11: 21.29 | D11: * | E11: * | F11: * | G11: * | H11: * | I11: 28.319 | J11: * | K11: * | L11: * | M11: 13.51 | N11: * | O11: 21.22 | P11: 18.81 | Q11: 17.968 | R11: * | S11: * | T11: * | U11: 21.532 | V11: 26.45 | W11: 20.35 | X11: 22.243 | Y11: * | Z11: * | AA11: 27.118 | AB11: 19.167 | AC11: 24.95 | AD11: 23.94 | AE11: * | AF11: * | AG11: * | AH11: 17.52
A13: Women
A14: Has a cardiovascular condition | B14: 13.811 | C14: 13.29 | D14: * | E14: * | F14: * | G14: * | H14: * | I14: 18.068 | J14: * | K14: * | L14: * | M14: 11.47 | N14: * | O14: 16.96 | P14: 17.03 | Q14: 15.177 | R14: * | S14: * | T14: * | U14: 15.887 | V14: 19.88 | W14: 14.43 | X14: 17.337 | Y14: * | Z14: * | AA14: 13.515 | AB14: 11.084 | AC14: 19.584 | AD14: 11.11 | AE14: * | AF14: * | AG14: * | AH14: 14.52
A15: Lower CI | B15: 10.492 | C15: 10.91 | D15: * | E15: * | F15: * | G15: * | H15: * | I15: 13.862 | J15: * | K15: * | L15: * | M15: 8.85 | N15: * | O15: 14.75 | P15: 14.53 | Q15: 11.423 | R15: * | S15: * | T15: * | U15: 11.369 | V15: 16.031 | W15: 11.29 | X15: 12.245 | Y15: * | Z15: * | AA15: 8.483 | AB15: 7.135 | AC15: 15.413 | AD15: 7.96 | AE15: * | AF15: * | AG15: * | AH15: 13.75
A16: Upper CI | B16: 17.13 | C16: 15.66 | D16: * | E16: * | F16: * | G16: * | H16: * | I16: 22.273 | J16: * | K16: * | L16: * | M16: 14.1 | N16: * | O16: 19.17 | P16: 19.52 | Q16: 18.932 | R16: * | S16: * | T16: * | U16: 20.405 | V16: 23.728 | W16: 17.56 | X16: 22.429 | Y16: * | Z16: * | AA16: 18.548 | AB16: 15.032 | AC16: 23.755 | AD16: 14.26 | AE16: * | AF16: * | AG16: * | AH16: 15.3
A18: All Adults
A19: Has a cardiovascular condition | B19: 13.936 | C19: 15.48 | D19: * | E19: * | F19: * | G19: * | H19: * | I19: 20.153 | J19: * | K19: * | L19: * | M19: 11.24 | N19: * | O19: 17.68 | P19: 16.37 | Q19: 14.249 | R19: * | S19: * | T19: * | U19: 16.591 | V19: 20.502 | W19: 15.34 | X19: 17.335 | Y19: * | Z19: * | AA19: 16.484 | AB19: 12.531 | AC19: 20.115 | AD19: 14.54 | AE19: * | AF19: * | AG19: * | AH19: 15.49
A20: Lower CI | B20: 11.279 | C20: 13.38 | D20: * | E20: * | F20: * | G20: * | H20: * | I20: 16.421 | J20: * | K20: * | L20: * | M20: 9.44 | N20: * | O20: 15.96 | P20: 14.25 | Q20: 11.184 | R20: * | S20: * | T20: * | U20: 13.488 | V20: 16.849 | W20: 12.9 | X20: 13.608 | Y20: * | Z20: * | AA20: 12.078 | AB20: 9.834 | AC20: 17 | AD20: 11.36 | AE20: * | AF20: * | AG20: * | AH20: 14.85
A21: Upper CI | B21: 16.593 | C21: 17.58 | D21: * | E21: * | F21: * | G21: * | H21: * | I21: 23.886 | J21: * | K21: * | L21: * | M21: 13.04 | N21: * | O21: 19.4 | P21: 18.49 | Q21: 17.313 | R21: * | S21: * | T21: * | U21: 19.695 | V21: 24.155 | W21: 17.78 | X21: 21.062 | Y21: * | Z21: * | AA21: 20.891 | AB21: 15.228 | AC21: 23.23 | AD21: 17.72 | AE21: * | AF21: * | AG21: * | AH21: 16.14
A23: Bases (weighted):
A24: Men | B24: 361.119 | C24: 404.94 | D24: 170.13 | E24: 147.951 | F24: 71.728 | G24: 238.321 | H24: 241.857 | I24: 175.553 | J24: 189.682 | K24: 160.383 | L24: 135.307 | M24: 835.24 | N24: 267.424 | O24: 588.04 | P24: 936.52 | Q24: 362.144 | R24: 104.643 | S24: 123.743 | T24: 151.09 | U24: 45.339 | V24: 216.421 | W24: 567.26 | X24: 37.2 | Y24: 222.884 | Z24: 243.813 | AA24: 172.287 | AB24: 39.284 | AC24: 170.831 | AD24: 552.14 | AE24: 135.05 | AF24: 113.716 | AG24: 316.179 | AH24: 8498.22
A25: Women | B25: 373.432 | C25: 435.39 | D25: 198.7 | E25: 148.815 | F25: 86.173 | G25: 261.559 | H25: 271.726 | I25: 222.797 | J25: 180.321 | K25: 182.716 | L25: 142.356 | M25: 817.43 | N25: 256.879 | O25: 613.42 | P25: 1034.56 | Q25: 394.91 | R25: 146.48 | S25: 135.534 | T25: 187.219 | U25: 44.288 | V25: 246.207 | W25: 650.97 | X25: 35.742 | Y25: 250.133 | Z25: 248.838 | AA25: 207.301 | AB25: 36.353 | AC25: 192.432 | AD25: 580.86 | AE25: 167.888 | AF25: 127.016 | AG25: 292.096 | AH25: 9170.55
A26: All Adults | B26: 734.551 | C26: 840.32 | D26: 368.831 | E26: 296.766 | F26: 157.901 | G26: 499.879 | H26: 513.583 | I26: 398.35 | J26: 370.003 | K26: 343.099 | L26: 277.663 | M26: 1652.67 | N26: 524.303 | O26: 1201.47 | P26: 1971.08 | Q26: 757.054 | R26: 251.123 | S26: 259.277 | T26: 338.31 | U26: 89.627 | V26: 462.628 | W26: 1218.23 | X26: 72.942 | Y26: 473.017 | Z26: 492.652 | AA26: 379.588 | AB26: 75.637 | AC26: 363.262 | AD26: 1133.01 | AE26: 302.938 | AF26: 240.732 | AG26: 608.275 | AH26: 17668.77
A27: Bases (unweighted)
A28: Men | B28: 407 | C28: 484 | D28: 114 | E28: 110 | F28: 46 | G28: 205 | H28: 144 | I28: 275 | J28: 144 | K28: 96 | L28: 109 | M28: 537 | N28: 161 | O28: 858 | P28: 630 | Q28: 235 | R28: 82 | S28: 81 | T28: 177 | U28: 280 | V28: 314 | W28: 340 | X28: 240 | Y28: 171 | Z28: 168 | AA28: 191 | AB28: 243 | AC28: 260 | AD28: 357 | AE28: 92 | AF28: 82 | AG28: 172 | AH28: 7805
A29: Women | B29: 502 | C29: 585 | D29: 146 | E29: 133 | F29: 66 | G29: 244 | H29: 180 | I29: 372 | J29: 175 | K29: 119 | L29: 139 | M29: 639 | N29: 189 | O29: 1058 | P29: 886 | Q29: 313 | R29: 123 | S29: 106 | T29: 245 | U29: 317 | V29: 388 | W29: 487 | X29: 264 | Y29: 207 | Z29: 208 | AA29: 259 | AB29: 264 | AC29: 331 | AD29: 463 | AE29: 134 | AF29: 112 | AG29: 206 | AH29: 9860
A30: All Adults | B30: 909 | C30: 1069 | D30: 260 | E30: 243 | F30: 112 | G30: 449 | H30: 324 | I30: 647 | J30: 319 | K30: 215 | L30: 248 | M30: 1176 | N30: 350 | O30: 1916 | P30: 1516 | Q30: 548 | R30: 205 | S30: 187 | T30: 422 | U30: 597 | V30: 702 | W30: 827 | X30: 504 | Y30: 378 | Z30: 376 | AA30: 450 | AB30: 507 | AC30: 591 | AD30: 820 | AE30: 226 | AF30: 194 | AG30: 378 | AH30: 17665

Sheet CVD chart
R1: INDEX
C31: Source: Scottish Health Survey
C34: Aberdeen City | D34: Aberdeenshire | E34: East Ayrshire | F34: Edinburgh, City of | G34: Fife | H34: Glasgow City | I34: Highland | J34: Na h-Eileanan Siar | K34: North Ayrshire | L34: North Lanarkshire | M34: Orkney Islands | N34: Scottish Borders | O34: Shetland Islands | P34: South Ayrshire | Q34: South Lanarkshire | S34: Scotland
B35: All Adults
B36: Has a cardiovascular condition | C36: =CVD!B19 -> 13.936 | D36: =CVD!C19 -> 15.48 | E36: =CVD!I19 -> 20.153 | F36: =CVD!M19 -> 11.24 | G36: =CVD!O19 -> 17.68 | H36: =CVD!P19 -> 16.37 | I36: =CVD!Q19 -> 14.249 | J36: =CVD!U19 -> 16.591 | K36: =CVD!V19 -> 20.502 | L36: =CVD!W19 -> 15.34 | M36: =CVD!X19 -> 17.335 | N36: =CVD!AA19 -> 16.484 | O36: =CVD!AB19 -> 12.531 | P36: =CVD!AC19 -> 20.115 | Q36: =CVD!AD19 -> 14.54 | S36: =CVD!AH19 -> 15.49
B37: Lower CI | C37: =CVD!B20 -> 11.279 | D37: =CVD!C20 -> 13.38 | E37: =CVD!I20 -> 16.421 | F37: =CVD!M20 -> 9.44 | G37: =CVD!O20 -> 15.96 | H37: =CVD!P20 -> 14.25 | I37: =CVD!Q20 -> 11.184 | J37: =CVD!U20 -> 13.488 | K37: =CVD!V20 -> 16.849 | L37: =CVD!W20 -> 12.9 | M37: =CVD!X20 -> 13.608 | N37: =CVD!AA20 -> 12.078 | O37: =CVD!AB20 -> 9.834 | P37: =CVD!AC20 -> 17 | Q37: =CVD!AD20 -> 11.36 | S37: =CVD!AH20 -> 14.85
B38: Upper CI | C38: =CVD!B21 -> 16.593 | D38: =CVD!C21 -> 17.58 | E38: =CVD!I21 -> 23.886 | F38: =CVD!M21 -> 13.04 | G38: =CVD!O21 -> 19.4 | H38: =CVD!P21 -> 18.49 | I38: =CVD!Q21 -> 17.313 | J38: =CVD!U21 -> 19.695 | K38: =CVD!V21 -> 24.155 | L38: =CVD!W21 -> 17.78 | M38: =CVD!X21 -> 21.062 | N38: =CVD!AA21 -> 20.891 | O38: =CVD!AB21 -> 15.228 | P38: =CVD!AC21 -> 23.23 | Q38: =CVD!AD21 -> 17.72 | S38: =CVD!AH21 -> 16.14
A40: CLs | C40: =C36-C37 -> 2.657 | D40: 2.1 | E40: =E36-E37 -> 3.732 | F40: =F36-F37 -> 1.8 | G40: =G36-G37 -> 1.72 | H40: =H36-H37 -> 2.12 | I40: 3.065 | J40: 3.103 | K40: 3.653 | L40: 2.44 | M40: 3.727 | N40: =N36-N37 -> 4.406 | O40: =O36-O37 -> 2.697 | P40: =P36-P37 -> 3.115 | Q40: =Q36-Q37 -> 3.18 | S40: =S36-S37 -> 0.64
